{"text_format":"1","workbook":"xlsx","n_sheets":10,"sheets":["サービス名称の変更について","留意事項","基本情報","IPoE申込情報","付加サービス情報","OCNメールアカウント情報","list","変換","OCNメニュー","改版履歴"],"not_rendered":{"charts":0,"images":1,"macros":1,"external_links":0,"defined_names":220,"comments":0,"pivot_tables":0},"unopened":[],"bounds":{"document_bytes":16777216,"sheet_cells":100000,"rows_first":2000,"rows_last":500,"rows_between":2000,"halvings":0,"cell_chars":16384,"cell_head_chars":4096},"cells_cut":0,"cells_raw":0,"read":"whole","date_system":"1900"}

{"sheet":"サービス名称の変更について","index":0,"n_rows":35,"n_cols":36,"rows_kept":35,"cut":false,"hidden":false,"merged":[[34,0,34,16],[34,17,34,20],[34,21,34,24],[34,25,34,32],[34,33,34,40],[25,29,25,34],[30,0,33,16],[30,17,31,20],[30,21,30,24],[30,25,30,32],[30,33,30,40],[31,21,31,24],[31,25,31,32],[31,33,31,40],[32,17,33,20],[32,21,32,24],[32,25,32,32],[32,33,32,40],[33,21,33,24],[33,25,33,32],[33,33,33,40],[26,35,26,40],[29,0,29,16],[29,17,29,20],[29,21,29,24],[29,25,29,32],[29,33,29,40],[23,0,26,7],[23,8,23,16],[23,17,23,22],[23,23,23,28],[23,29,23,34],[26,8,26,16],[26,17,26,22],[26,23,26,28],[26,29,26,34],[25,8,25,16],[25,35,25,40],[18,0,18,40],[21,0,22,16],[21,17,21,40],[22,17,22,22],[22,23,22,28],[22,29,22,34],[22,35,22,40],[23,35,23,40],[24,8,24,16],[24,17,24,22],[24,23,24,28],[24,29,24,34],[24,35,24,40],[25,17,25,22],[25,23,25,28],[15,0,15,19],[15,20,15,40],[9,0,9,19],[9,20,9,40],[10,0,10,19],[10,20,10,40],[11,0,11,19],[11,20,11,40],[12,0,12,40],[13,0,13,19],[13,20,13,40],[14,0,14,19],[14,20,14,40],[0,0,1,40],[3,0,3,40],[7,0,7,19],[7,20,7,40],[8,0,8,19],[8,20,8,40]]}
["●サービス名称の変更について（重要）"]
[]
[]
["・2012年9月30日をもって、第６種OCNフレッツ光サービスプランの名称を変更いたしました。変更内容については、下表をご確認ください。"]
["・本契約申込書では、一部旧サービス名称で記載されております。下記の対応表にしたがって読み替えを行ってください。"]
["・サービス名称の変更に伴う契約約款の変更はございません。"]
[]
["2012年9月30日以前のサービス名称",null,null,null,null,null,null,null,null,null,null,null,null,null,null,null,null,null,null,null,"2012年10月1日以降のサービス名称"]
["OCN光アクセス　IP1　「フレッツ光ネクスト」プラン　\nファミリー・エクスプレスタイプ",null,null,null,null,null,null,null,null,null,null,null,null,null,null,null,null,null,null,null,"ＯＣＮ　光「フレッツ」　IP1　ファミリータイプ"]
["OCN光アクセス　IP1　「フレッツ光ネクスト」プラン　\nマンション・エクスプレスタイプ",null,null,null,null,null,null,null,null,null,null,null,null,null,null,null,null,null,null,null,"ＯＣＮ　光「フレッツ」　IP1　マンションタイプ"]
["OCN光アクセス　「フレッツ光ネクスト」プラン　for　VPN　\nファミリー・エクスプレスタイプ",null,null,null,null,null,null,null,null,null,null,null,null,null,null,null,null,null,null,null,"ＯＣＮ　光「フレッツ」　for　VPN　ファミリータイプ"]
["OCN光アクセス　「フレッツ光ネクスト」プラン　for　VPN　\nマンション・エクスプレスタイプ",null,null,null,null,null,null,null,null,null,null,null,null,null,null,null,null,null,null,null,"ＯＣＮ　光「フレッツ」　for　VPN　マンションタイプ"]
["・2012年9月30日をもって、NTT西日本の提供するフレッツ 光ネクストの「契約タイプ」が変更されます。変更内容については、下表をご確認ください。"]
["2012年9月30日以前のＮＴＴ西日本タイプ名称",null,null,null,null,null,null,null,null,null,null,null,null,null,null,null,null,null,null,null,"2012年10月1日以降のＮＴＴ西日本タイプ名称"]
["フレッツ　光ネクスト　ファミリー・エクスプレス",null,null,null,null,null,null,null,null,null,null,null,null,null,null,null,null,null,null,null,"フレッツ　光ネクスト　ファミリー・スーパーハイスピードタイプ　隼"]
["フレッツ　光ネクスト　マンション・エクスプレス",null,null,null,null,null,null,null,null,null,null,null,null,null,null,null,null,null,null,null,"フレッツ　光ネクスト　マンション・スーパーハイスピードタイプ　隼"]
[]
[]
["お客さまがNTT東西会社へお申込みされたアクセスラインとＯＣＮ契約タイプが不一致な場合、以下の表のようにお客さまで一部設定変更が必要になります。「(1)OCN契約タイプとアクセスラインの相性による通信可否一覧」で△表記がある場合が対象となりますので、該当する場合「(2)認証IDのドメイン部分の変更」の内容に従って設定変更をお願いいたします。"]
["(1)OCN契約タイプとアクセスラインの相性による通信可否一覧　"]
[]
[null,null,null,null,null,null,null,null,null,null,null,null,null,null,null,null,null,"弊社にお申込みいただいたＯＣＮ契約タイプ"]
[null,null,null,null,null,null,null,null,null,null,null,null,null,null,null,null,null,"Ｂフレッツ",null,null,null,null,null,"フレッツ光プレミアム",null,null,null,null,null,"フレッツ光ネクスト",null,null,null,null,null,"フレッツ 光ライト"]
["お客さまがお申込みされた\n東西会社のアクセスライン",null,null,null,null,null,null,null,"Ｂフレッツ",null,null,null,null,null,null,null,null,"○",null,null,null,null,null,"○",null,null,null,null,null,"△",null,null,null,null,null,"△"]
[null,null,null,null,null,null,null,null,"フレッツ光プレミアム",null,null,null,null,null,null,null,null,"○",null,null,null,null,null,"○",null,null,null,null,null,"△",null,null,null,null,null,"△"]
[null,null,null,null,null,null,null,null,"フレッツ光ネクスト",null,null,null,null,null,null,null,null,"○",null,null,null,null,null,"○",null,null,null,null,null,"○",null,null,null,null,null,"○"]
[null,null,null,null,null,null,null,null,"フレッツ 光ライト",null,null,null,null,null,null,null,null,"○",null,null,null,null,null,"○",null,null,null,null,null,"○",null,null,null,null,null,"○"]
[null,null,null,null,null,null,null,null,"（○通信可/△お客様で設定変更が必要）"]
["(2)認証IDのドメイン部分の変更"]
["OCN契約タイプとアクセスライン契約\nタイプ不一致の場合の対応",null,null,null,null,null,null,null,null,null,null,null,null,null,null,null,null,"タイプ",null,null,null,"IP種別",null,null,null,"【変更前】\n認証IDの@以下の\n部分",null,null,null,null,null,null,null,"【変更後】\n認証IDの@以下の\n部分"]
["OCN契約タイプがフレッツ光ネクスト/フレッツ光ライトだが、\nアクセスラインがBフレッツ/フレッツ光プレミアムだった場合",null,null,null,null,null,null,null,null,null,null,null,null,null,null,null,null,"ファミリー",null,null,null,"固定",null,null,null,"bizf.ocn.ne.jp",null,null,null,null,null,null,null,"fbnf.ocn.ne.jp"]
[null,null,null,null,null,null,null,null,null,null,null,null,null,null,null,null,null,null,null,null,null,"動的",null,null,null,"bizd.ocn.ne.jp",null,null,null,null,null,null,null,"dbnf.ocn.ne.jp"]
[null,null,null,null,null,null,null,null,null,null,null,null,null,null,null,null,null,"マンション",null,null,null,"固定",null,null,null,"bizf.ocn.ne.jp",null,null,null,null,null,null,null,"fbfm.ocn.ne.jp"]
[null,null,null,null,null,null,null,null,null,null,null,null,null,null,null,null,null,null,null,null,null,"動的",null,null,null,"bizd.ocn.ne.jp",null,null,null,null,null,null,null,"dbfm.ocn.ne.jp"]
["OCN契約タイプがフレッツ光ネクストだが、\nアクセスラインがBフレッツであった場合",null,null,null,null,null,null,null,null,null,null,null,null,null,null,null,null,"ビジネス",null,null,null,"固定",null,null,null,"bizf.ocn.ne.jp",null,null,null,null,null,null,null,"fbfh.ocn.ne.jp"]

{"sheet":"留意事項","index":1,"n_rows":130,"n_cols":43,"rows_kept":130,"cut":false,"hidden":false,"merged":[[1,0,1,43],[2,0,2,43],[4,0,4,43],[7,1,7,35],[7,38,7,41],[7,42,7,43],[8,18,8,35],[8,36,9,37],[8,38,9,41],[8,42,9,43],[9,18,9,35],[10,18,10,35],[10,36,12,37],[10,38,12,41],[10,42,12,43],[11,18,11,35],[17,18,17,35],[17,36,17,37],[17,38,17,41],[17,42,17,43],[18,18,18,35],[18,36,18,37],[18,38,18,41],[18,42,18,43],[13,18,13,35],[13,36,15,37],[13,38,15,41],[13,42,15,43],[16,36,16,37],[16,38,16,41],[16,42,16,43],[25,36,26,37],[25,38,26,41],[25,42,26,43],[27,36,29,37],[27,38,29,41],[27,42,29,43],[19,18,19,35],[19,36,19,37],[19,38,19,41],[19,42,19,43],[20,36,24,37],[20,38,24,41],[20,42,24,43],[23,18,23,35],[24,18,24,35],[30,18,30,35],[30,36,31,37],[30,38,31,41],[30,42,31,43],[32,18,32,35],[32,36,33,37],[32,38,33,41],[32,42,33,43],[33,18,33,35],[39,36,39,37],[39,38,39,41],[39,42,39,43],[40,36,40,37],[40,38,40,41],[40,42,40,43],[34,18,34,35],[34,36,36,37],[34,38,36,41],[34,42,36,43],[35,18,35,35],[37,18,37,35],[37,36,38,37],[37,38,38,41],[37,42,38,43],[41,18,41,35],[41,36,41,37],[41,38,41,41],[41,42,41,43],[42,36,45,37],[42,38,45,41],[42,42,45,43],[44,18,44,35],[45,18,45,35],[50,36,52,37],[50,38,52,41],[50,42,52,43],[53,1,53,43],[72,0,72,45],[46,36,47,37],[46,38,47,41],[46,42,47,43],[48,36,49,37],[48,38,49,41],[48,42,49,43],[88,22,88,27],[88,28,88,42],[89,28,89,42],[90,28,90,42],[73,0,73,45],[74,0,74,45],[64,0,64,43],[75,0,75,43],[76,0,76,43],[77,0,77,43],[82,1,82,5],[81,22,81,27],[81,28,81,42],[82,28,82,42],[83,28,83,42],[84,28,84,42],[85,28,85,42],[86,28,86,42],[87,28,87,42],[82,22,82,27],[86,1,86,5],[107,0,107,43],[116,0,116,43],[120,1,120,43],[91,28,91,42],[92,28,92,42],[93,28,93,42],[94,28,94,42],[95,28,95,42],[96,28,96,42],[91,22,91,27]]}
[]
[{"$f":"基本情報!A5","v":"第６種オープンコンピュータ通信網サービス　IP1/forVPN/動的IP　契約申込書（新規）"}]
["申し込みにあたって、必ずお読みください"]
[]
["OCNサービスは（以下、「本サービス」）は当社の定める「IP通信網サービス契約約款」に基づき提供させて頂いております。\n本サービスの申込みにつきましては「IP通信網サービス契約約款」、各種利用規約、及び「重要事項に関する説明」「個人情報取り扱い」の内容を事前にお読みいただき、承諾された上で、お申込みください。契約約款は弊社各支店、営業窓口及びホームページで公開しておりますが、詳細な内容につきましては弊社販売担当者等にご確認ください。「個人情報取り扱い」の内容に関してはホームページ（https://www.ntt.com/about-us/hp/privacy.html）にて公開しております。　　\n\n本申込書はOCN第６種 固定IP1及び、for VPNの契約申込書となります。\nサービスの詳細につきましてはOCNサービスのホームページ（http://www.ntt.com/business/services/network/internet-connect/ocn-business.html）で必ずご確認下さい。"]
[]
[null,"＜アクセスライン別対応表＞"]
[null,"サービスタイプ",null,null,null,null,null,null,null,null,null,null,null,null,null,null,null,null,null,null,null,null,null,null,null,null,null,null,null,null,null,null,null,null,null,null,"新設",null,"アクセスプラン変更",null,null,null,"移転"]
[null,"IP1",null,null,"ＯＣＮ光【光一括提供型】",null,null,null,null,null,null,null,null,null,null,null,null,null,"ファミリー１００Ｍ／２００Ｍ／１G",null,null,null,null,null,null,null,null,null,null,null,null,null,null,null,null,null,"○",null,"○",null,null,null,"○"]
[null,null,null,null,null,null,null,null,null,null,null,null,null,null,null,null,null,null,"マンション１００Ｍ／２００Ｍ／１G"]
[null,null,null,null,"ＯＣＮＡＤＳＬアクセス",null,null,null,null,null,"「フレッツ」プラン",null,null,null,null,null,null,null,"１Ｍ／１．５Ｍ／８Ｍ／１２Ｍ／２４Ｍ／４０Ｍ／４７Ｍタイプ",null,null,null,null,null,null,null,null,null,null,null,null,null,null,null,null,null,"○",null,"○",null,null,null,"○"]
[null,null,null,null,null,null,null,null,null,null,null,null,null,null,null,null,null,null,"ビジネスタイプ"]
[null,null,null,null,"ＯＣＮＩＳＤＮアクセス",null,null,null,null,null,"「フレッツ」プラン"]
[null,null,null,null,"ＯＣＮ光アクセス",null,null,null,null,null,"「Ｂフレッツ」プラン",null,null,null,null,null,null,null,"ニューファミリー／ファミリー１００",null,null,null,null,null,null,null,null,null,null,null,null,null,null,null,null,null,"△",null,"△",null,null,null,"△"]
[null,null,null,null,null,null,null,null,null,null,null,null,null,null,null,null,null,null,"ベーシックタイプ"]
[null,null,null,null,null,null,null,null,null,null,null,null,null,null,null,null,null,null,"ビジネスタイプ"]
[null,null,null,null,null,null,null,null,null,null,null,null,null,null,null,null,null,null,"ビル・マンションタイプ",null,null,null,null,null,null,null,null,null,null,null,null,null,null,null,null,null,"○",null,"○",null,null,null,"○"]
[null,null,null,null,null,null,null,null,null,null,"「フレッツ・光プレミアム」プラン",null,null,null,null,null,null,null,"ファミリータイプ",null,null,null,null,null,null,null,null,null,null,null,null,null,null,null,null,null,"×",null,"△",null,null,null,"△"]
[null,null,null,null,null,null,null,null,null,null,null,null,null,null,null,null,null,null,"マンションタイプ",null,null,null,null,null,null,null,null,null,null,null,null,null,null,null,null,null,"×",null,"○",null,null,null,"○"]
[null,null,null,null,null,null,null,null,null,null,null,null,null,null,null,null,null,null,"エンタープライズタイプ",null,null,null,null,null,null,null,null,null,null,null,null,null,null,null,null,null,"×",null,"△",null,null,null,"△"]
[null,null,null,null,null,null,null,null,null,null,"「フレッツ光ネクスト」プラン",null,null,null,null,null,null,null,"ファミリータイプ／ファミリー・スーパーハイスピードタイプ　隼※1",null,null,null,null,null,null,null,null,null,null,null,null,null,null,null,null,null,"○",null,"○",null,null,null,"○"]
[null,null,null,null,null,null,null,null,null,null,null,null,null,null,null,null,null,null,"マンションタイプ／マンション・スーパーハイスピードタイプ　隼※1 "]
[null,null,null,null,null,null,null,null,null,null,null,null,null,null,null,null,null,null,"ビジネスタイプ"]
[null,null,null,null,null,null,null,null,null,null,"「フレッツ・光ライト」プラン",null,null,null,null,null,null,null,"ファミリータイプ"]
[null,null,null,null,null,null,null,null,null,null,null,null,null,null,null,null,null,null,"マンションタイプ"]
[null,null,null,null,"ＯＣＮＡＤＳＬサービス（Ｆ）",null,null,null,null,null,null,null,null,null,null,null,null,null,"１．５Ｍ／８Ｍ／１２Ｍ／２４Ｍ／４０Ｍ／４７Ｍ",null,null,null,null,null,null,null,null,null,null,null,null,null,null,null,null,null,"○",null,"○",null,null,null,"○"]
[null,null,null,null,null,null,null,null,null,null,null,null,null,null,null,null,null,null,"ビジネス４０Ｍ／ビジネス４７Ｍ"]
[null,null,null,null,"ＯＣＮ光サービス（Ｆ）",null,null,null,null,null,"「Ｂフレッツ」タイプ",null,null,null,null,null,null,null,"ファミリータイプ（ファミリ１００）",null,null,null,null,null,null,null,null,null,null,null,null,null,null,null,null,null,"×",null,"×",null,null,null,"×"]
[null,null,null,null,null,null,null,null,null,null,null,null,null,null,null,null,null,null,"ベーシックタイプ"]
[null,null,null,null,null,null,null,null,null,null,null,null,null,null,null,null,null,null,"ビジネスタイプ"]
[null,null,null,null,null,null,null,null,null,null,"「光ネクスト」タイプ",null,null,null,null,null,null,null,"ファミリータイプ／ファミリー・ハイスピードタイプ\n／ファミリー・スーパーハイスピードタイプ　隼※1",null,null,null,null,null,null,null,null,null,null,null,null,null,null,null,null,null,"○",null,"○",null,null,null,"○"]
[null,null,null,null,null,null,null,null,null,null,null,null,null,null,null,null,null,null,"ビジネスタイプ"]
[null,"forVPN",null,null,"ＯＣＮ光【光一括提供型】",null,null,null,null,null,null,null,null,null,null,null,null,null,"ファミリー１００Ｍ／２００Ｍ／１G",null,null,null,null,null,null,null,null,null,null,null,null,null,null,null,null,null,"○",null,"○",null,null,null,"○"]
[null,null,null,null,null,null,null,null,null,null,null,null,null,null,null,null,null,null,"マンション１００Ｍ／２００Ｍ／１G"]
[null,null,null,null,"ＯＣＮＡＤＳＬアクセス",null,null,null,null,null,"「フレッツ」プラン",null,null,null,null,null,null,null,"１Ｍ／１．５Ｍ／８Ｍ／１２Ｍ／２４Ｍ／４０Ｍ／４７Ｍタイプ",null,null,null,null,null,null,null,null,null,null,null,null,null,null,null,null,null,"○",null,"○",null,null,null,"○"]
[null,null,null,null,null,null,null,null,null,null,null,null,null,null,null,null,null,null,"ビジネスタイプ"]
[null,null,null,null,"ＯＣＮＩＳＤＮアクセス",null,null,null,null,null,"「フレッツ」プラン"]
[null,null,null,null,"ＯＣＮ光アクセス",null,null,null,null,null,"「Ｂフレッツ」プラン",null,null,null,null,null,null,null,"ニューファミリー／ファミリー１００",null,null,null,null,null,null,null,null,null,null,null,null,null,null,null,null,null,"△",null,"△",null,null,null,"△"]
[null,null,null,null,null,null,null,null,null,null,null,null,null,null,null,null,null,null,"ベーシックタイプ"]
[null,null,null,null,null,null,null,null,null,null,null,null,null,null,null,null,null,null,"ビル・マンションタイプ",null,null,null,null,null,null,null,null,null,null,null,null,null,null,null,null,null,"○",null,"○",null,null,null,"○"]
[null,null,null,null,null,null,null,null,null,null,"「フレッツ・光プレミアム」プラン",null,null,null,null,null,null,null,"ファミリータイプ",null,null,null,null,null,null,null,null,null,null,null,null,null,null,null,null,null,"×",null,"△",null,null,null,"△"]
[null,null,null,null,null,null,null,null,null,null,null,null,null,null,null,null,null,null,"マンションタイプ",null,null,null,null,null,null,null,null,null,null,null,null,null,null,null,null,null,"×",null,"○",null,null,null,"○"]
[null,null,null,null,null,null,null,null,null,null,"「フレッツ光ネクスト」プラン",null,null,null,null,null,null,null,"ファミリータイプ／ファミリー・スーパーハイスピードタイプ　隼※1",null,null,null,null,null,null,null,null,null,null,null,null,null,null,null,null,null,"○",null,"○",null,null,null,"○"]
[null,null,null,null,null,null,null,null,null,null,null,null,null,null,null,null,null,null,"マンションタイプ／マンション・スーパーハイスピードタイプ　隼※1 "]
[null,null,null,null,null,null,null,null,null,null,"「フレッツ・光ライト」プラン",null,null,null,null,null,null,null,"ファミリータイプ"]
[null,null,null,null,null,null,null,null,null,null,null,null,null,null,null,null,null,null,"マンションタイプ"]
[null,null,null,null,"ＯＣＮＡＤＳＬサービス（Ｆ）",null,null,null,null,null,null,null,null,null,null,null,null,null,"１．５Ｍ／８Ｍ／１２Ｍ／２４Ｍ／４０Ｍ／４７Ｍ",null,null,null,null,null,null,null,null,null,null,null,null,null,null,null,null,null,"○",null,"○",null,null,null,"○"]
[null,null,null,null,null,null,null,null,null,null,null,null,null,null,null,null,null,null,"ビジネス４０Ｍ／ビジネス４７Ｍ"]
[null,null,null,null,"ＯＣＮ光サービス（Ｆ）",null,null,null,null,null,"「Ｂフレッツ」タイプ",null,null,null,null,null,null,null,"ファミリータイプ（ファミリ１００）",null,null,null,null,null,null,null,null,null,null,null,null,null,null,null,null,null,"×",null,"×",null,null,null,"×"]
[null,null,null,null,null,null,null,null,null,null,null,null,null,null,null,null,null,null,"ベーシックタイプ"]
[null,null,null,null,null,null,null,null,null,null,"「光ネクスト」タイプ",null,null,null,null,null,null,null,"ファミリータイプ",null,null,null,null,null,null,null,null,null,null,null,null,null,null,null,null,null,"○",null,"○",null,null,null,"○"]
[null,null,null,null,null,null,null,null,null,null,null,null,null,null,null,null,null,null,"ファミリー・ハイスピードタイプ"]
[null,null,null,null,null,null,null,null,null,null,null,null,null,null,null,null,null,null,"ファミリー・スーパーハイスピードタイプ　隼※1"]
[null,"※1：ファミリー・エクスプレスタイプ/マンション・エクスプレスタイプは平成24年10月1日よりファミリー・スーパーハイスピードタイプ　隼/マンション・スーパーハイスピードタイプ　隼に名称変更いたしました。"]
[null,"○＝提供可能     △＝アクセス回線をお客さまでご用意できる場合のみ提供可能       ×＝提供不可"]
[]
["●OCN第６種 固定IP1／for VPNの提供条件に関する留意事項（必ずご確認下さい）。"]
["・OCN　IP1／for VPNのお申込は1タイプにつき1つのOCNサービス契約を申込みいただきます。なお、申込者は1のOCN契約につき1名（1組織）に限ります。"]
["・日本国内で住所、所在地等を確認できるお客様に限ります。"]
["・他のお客様のご迷惑になる行為は制限させていただきます。"]
["・最低ご利用期間は1ヶ月です。月額料金につきましては日割り計算を行います。"]
["・本プランでは、ドメイン名代行申請やドメインの逆引き設定等、お客様が自営でサーバを運用される際のサポートをしておりませんので、ご了承ください。"]
["・他OCNサービス（第２種OCN（OCNダイヤルアクセス）、第６種「OCN ISDNアクセスIP１「フレッツ」プラン」等）から変更（切り替え）するお客さまへ"]
[" 第2種OCN（OCNダイヤルアクセス）からの移行については本申込書で受付けておりますので、ご希望のお客様は本申込書にてご記入ください。"]
["・ご利用開始後にご利用場所住所・ご利用場所事業所名に変更が発生した場合は、お客さまにてNTT東日本/ＮＴＴ西日本会社へ移転申込み実施後、OCNへ変更申込み願います。"]
[]
["●ＮＴＴ東日本/ＮＴＴ西日本が提供する「フレッツ光ライト」の利用に関する留意事項（必ずご確認ください）"]
["以下の場合、NTT西日本/NTT東日本が提供する「フレッツ光ライト」の利用料が上限まで増える場合がありますので、お申込み･ご利用の際はご注意ください。"]
["・","電子メールの送受信、ホームページ閲覧等を一切行わない場合であっても、ご利用の端末やソフトウェアの機能により自動的に通信が行われる場合。"]
["・","外部からの不正アタックを受けた場合。"]
["・","フレッツ光ネクスト回線とフレッツ光ライト回線をお持ちで、これらを取り違えて接続/利用した場合。"]
["●OCN契約タイプに関する留意事項（必ずご確認下さい）\n　　　　"]
["・本申込書はOCN第６種のフレッツ別契約型、フレッツ一括提供型〔（Ｆ）サービス〕の契約申込書です。OCNの契約タイプにつきましては以下を参照ください。"]
["・OCNのプランとフレッツのタイプが異なる場合には、通信することができません。"]
["・お申込み頂くOCN光アクセス固定IPプラン及びfor VPNのプランは、必ず実際にご利用になるフレッツのタイプと同一のものをお申込み下さい。"]
["　※OCN契約タイプを申込まれる前には必ず、NTT東日本／NTT西日本会社から送付される「お申込内容のご案内」にて、お申込みされたご利用サービス名を必ずご確認の上、お申込み下さい。"]
["・認証ドメインの変更有無に関らず、ＮＴＴ東日本/西日本会社の変更工事完了とともに接続できない状態になる可能性があるため、ＮＴＴ東日本/西日本会社へのお申込み後に、OCNへ変更申込みを提出してください。"]
["　※OCN契約タイプを申込まれる前には必ず、NTT東日本／NTT西日本会社から送付される「お申込内容のご案内」にて、お申込みされたご利用サービス名を必ずご確認の上、お申込み下さい。"]
[]
[null,"【本申込書で対応するＯＣＮ契約タイプ】"]
[null,"　＜フレッツ別契約型　＞",null,null,null,null,null,null,null,null,null,null,null,null,null,null,null,null,null,null,null,null,"＜OCN光【光一括提供型】＞"]
[null,"プラン",null,null,null,null,"OCN契約タイプ",null,null,null,null,null,null,null,null,null,null,null,null,null,null,null,"プラン",null,null,null,null,null,"OCN契約タイプ"]
[null,"forVPN/動的IP",null,null,null,null,"OCN ISDNアクセスfor VPN  「フレッツ」プラン ",null,null,null,null,null,null,null,null,null,null,null,null,null,null,null,"forVPN/動的IP",null,null,null,null,null,"OCN 光 100M for VPN"]
[null,null,null,null,null,null,"OCN ADSLアクセス「フレッツ」プラン　for VPN ",null,null,null,null,null,null,null,null,null,null,null,null,null,null,null,null,null,null,null,null,null,"OCN 光 200M for VPN"]
[null,null,null,null,null,null,"OCN光「フレッツ」for VPN",null,null,null,null,null,null,null,null,null,null,null,null,null,null,null,null,null,null,null,null,null,"OCN 光 1G for VPN"]
[null,null,null,null,null,null,"OCN光「フレッツ」 IPoE 動的IP",null,null,null,null,null,null,null,null,null,null,null,null,null,null,null,null,null,null,null,null,null,"OCN 光 IPoE 100M 動的IP"]
[null,"動的IP(ex)",null,null,null,null,"OCN光「フレッツ」 IPoE 動的IP(ex)",null,null,null,null,null,null,null,null,null,null,null,null,null,null,null,null,null,null,null,null,null,"OCN 光 IPoE 200M 動的IP"]
[null,"IP1 ",null,null,null,null,"OCN ISDNアクセスIP1 「フレッツ」プラン",null,null,null,null,null,null,null,null,null,null,null,null,null,null,null,null,null,null,null,null,null,"OCN 光 IPoE 1G 動的IP"]
[null,null,null,null,null,null,"OCN ADSLアクセスIP1「フレッツ」プラン ",null,null,null,null,null,null,null,null,null,null,null,null,null,null,null,"動的IP(ex)",null,null,null,null,null,"OCN 光 IPoE 100M 動的IP(ex)"]
[null,null,null,null,null,null,"OCN光「フレッツ」IP1",null,null,null,null,null,null,null,null,null,null,null,null,null,null,null,null,null,null,null,null,null,"OCN 光 IPoE 200M 動的IP(ex)"]
[null,null,null,null,null,null,"OCN光「フレッツ」 IPoE IP1",null,null,null,null,null,null,null,null,null,null,null,null,null,null,null,null,null,null,null,null,null,"OCN 光 IPoE 1G 動的IP(ex)"]
[null,null,null,null,null,null,null,null,null,null,null,null,null,null,null,null,null,null,null,null,null,null,"IP1",null,null,null,null,null,"OCN 光 100M IP1"]
[null,"　＜フレッツ一括提供型〔（Ｆ）サービス〕＞",null,null,null,null,null,null,null,null,null,null,null,null,null,null,null,null,null,null,null,null,null,null,null,null,null,null,"OCN 光 200M IP1"]
[null,"プラン",null,null,null,null,"OCN契約タイプ",null,null,null,null,null,null,null,null,null,null,null,null,null,null,null,null,null,null,null,null,null,"OCN 光 1G IP1"]
[null,"forVPN",null,null,null,null,"OCN ADSLサービス for VPN （F）　タイプ",null,null,null,null,null,null,null,null,null,null,null,null,null,null,null,null,null,null,null,null,null,"OCN 光 IPoE 100M IP1"]
[null,null,null,null,null,null,"OCN光サービス(F) for VPN",null,null,null,null,null,null,null,null,null,null,null,null,null,null,null,null,null,null,null,null,null,"OCN 光 IPoE 200M IP1"]
[null,"IP1 ",null,null,null,null,"OCN ADSLサービスIP1（F）タイプ ",null,null,null,null,null,null,null,null,null,null,null,null,null,null,null,null,null,null,null,null,null,"OCN 光 IPoE 1G IP1"]
[null,null,null,null,null,null,"OCN光サービス(F) IP1"]
[]
[]
[]
["●フレッツ一括提供型〔（Ｆ）サービス〕に関する留意事項（必ずご確認下さい）"]
["・お客さまのご利用場所住所がフレッツサービスの提供エリアであることを、予めご確認の上、お申込いただきます。"]
["・NTT東日本・西日本会社が提供するフレッツ回線設置工事については、標準日程の設定はありません。\n　"]
["　（1）ADSLサービスの場合"]
["　　ご利用場所移転のお申込みをいただいた日付から回線工事が3週間以上の日数が必要となりますのでご了承ください。　"]
["　（2）光サービスの場合"]
["　ご利用開始までに必要な日数として、お申込みいただいた日付から１．５ヶ月が目安となりますが、収容設備の空き状況等によりご利用開始までに数ヶ月必要となる場合がありますのでご了承ください。"]
["・既設フレッツサービスを本サービスで継続してご利用いただくことはできないため（設備充当不可）、新たにフレッツ回線を設置いたします。"]
["・フレッツ一括提供型〔（F)サービス〕で、光のアクセスタイプ（Bフレッツ、フレッツ光ネクスト等）をお申込の場合"]
["　　「光サービス受付票」と「OCN 光サービス/ADSLサービス（F）用保守申込書」を合わせてお申込み下さい。"]
["・フレッツ一括提供型〔（F)サービス〕で、フレッツADSLをお申込の場合"]
["　　「フレッツ・ADSL受付票」と「OCN 光サービス/ADSLサービス（F）用保守申込書」を合わせてお申込み下さい。"]
[]
["●付加サービスに関する留意事項（必ずご確認下さい）"]
["本回線に合わせて、以下の付加サービスをご利用のお客様は、該当の付加サービス申込書と合わせてお申込み下さい。"]
["また、その他の付加サービスにつきましてはOCNサービスのホームページ（http://www.ntt.com/business/services/network/internet-connect/ocn-business.html）でご確認下さい。"]
[]
["●レンタル機器について"]
["・","お客様による設定変更はできません。（IPoE対応ルータ01を除く）"]
[null,"その為、お客様のネットワーク環境の見直し等の理由により、設定変更が必要となった場合は変更申込みが必要となり、変更申込書および設定調書の提出が必要です。なお、設定変更には変更工事費が必要となります。"]
["・","日本国内のみ利用が可能です。"]
["・","SLAの対象外です。"]
[null,"レンタル機器故障等の理由により、SLAが適用されるOCNサービスが利用できない状況が生じた場合も、ご利用料金の減額、返還はいたしません。"]
["・","弊社の都合により予告なく変更になる場合があります。"]
["・","レンタル機器設置工事日に、アクセスライン工事未完了等の理由により、機器設置工事が実施できず再工事が発生した場合には、再工事実施時間帯に応じた"]
[null,"工事料金を加算請求します。"]
["・","レンタル機器の工事をお客様設置にてお申込みの場合、レンタル機器到着後、ご利用開始日までに、通信ができることの確認を実施してください。"]
[null,"ご利用開始日以降にレンタル機器に異常があることが確認された場合、ご利用料金の返還、減額はいたしません。"]
[null,"また、お客様のご都合により、レンタル機器のお受け取りができなかった場合も、ご利用料金の返還、減額はいたしません。"]

{"sheet":"基本情報","index":2,"n_rows":118,"n_cols":61,"rows_kept":118,"cut":false,"hidden":false,"merged":[[89,8,89,12],[89,13,89,32],[88,13,88,32],[83,0,91,5],[89,33,89,51],[80,0,80,51],[104,0,104,51],[112,0,112,51],[5,1,6,51],[7,1,7,51],[25,6,25,12],[23,6,23,12],[24,6,24,12],[26,6,26,12],[23,0,26,5],[61,6,61,12],[63,6,63,12],[59,6,59,12],[60,6,60,12],[62,6,62,12],[59,0,63,5],[47,0,47,51],[88,33,88,51],[90,13,90,32],[91,8,91,12],[90,8,90,12],[100,33,100,51],[93,0,93,12],[93,13,93,51],[97,0,97,12],[97,13,97,32],[97,33,97,51],[98,0,98,12],[98,13,98,32],[98,33,98,51],[99,0,99,12],[99,13,99,32],[99,33,99,51],[94,0,94,12],[94,13,94,51],[90,33,90,51],[91,13,91,32],[91,33,91,51],[100,0,100,12],[100,13,100,32],[83,33,83,51],[84,33,84,51],[85,13,85,40],[85,41,85,51],[86,13,86,32],[86,33,86,51],[87,13,87,32],[87,33,87,51],[84,6,84,12],[85,6,85,12],[86,6,86,12],[87,6,87,12],[83,13,83,32],[84,13,84,32],[83,6,83,12],[79,0,79,51],[81,0,82,5],[82,6,82,12],[81,6,81,12],[81,13,81,32],[81,33,81,51],[82,13,82,32],[82,33,82,51],[70,0,78,5],[70,13,70,32],[70,33,70,51],[70,6,70,12],[72,6,72,12],[72,13,72,40],[72,41,72,51],[73,6,73,12],[73,13,73,32],[78,33,78,51],[73,33,73,51],[74,6,74,12],[74,13,74,32],[74,33,74,51],[75,6,75,12],[75,13,75,32],[75,33,75,51],[76,6,76,12],[76,13,76,32],[76,33,76,51],[77,33,77,51],[77,6,78,7],[77,13,77,32],[78,13,78,32],[78,8,78,12],[77,8,77,12],[63,33,63,51],[66,0,66,51],[68,0,68,12],[68,13,68,32],[68,33,68,51],[69,0,69,12],[69,13,69,32],[69,33,69,51],[71,6,71,12],[71,13,71,32],[71,33,71,51],[67,0,67,51],[34,0,34,12],[34,13,34,32],[64,0,64,51],[65,0,65,12],[65,13,65,32],[65,33,65,51],[46,0,46,51],[63,13,63,32],[48,0,54,5],[49,6,49,12],[50,6,50,12],[51,6,51,12],[52,6,52,12],[48,6,48,12],[54,6,54,12],[53,6,53,12],[55,0,57,5],[55,6,55,12],[56,6,56,12],[57,6,57,12],[48,13,48,32],[49,13,49,32],[50,13,50,40],[56,33,56,51],[62,33,62,51],[51,13,51,32],[52,13,52,32],[53,13,53,32],[54,13,54,32],[55,13,55,32],[56,13,56,32],[57,13,57,32],[60,13,60,32],[60,33,60,51],[61,13,61,32],[61,33,61,51],[55,33,55,51],[52,33,52,51],[53,33,53,51],[54,33,54,51],[59,33,59,51],[33,33,33,51],[33,0,33,12],[21,13,21,32],[21,33,21,51],[30,13,30,32],[29,0,29,51],[16,43,16,51],[25,13,25,32],[25,33,25,51],[32,0,32,12],[32,13,32,32],[44,0,45,5],[36,13,36,32],[36,33,36,51],[38,13,38,32],[38,33,38,51],[38,0,38,12],[43,0,43,51],[41,6,41,12],[40,6,40,12],[40,13,40,32],[40,33,40,51],[36,0,36,12],[41,13,41,32],[41,33,41,51],[45,13,45,32],[45,33,45,51],[37,0,37,51],[39,0,39,51],[44,6,44,12],[45,6,45,12],[44,13,44,32],[44,33,44,51],[13,13,13,32],[13,33,13,51],[12,0,12,51],[14,0,14,5],[15,0,15,12],[15,13,15,38],[16,0,16,12],[40,0,41,5],[42,0,42,12],[42,13,42,32],[42,33,42,51],[34,33,34,51],[35,0,35,51],[16,13,16,38],[22,0,22,51],[30,0,30,12],[26,13,26,32],[26,33,26,51],[30,33,30,51],[17,0,17,5],[28,0,28,51],[31,0,31,12],[32,33,32,51],[33,13,33,32],[2,28,2,31],[2,32,2,39],[2,40,2,43],[2,44,2,51],[9,33,9,51],[9,13,9,32],[31,13,31,32],[31,33,31,51],[24,13,24,32],[24,33,24,51],[10,33,10,51],[11,13,11,32],[11,33,11,51],[15,39,16,42],[14,6,14,51],[23,13,23,32],[10,0,10,12],[15,43,15,51],[17,6,17,51],[21,6,21,12],[20,6,20,12],[19,6,19,12],[18,6,18,12],[18,0,21,5],[9,0,9,12],[11,0,11,12],[23,33,23,51],[10,13,10,32],[4,0,4,51],[96,0,96,51],[101,0,101,12],[101,13,101,32],[101,33,101,51],[62,13,62,32],[48,33,48,51],[49,33,49,51],[50,41,50,51],[51,33,51,51],[57,33,57,51],[58,0,58,51],[59,13,59,32],[18,13,18,32],[18,33,18,51],[19,13,19,40],[19,41,19,51],[20,13,20,32],[20,33,20,51],[13,0,13,12],[102,0,102,12],[102,13,102,32],[88,6,91,7],[102,33,102,51],[105,6,105,12],[105,13,105,32],[105,33,105,51],[105,0,111,5],[92,0,92,51],[111,6,111,12],[111,13,111,32],[111,33,111,51],[109,6,109,12],[109,13,109,32],[106,6,106,12],[106,13,106,32],[106,33,106,51],[107,6,107,12],[107,13,107,32],[88,8,88,12],[110,13,110,32],[110,33,110,51],[107,33,107,51],[109,33,109,51],[108,33,108,51],[108,6,108,12],[108,13,108,32],[113,0,117,5],[113,6,113,12],[113,13,113,32],[113,33,113,51],[114,6,114,12],[114,13,114,32],[114,33,114,51],[115,6,115,12],[115,13,115,32],[115,33,115,51],[116,6,116,12],[116,13,116,32],[116,33,116,51],[117,6,117,12],[117,13,117,32],[117,33,117,51],[110,6,110,12]]}
[null,null,null,null,null,null,null,null,null,null,null,null,null,null,null,null,null,null,null,null,null,null,null,null,null,null,null,null,null,null,null,null,null,null,null,null,null,null,null,null,null,null,null,null,null,null,null,null,null,null,null,{"$f":"CONCATENATE($BC$1,$BD$1,$BE$1,$BF$1)","v":"Ver.1.02B(2020/11/30)"},null,null,"Ver.","1.02","B","(2020/11/30)"]
[null,null,null,null,null,null,null,null,null,null,null,null,null,null,null,null,null,null,null,null,null,null,null,null,null,null,null,null,null,null,null,null,null,null,null,null,null,null,null,null,null,null,null,null,null,null,null,null,null,null,null,null,null,null,"サービス","forVPN/動的IP",{"$f":"IF($BD$2=\"forVPNライト\",1,IF($BD$2=\"IP1/forVPN\",2,IF($BD$2=\"IP8以上\",3,2)))","v":2}]
[null,null,null,null,null,null,null,null,null,null,null,null,null,null,null,null,null,null,null,null,null,null,null,null,null,null,null,null,"オーダ管理番号",null,null,null,null,null,null,null,null,null,null,null,"オーダ登録番号",null,null,null,null,null,null,null,null,null,null,null,null,null,"異動種別","新設","-"]
[]
["第６種オープンコンピュータ通信網サービス　IP1/forVPN/動的IP　契約申込書（新規）"]
["レ","NTTコミュニケーションズ株式会社の定める｢IP通信網サービス契約約款（https://www.ntt.com/about-us/disclosure/tariff/yakkan/ip.html）｣｢重要事項に関する説明｣｢各種利用規約｣｢お申込みに関する注意事項｣の内容について承諾の上、下記のとおり申し込みます｡個人情報の取扱いについては、「プライバシーポリシー（https://www.ntt.com/about-us/hp/privacy.html）」の内容を承諾します。",null,null,null,null,null,null,null,null,null,null,null,null,null,null,null,null,null,null,null,null,null,null,null,null,null,null,null,null,null,null,null,null,null,null,null,null,null,null,null,null,null,null,null,null,null,null,null,null,null,null,null,null,"アクセスタイプ：(F)","アクセスタイプ：光コラボ","回線が光ネクスト","フレッツ・ISDN","forVPN/動的IP\nかつ光コラボ","IPoEメニュー","動的IP(ex)かつ光コラボ"]
[null,null,null,null,null,null,null,null,null,null,null,null,null,null,null,null,null,null,null,null,null,null,null,null,null,null,null,null,null,null,null,null,null,null,null,null,null,null,null,null,null,null,null,null,null,null,null,null,null,null,null,null,null,null,{"$f":"COUNTIF($N$32,\"*(F)*\")>0","v":false},{"$f":"COUNTIF($N$32,\"*OCN光【光一括提供型】*\")>0","v":false},{"$f":"COUNTIF($BD$33,\"*hn*\")>0","v":true},{"$f":"$N$32=\"フレッツ・ISDN\"","v":false},{"$f":"$BD$33=\"forVPNhnc\"","v":false},{"$f":"COUNTIF($N$32,\"*IPoE*\")>0","v":true},{"$f":"$BD$33=\"dexhnc\"","v":false}]
[null,"※必ずチェックを入れてください。チェックがない場合はお申込みいただけません。"]
[]
["お申込年月日（必須）",null,null,null,null,null,null,null,null,null,null,null,null,null,null,null,null,null,null,null,null,null,null,null,null,null,null,null,null,null,null,null,null,"YYYY/MM/DD（半角）"]
["開通希望年月日（必須）",null,null,null,null,null,null,null,null,null,null,null,null,null,null,null,null,null,null,null,null,null,null,null,null,null,null,null,null,null,null,null,null,"YYYY/MM/DD（半角）\n※OCNサービスの課金開始日となります。\n※手続き上、お客様のご利用開始希望年月日に添えない場合があります。\n\n【IPoEプランについて】\n※お申込みいただく日付から、端末種別により、以下の日数以降の土日祝日を除く日付をご記入ください。\n　　IPoE対応ルータ01：　7営業日\n　　IPoE対応ルータ02：　(オンサイト工事) 14営業日、（お客様工事） 10営業日\n　　自営端末           ：  4営業日\n※フレッツ回線新規（又はOCN光における光回線新規）と同時の場合、OCN開通希望年月日はフレッツ回線（光回線）工事日の「2営業日後」以降の土日祝日を除く日付をご記入ください。\n※フレッツ回線情報誤り(名義等不一致）や該当フレッツ回線が他サービスオーダ中の場合は東西工事がNGとなるため、開通希望日に開通できないことがあります。\n\n【PPPoEプランについて】\n※お申込みいただく日付から6営業日以降の土日祝日を除く日付をご記入ください。\n\n【（Ｆ）について】\n※フレッツ回線工事希望日の１営業日後を基本とします。"]
["お客さま番号",null,null,null,null,null,null,null,null,null,null,null,null,null,null,null,null,null,null,null,null,null,null,null,null,null,null,null,null,null,null,null,null,"※記入不要（ＮＴＴ－Ｃｏｍ記入欄）"]
["共通顧客ID"]
["共通顧客ID（必須）",null,null,null,null,null,null,null,null,null,null,null,null,"C1234567890",null,null,null,null,null,null,null,null,null,null,null,null,null,null,null,null,null,null,null,"C＋半角数字10桁"]
["ご契約者名",null,null,null,null,null,"※新規開通時（開通後にご契約者名の変更をOCNにしている場合はその名義）に申込まれた名義をご記入ください。\n　または登記簿謄本（抄本）に登録されているご契約者名をご記入ください。\n※本申込書には必ず押印をお願い致します。"]
["フリガナ（必須）",null,null,null,null,null,null,null,null,null,null,null,null,null,null,null,null,null,null,null,null,null,null,null,null,null,null,null,null,null,null,null,null,null,null,null,null,null,null,null,null,null,null,"全角35桁以内"]
["契約者名（必須）",null,null,null,null,null,null,null,null,null,null,null,null,null,null,null,null,null,null,null,null,null,null,null,null,null,null,null,null,null,null,null,null,null,null,null,null,null,null,null,null,null,null,"全角40桁以内\n※正式名称を40文字以内でご記入いただきますが、弊社の都合により、名称を省略させていただくことがありますので、ご了承ください。"]
["ご契約者住所",null,null,null,null,null,"※個人の場合は戸籍上のご住所、法人の場合は登記簿上のご住所を記入ください。"]
["ご住所（必須）",null,null,null,null,null,"郵便番号（必須）",null,null,null,null,null,null,null,null,null,null,null,null,null,null,null,null,null,null,null,null,null,null,null,null,null,null,"半角数字７桁"]
[null,null,null,null,null,null,"ご住所（必須）",null,null,null,null,null,null,null,null,null,null,null,null,null,null,null,null,null,null,null,null,null,null,null,null,null,null,null,null,null,null,null,null,null,null,"全角46桁以内\n※住所を都道府県からご記入ください。"]
[null,null,null,null,null,null,"番地（必須）",null,null,null,null,null,null,null,null,null,null,null,null,null,null,null,null,null,null,null,null,null,null,null,null,null,null,"全角20桁以内"]
[null,null,null,null,null,null,"ビル名等",null,null,null,null,null,null,null,null,null,null,null,null,null,null,null,null,null,null,null,null,null,null,null,null,null,null,"全角20桁以内"]
["事務担当者＜お申込に関するご連絡先＞"]
["連絡先",null,null,null,null,null,"部課名",null,null,null,null,null,null,null,null,null,null,null,null,null,null,null,null,null,null,null,null,null,null,null,null,null,null,"全角20桁以内"]
[null,null,null,null,null,null,"担当者名（必須）",null,null,null,null,null,null,null,null,null,null,null,null,null,null,null,null,null,null,null,null,null,null,null,null,null,null,"全角10桁以内"]
[null,null,null,null,null,null,"電話番号（必須）",null,null,null,null,null,null,null,null,null,null,null,null,null,null,null,null,null,null,null,null,null,null,null,null,null,null,"ハイフンを含む半角10桁～13桁\n（数字、ハイフンのみ）"]
[null,null,null,null,null,null,"e-mail（必須）",null,null,null,null,null,null,null,null,null,null,null,null,null,null,null,null,null,null,null,null,null,null,null,null,null,null,"半角英数64桁以内\n※ご契約に関する連絡用として、既存のメールアドレスをご記入ください。\n※ご担当者が複数の場合は、カンマで区切りで記入ください。\n※メールアドレスをお持でない方は「a@a」をご記入ください。"]
[]
["お申込みタイプ"]
["【契約タイプについて】\n※以下で選択いただいたＮＴＴ東日本/ＮＴＴ西日本会社の提供するフレッツの「アクセスタイプ」によりOCNの提供メニューを決定いたします。\n   お申込み内容に相違がある場合は、通信ができないこととなりますので、ご注意ください。\n\n※ＮＴＴ東日本/ＮＴＴ西日本会社のアクセスタイプとOCN契約タイプが不一致の場合は通信が出来ませんので、ご注意下さい。\n　（「OCN契約タイプ」や「IP種別」、「ＮＴＴ東日本/NTT西日本会社のアクセスタイプ」が変更となった場合は必ずご連絡ください。）\n\n※NTT東日本のフレッツ 光ネクスト ギガファミリー/ギガマンション・スマートタイプ、ファミリー/マンション・ギガラインタイプをご利用される場合は、対応する契約タイプをご選択ください。\n　 ハイスピードタイプ等、異なる契約タイプを選択された場合は通信が出来ませんのでご注意願います。"]
["IP種別（必須）",null,null,null,null,null,null,null,null,null,null,null,null,"forVPN/動的IP",null,null,null,null,null,null,null,null,null,null,null,null,null,null,null,null,null,null,null,"選択してください"]
["アクセスタイプ（必須）",null,null,null,null,null,null,null,null,null,null,null,null,"フレッツ 光ネクスト(IPoE ワイドプラン)",null,null,null,null,null,null,null,null,null,null,null,null,null,null,null,null,null,null,null,"選択してください\n※Bフレッツ、光プレミアムをご利用の場合、接続設定時に認証IDのドメイン部分の変更が必要となります。（「サービス名称の変更について」（２）を参照願います。）\n※(F)サービスを選択の場合、本申込書へのご記入に加え、「フレッツ受付票」と「OCN 光サービス/ADSLサービス(F)用保守申込書」のご記入をお願いします。\n※(F)ADSLサービスについては、光ネクスト提供エリアでのご利用はできません。",null,null,null,null,null,null,null,null,null,null,null,null,null,null,null,null,null,null,null,null,"アクセスタイプ\n【リスト】",{"$f":"IF(OR($N$31=\"IP32\",$N$31=\"IP64\"),\"list_AL_4\",IF($N$31=\"forVPNライト\",\"list_AL_3\",IF($N$31=\"動的IP(ex)\",\"list_AL_2\",\"list_AL_1\")))","v":"list_AL_1"},null,null,"契約タイプ制御用\n合体名",{"$f":"__\\osApptypeIpTypeCd&__\\osApptypeAccesstypeCd","v":"forVPN/動的IPフレッツ 光ネクスト(IPoE ワイドプラン)"}]
["契約タイプ（必須）",null,null,null,null,null,null,null,null,null,null,null,null,null,null,null,null,null,null,null,null,null,null,null,null,null,null,null,null,null,null,null,null,"選択してください",null,null,null,null,null,null,null,null,null,null,null,null,null,null,null,null,null,null,null,null,"契約タイプ\n【リスト】",{"$f":"IF(ISERROR(VLOOKUP($BH$32,変換!B:C,2,FALSE)),\"null\",VLOOKUP($BH$32,変換!B:C,2,FALSE))","v":"forVPNhnIPoE"},"契約タイプ\n【条件付き書式】",{"$f":"$N$32<>\"フレッツ・ISDN\"","v":true}]
["OCN提供メニュー",null,null,null,null,null,null,null,null,null,null,null,null,{"$f":"IF(ISERROR(VLOOKUP($BH$34,OCNメニュー!$E:$G,2,FALSE)),\"\",VLOOKUP($BH$34,OCNメニュー!$E:$G,2,FALSE))","v":""},null,null,null,null,null,null,null,null,null,null,null,null,null,null,null,null,null,null,null,"記入不要",null,null,null,null,null,null,null,null,null,null,null,null,null,null,null,null,null,null,null,null,null,null,null,null,"提供メニュー/認証ドメイン\n検索用",{"$f":"__\\osApptypeIpTypeCd&__\\osApptypeAccesstypeCd&__\\osApptypeContracttypeCd","v":"forVPN/動的IPフレッツ 光ネクスト(IPoE ワイドプラン)"}]
["OCN認証ドメイン",null,null,null,null,null,null,null,null,null,null,null,null,{"$f":"IF(ISERROR(VLOOKUP($BH$34,OCNメニュー!$E:$G,3,FALSE)),\"\",VLOOKUP($BH$34,OCNメニュー!$E:$G,3,FALSE))","v":""},null,null,null,null,null,null,null,null,null,null,null,null,null,null,null,null,null,null,null,"記入不要"]
["２年自動更新型割引"]
["2年自動更新型割引希望有無（必須）",null,null,null,null,null,null,null,null,null,null,null,null,null,null,null,null,null,null,null,null,null,null,null,null,null,null,null,null,null,null,null,null,"※IP1のOCN光【光一括提供型】サービスを選択の場合は、希望有無を選択してください。",null,null,null,null,null,null,null,null,null,null,null,null,null,null,null,null,null,null,null,null,null,null,"2年自動更新型割引希望有無\n【条件付き書式】",{"$f":"OR(AND($BD$7=TRUE,$BG$7=FALSE,$BI$7=FALSE),AND($BD$33=\"null\",$BF$7=FALSE))","v":false}]
["お申込みパターン"]
["お申込みパターン（必須）",null,null,null,null,null,null,null,null,null,null,null,null,null,null,null,null,null,null,null,null,null,null,null,null,null,null,null,null,null,null,null,null,"選択してください"]
["■OCN同時廃止希望\n　※フレッツ一括提供型（F）につきましては本対応をしておりません。\n　※本OCN契約のご利用開始とは別に、第2種OCN契約の廃止希望年月日をご指定ください。\n　※第2種OCN契約ご利用料金の日割り計算はございません。\n　※廃止予定日以降（当日含む）、工事完了後にキャンセル（お申込前の状態への切り戻し）はできません。\n　ＮＴＴ東日本/ＮＴＴ西日本及び弊社には改めて申込み手続きいただきます事を予めご了承いただきます。（開通まで新規加入時同様の日数が必要となります。）"]
["OCN同時廃止希望",null,null,null,null,null,"お客さま番号\n（第2種OCN契約からの移行申込み）\n（必須）",null,null,null,null,null,null,null,null,null,null,null,null,null,null,null,null,null,null,null,null,null,null,null,null,null,null,"N＋半角数字9桁",null,null,null,null,null,null,null,null,null,null,null,null,null,null,null,null,null,null,null,null,null,null,"OCN同時廃止希望/アクセス回線充当有無\n【条件付き書式】",{"$f":"$N$39<>\"新規申込み\"","v":true}]
[null,null,null,null,null,null,"廃止希望年月日\n（必須）",null,null,null,null,null,null,null,null,null,null,null,null,null,null,null,null,null,null,null,null,null,null,null,null,null,null,"YYYY/MM/DD（半角）\n※OCN2種回線の廃止希望年月日をご記入ください。なお、回線の廃止日につきましては月末の日付をご指定ください。"]
["アクセス回線充当有無\n（第2種OCN契約からの移行申込み）（必須）",null,null,null,null,null,null,null,null,null,null,null,null,null,null,null,null,null,null,null,null,null,null,null,null,null,null,null,null,null,null,null,null,"選択してください\n※フレッツ別契約型のIPoEプランをお申込みの場合、選択してください。\n※第2種OCN契約にてご利用中のフレッツ回線(光回線)を、本OCN契約で継続してご利用される場合は「有」を選択してください。(CAFまたはCOPから始まる番号を継続してご利用される場合）",null,null,null,null,null,null,null,null,null,null,null,null,null,null,null,null,null,null,null,null,null,null,"アクセス回線充当有無\n【条件付き書式】",{"$f":"OR($N$32=\"\",AND($BD$7=FALSE,$BH$7=TRUE))","v":true}]
["NTT東日本/西日本　フレッツサービス申込み状況　 ※OCN光【光一括提供型】、（F）サービスを選択の方以外、ご記入ください。"]
["NTT東日本／NTT西日本フレッツ申込み状況",null,null,null,null,null,"開通済み／申込済み\n（必須）",null,null,null,null,null,null,null,null,null,null,null,null,null,null,null,null,null,null,null,null,null,null,null,null,null,null,"選択してください",null,null,null,null,null,null,null,null,null,null,null,null,null,null,null,null,null,null,null,null,null,null,"申込み状況\n【条件付き書式】",{"$f":"OR($N$32=\"\",AND($N$32<>\"\",$BC$7<>TRUE,$BD$7<>TRUE))","v":true}]
[null,null,null,null,null,null,"開通予定日\n（申込済み）（必須）",null,null,null,null,null,null,null,null,null,null,null,null,null,null,null,null,null,null,null,null,null,null,null,null,null,null,"YYYY/MM/DD（半角）",null,null,null,null,null,null,null,null,null,null,null,null,null,null,null,null,null,null,null,null,null,null,"開通予定日\n【条件付き書式】",{"$f":"OR($N$45=\"\",$N$45<>\"開通済み\")","v":true}]
["ご利用場所　※（F）サービスを選択の方は、別紙の「フレッツ受付票」にご記入ください。",null,null,null,null,null,null,null,null,null,null,null,null,null,null,null,null,null,null,null,null,null,null,null,null,null,null,null,null,null,null,null,null,null,null,null,null,null,null,null,null,null,null,null,null,null,null,null,null,null,null,null,null,null,null,null,"ご利用場所全項目\n【条件付き書式】",{"$f":"OR($N$32=\"\",$BC$7<>TRUE)","v":true}]
["■ご注意\n※ご利用場所の住所、電話番号を必ずご記入ください。"]
["ご利用場所",null,null,null,null,null,"コピーリスト（必須）",null,null,null,null,null,null,null,null,null,null,null,null,null,null,null,null,null,null,null,null,null,null,null,null,null,null,"選択してください"]
[null,null,null,null,null,null,"郵便番号（必須）",null,null,null,null,null,null,null,null,null,null,null,null,null,null,null,null,null,null,null,null,null,null,null,null,null,null,"半角数字７桁",null,null,null,null,null,null,null,null,null,null,null,null,null,null,null,null,null,null,null,null,null,null,"ご利用場所\n郵便番号～ビル名\n【条件付き書式】",{"$f":"AND($BF$47=TRUE,OR($N$49=\"\",$N$49=\"次のとおり\"))","v":true}]
[null,null,null,null,null,null,"ご住所（必須）",null,null,null,null,null,null,null,null,null,null,null,null,null,null,null,null,null,null,null,null,null,null,null,null,null,null,null,null,null,null,null,null,null,null,"全角46桁以内\n※住所を都道府県からご記入ください。\n※NTT東日本／西日本会社の提供するフレッツサービスを設置される住所を記入ください。"]
[null,null,null,null,null,null,"番地（必須）",null,null,null,null,null,null,null,null,null,null,null,null,null,null,null,null,null,null,null,null,null,null,null,null,null,null,"全角20桁以内"]
[null,null,null,null,null,null,"ビル名等",null,null,null,null,null,null,null,null,null,null,null,null,null,null,null,null,null,null,null,null,null,null,null,null,null,null,"全角20桁\n※フロア数まで記入ください。"]
[null,null,null,null,null,null,"事業所名",null,null,null,null,null,null,null,null,null,null,null,null,null,null,null,null,null,null,null,null,null,null,null,null,null,null,"全角20桁以内\n※ご利用場所の会社名がご契約者名と相違がある場合は、必ず記入ください。",null,null,null,null,null,null,null,null,null,null,null,null,null,null,null,null,null,null,null,null,null,null,"ご利用場所事業所名\n【条件付き書式】",{"$f":"OR($N$32=\"\",$BC$7<>TRUE)","v":true}]
[null,null,null,null,null,null,"電話番号\n（IP1、動的IP(ex)）\n（必須）",null,null,null,null,null,null,null,null,null,null,null,null,null,null,null,null,null,null,null,null,null,null,null,null,null,null,"ハイフンを含む半角10桁～13桁（数字、ハイフンのみ）\n※お客様収容設備を本電話番号（NTT東日本会社/ＮＴＴ西日本会社の加入電話）で決定しますので、必ず記入ください。未記入の場合は受付できませんので、ご注意ください。（携帯電話、ＰＨＳ番号は記入いただけません）\n新設のビル等で、電話番号が決まっていない場合はダミー番号での記入も可能です。",null,null,null,null,null,null,null,null,null,null,null,null,null,null,null,null,null,null,null,null,null,null,"ご利用場所電話番号\n【条件付き書式】",{"$f":"OR($N$32=\"\",AND($BC$7<>TRUE,COUNTIF($N$31,\"*forVPN*\")=0))","v":false}]
["ご利用場所に関する\nご連絡先",null,null,null,null,null,"コピーリスト（必須）",null,null,null,null,null,null,null,null,null,null,null,null,null,null,null,null,null,null,null,null,null,null,null,null,null,null,"選択してください",null,null,null,null,null,null,null,null,null,null,null,null,null,null,null,null,null,null,null,null,null,null,"ご利用場所連絡先\n【条件付き書式】",{"$f":"OR($N$32=\"\",$BC$7<>TRUE)","v":true}]
[null,null,null,null,null,null,"お名前（必須）",null,null,null,null,null,null,null,null,null,null,null,null,null,null,null,null,null,null,null,null,null,null,null,null,null,null,"全角10桁以内",null,null,null,null,null,null,null,null,null,null,null,null,null,null,null,null,null,null,null,null,null,null,"ご利用場所連絡先\nお名前\n【条件付き書式】",{"$f":"AND($BF$47=TRUE,OR($N$56=\"\",$N$56=\"次のとおり\"))","v":true}]
[null,null,null,null,null,null,"電話番号（必須）",null,null,null,null,null,null,null,null,null,null,null,null,null,null,null,null,null,null,null,null,null,null,null,null,null,null,"ハイフンを含む半角10桁～13桁\n（数字、ハイフンのみ）",null,null,null,null,null,null,null,null,null,null,null,null,null,null,null,null,null,null,null,null,null,null,"ご利用場所連絡先\n電話番号\n【条件付き書式】",{"$f":"AND($BF$47=TRUE,OR($N$56=\"\",$N$56=\"次のとおり\"))","v":true}]
["技術担当者　※故障等緊急時や認証ID／PW再通知申請等重要なお知らせ時の連絡先として使用します。"]
["技術担当者情報",null,null,null,null,null,"コピーリスト（必須）",null,null,null,null,null,null,null,null,null,null,null,null,null,null,null,null,null,null,null,null,null,null,null,null,null,null,"選択してください",null,null,null,null,null,null,null,null,null,null,null,null,null,null,null,null,null,null,null,null,"技術担当者コピーリスト\n【リスト】",{"$f":"IF($N$49=\"次のとおり\",\"list_nwTechnology_1\",\"list_nwTechnology_2\")","v":"list_nwTechnology_2"}]
[null,null,null,null,null,null,"担当者名（必須）",null,null,null,null,null,null,null,null,null,null,null,null,null,null,null,null,null,null,null,null,null,null,null,null,null,null,"全角10桁以内",null,null,null,null,null,null,null,null,null,null,null,null,null,null,null,null,null,null,null,null,null,null,"技術担当者\n担当者名・電話番号\n【条件付き書式】",{"$f":"OR($N$60=\"\",$N$60=\"次のとおり\")","v":true}]
[null,null,null,null,null,null,"電話番号（必須）",null,null,null,null,null,null,null,null,null,null,null,null,null,null,null,null,null,null,null,null,null,null,null,null,null,null,"ハイフンを含む半角10桁～13桁\n（数字、ハイフンのみ）"]
[null,null,null,null,null,null,"FAX番号",null,null,null,null,null,null,null,null,null,null,null,null,null,null,null,null,null,null,null,null,null,null,null,null,null,null,"ハイフンを含む半角10桁～13桁\n（数字、ハイフンのみ）",null,null,null,null,null,null,null,null,null,null,null,null,null,null,null,null,null,null,null,null,null,null,"技術担当者\nFAX番号\n【条件付き書式】",{"$f":"IF($N$60=\"お申込みに関する連絡先と同じ\",FALSE,TRUE)","v":true}]
[null,null,null,null,null,null,"e-mail（必須）",null,null,null,null,null,null,null,null,null,null,null,null,null,null,null,null,null,null,null,null,null,null,null,null,null,null,"半角英数64桁以内\n※ご担当者が複数の場合は、カンマで区切りで記入ください。\n※メールアドレスをお持ちでない方は「a@a」をご記入ください。",null,null,null,null,null,null,null,null,null,null,null,null,null,null,null,null,null,null,null,null,null,null,"技術担当者\nFAX番号\n【条件付き書式】",{"$f":"IF($N$60=\"お申込みに関する連絡先と同じ\",FALSE,TRUE)","v":true}]
["保守受付言語"]
["保守受付言語（必須）",null,null,null,null,null,null,null,null,null,null,null,null,null,null,null,null,null,null,null,null,null,null,null,null,null,null,null,null,null,null,null,null,"選択してください"]
["お支払に関する情報"]
["■ご注意\n【口座振替及びクレジットカードでのお支払】をご希望のお客さま\n　※「請求書によるお支払」をご選択いただき、ビリングカスタマセンタ（TEL：0120-047128）までご連絡下さい。\n　　弊社より口座振替によるお支払をご希望のお客さまは「口座振替依頼書」、クレジットカードでのお支払をご希望のお客さまは「クレジットカード払い申込書」を送付いたします。\n　※初回のご請求は「請求書によるお支払」になる場合があります。\n\n【既契約のお支払情報と同一にする】をご希望のお客さま\n　※引継ぎ元の請求がファイナンス社の場合は対象外となります。\n　※OCN利用料をフレッツ光利用料と合わせて、お支払いただいているお客さまはご利用いただけません。\n　※現在、ご利用中のサービスのお支払情報と同一にします。（但し、ご契約者名義が同一の場合のみ）\n　※複数の請求を一枚にまとめている場合もお支払情報を同一にします。\n　※お支払情報に関するお知らせの送付先は既契約と同一になります。"]
["支払方法（必須）",null,null,null,null,null,null,null,null,null,null,null,null,null,null,null,null,null,null,null,null,null,null,null,null,null,null,null,null,null,null,null,null,"選択してください"]
["既契約のお客さま番号",null,null,null,null,null,null,null,null,null,null,null,null,null,null,null,null,null,null,null,null,null,null,null,null,null,null,null,null,null,null,null,null,"ＨまたはＮからはじまる10桁のお客さま番号をご記入ください",null,null,null,null,null,null,null,null,null,null,null,null,null,null,null,null,null,null,null,null,null,null,"既契約のお客さま番号\n【条件付き書式】",{"$f":"OR($N$69=\"\",$N$69=\"既契約のお支払情報と同一にする\")","v":true}]
["毎月の利用料の請求先",null,null,null,null,null,"コピーリスト（必須）",null,null,null,null,null,null,null,null,null,null,null,null,null,null,null,null,null,null,null,null,null,null,null,null,null,null,"選択してください",null,null,null,null,null,null,null,null,null,null,null,null,null,null,null,null,null,null,null,null,"請先コピーリスト\n【リスト】",{"$f":"IF($N$49=\"次のとおり\",\"list_billMailingCopylist_1\",\"list_billMailingCopylist_2\")","v":"list_billMailingCopylist_2"},"請先コピーリスト\n【条件付き書式】",{"$f":"OR($N$69=\"\",$N$69=\"請求書によるお支払\")","v":true}]
[null,null,null,null,null,null,"郵便番号（必須）",null,null,null,null,null,null,null,null,null,null,null,null,null,null,null,null,null,null,null,null,null,null,null,null,null,null,"半角数字７桁",null,null,null,null,null,null,null,null,null,null,null,null,null,null,null,null,null,null,null,null,null,null,"請先\n郵便番号～ビル名等\n【条件付き書式】",{"$f":"AND($BF$71=TRUE,OR($N$71=\"\",$N$71=\"次のとおり\"))","v":true}]
[null,null,null,null,null,null,"ご住所（必須）",null,null,null,null,null,null,null,null,null,null,null,null,null,null,null,null,null,null,null,null,null,null,null,null,null,null,null,null,null,null,null,null,null,null,"全角46桁以内\n※住所を都道府県からご記入ください。"]
[null,null,null,null,null,null,"番地（必須）",null,null,null,null,null,null,null,null,null,null,null,null,null,null,null,null,null,null,null,null,null,null,null,null,null,null,"全角20桁以内"]
[null,null,null,null,null,null,"ビル名等",null,null,null,null,null,null,null,null,null,null,null,null,null,null,null,null,null,null,null,null,null,null,null,null,null,null,"全角20桁以内"]
[null,null,null,null,null,null,"宛先　フリガナ\n（必須）",null,null,null,null,null,null,null,null,null,null,null,null,null,null,null,null,null,null,null,null,null,null,null,null,null,null,"全角30桁以内",null,null,null,null,null,null,null,null,null,null,null,null,null,null,null,null,null,null,null,null,null,null,"請先\n宛先～連絡先電番\n【条件付き書式】",{"$f":"OR($N$69=\"\",$N$69=\"請求書によるお支払\")","v":true}]
[null,null,null,null,null,null,"宛先　お名前\n(会社名＋部課名)\n（必須）",null,null,null,null,null,null,null,null,null,null,null,null,null,null,null,null,null,null,null,null,null,null,null,null,null,null,"全角20桁以内\n※宛先に記入いただいた内容は、そのまま請求書に印刷されます。会社名・部署名・氏名等をご記入ください。　"]
[null,null,null,null,null,null,"連絡先",null,"お名前",null,null,null,null,null,null,null,null,null,null,null,null,null,null,null,null,null,null,null,null,null,null,null,null,"全角10桁以内\n※請求書の宛先には表示されません。"]
[null,null,null,null,null,null,null,null,"電話番号",null,null,null,null,null,null,null,null,null,null,null,null,null,null,null,null,null,null,null,null,null,null,null,null,"ハイフンを含む半角10桁～13桁\n（数字、ハイフンのみ）"]
["ご利用案内に関する情報　　※接続に必要となる情報をOCNより送付します。"]
["■ご注意\n※「ご利用内容のご案内」メールは、「customer@info.ocn.ne.jp」から届きますので、メール受信設定いただきますようお願いいたします。\n※「ご利用内容のご案内」は、メールにて送信されるURLから専用サイトへアクセスし、確認パスワードを入力することで、閲覧/保存出来ます。\n※メールにてお届けできない場合の送付先に関しても必ずご記入下さい。\n※送信したメールが届かなかった場合は、郵送にてお送りいたしますが、開通日に間に合わない場合がありますので、ご注意願います。"]
["ご利用案内の送信先",null,null,null,null,null,"送信先\nメールアドレス\n（必須）",null,null,null,null,null,null,null,null,null,null,null,null,null,null,null,null,null,null,null,null,null,null,null,null,null,null,"半角英数64桁まで\n※メールアドレスをお持ちでない場合は、記入不要です(郵送にて送付いたします)\n※複数のメールアドレスを指定することはできません。複数アドレスを指定する場合は、メーリングリストにてお申込ください。\n※携帯電話のメールアドレスは指定できません。"]
[null,null,null,null,null,null,"ご利用案内確認\nパスワード\n（必須）",null,null,null,null,null,null,null,null,null,null,null,null,null,null,null,null,null,null,null,null,null,null,null,null,null,null,"半角英数8桁～10桁まで\n※英大文字、英小文字、数字からそれぞれ1文字以上使用してください。\n※「ご利用内容のご案内」専用サイトにログインする際に本パスワードが必要となりますので、ご案内のメールが届くまで必ず保管願います。\n※メールアドレスをお持ちでない場合は、記入不要です(郵送にて送付いたします)"]
["ご利用案内の送付先\n\n\n\n※メールにてお届けできない場合、郵送させていただきます。",null,null,null,null,null,"コピーリスト（必須）",null,null,null,null,null,null,null,null,null,null,null,null,null,null,null,null,null,null,null,null,null,null,null,null,null,null,"選択してください",null,null,null,null,null,null,null,null,null,null,null,null,null,null,null,null,null,null,null,null,"開案送付先コピーリスト\n【リスト】",{"$f":"IF(AND($N$49=\"次のとおり\",$N$71=\"次のとおり\"),\"list_kaianMailingAdd_1\",IF(AND($N$49<>\"次のとおり\",$N$71=\"次のとおり\"),\"list_kaianMailingAdd_2\",IF(AND($N$49=\"次のとおり\",$N$71<>\"次のとおり\"),\"list_kaianMailingAdd_3\",IF(AND($N$49<>\"次のとおり\",$N$71<>\"次のとおり\"),\"list_kaianMailingAdd_4\",\"null\"))))","v":"list_kaianMailingAdd_4"}]
[null,null,null,null,null,null,"郵便番号（必須）",null,null,null,null,null,null,null,null,null,null,null,null,null,null,null,null,null,null,null,null,null,null,null,null,null,null,"半角数字７桁",null,null,null,null,null,null,null,null,null,null,null,null,null,null,null,null,null,null,null,null,null,null,"開案送付先\n郵便番号～ビル名等\n【条件付き書式】",{"$f":"OR($N$84=\"\",$N$84=\"次のとおり\")","v":true}]
[null,null,null,null,null,null,"ご住所（必須）",null,null,null,null,null,null,null,null,null,null,null,null,null,null,null,null,null,null,null,null,null,null,null,null,null,null,null,null,null,null,null,null,null,null,"全角46桁以内\n※住所を都道府県からご記入ください。"]
[null,null,null,null,null,null,"番地（必須）",null,null,null,null,null,null,null,null,null,null,null,null,null,null,null,null,null,null,null,null,null,null,null,null,null,null,"全角20桁以内"]
[null,null,null,null,null,null,"ビル名等",null,null,null,null,null,null,null,null,null,null,null,null,null,null,null,null,null,null,null,null,null,null,null,null,null,null,"全角20桁以内"]
[null,null,null,null,null,null,"宛先",null,"フリガナ（必須）",null,null,null,null,null,null,null,null,null,null,null,null,null,null,null,null,null,null,null,null,null,null,null,null,"全角35桁以内\n※OCN光【光一括提供型】をお申込みされる場合、ご記入ください。",null,null,null,null,null,null,null,null,null,null,null,null,null,null,null,null,null,null,null,null,null,null,"開案送付先\n宛先フリガナ\n【条件付き書式】",{"$f":"OR($N$32=\"\",$BD$7=TRUE)","v":false}]
[null,null,null,null,null,null,null,null,"会社名／お名前\n（必須）",null,null,null,null,null,null,null,null,null,null,null,null,null,null,null,null,null,null,null,null,null,null,null,null,"全角20桁以内"]
[null,null,null,null,null,null,null,null,"部課名",null,null,null,null,null,null,null,null,null,null,null,null,null,null,null,null,null,null,null,null,null,null,null,null,"全角20桁以内\n※ご利用案内の送付先に部課名が必要な場合にご記入ください。"]
[null,null,null,null,null,null,null,null,"担当者",null,null,null,null,null,null,null,null,null,null,null,null,null,null,null,null,null,null,null,null,null,null,null,null,"全角10桁以内\n※ご利用案内の送付先の担当者名は必ずご記入ください。"]
["お客様ご要望記事欄"]
["選択してください",null,null,null,null,null,null,null,null,null,null,null,null,"記事欄に下記文言の記載があることでSOセンタの確認作業が発生し、納期に影響が発生する場合がありますので、ご注意ください。\n「OCN開通希望日とフレッツ開通予定日が同日であることは、お客様了承済です。」「ご利用場所電話番号はダミー番号です。」「開通案内の最短での発送をお願いします。」\nその他要望事項等、記載が必要な時のみプルダウンで「お客様ご要望記事欄を記入する」を選択の上ご記入ください。",null,null,null,null,null,null,null,null,null,null,null,null,null,null,null,null,null,null,null,null,null,null,null,null,null,null,null,null,null,null,null,null,null,null,null,null,null,null,null,null,null,null,"記事欄入力可否\n【条件付き書式】\n※FALSEの時非活性",{"$f":"OR($A$94=\"お客様ご要望記事欄を記入する\",$N$95<>\"\")","v":false}]
["お客様ご要望記事欄"]
[]
["弊社記入欄"]
["料金に関する留意事項（必須）",null,null,null,null,null,null,null,null,null,null,null,null,"相対申込有",null,null,null,null,null,null,null,null,null,null,null,null,null,null,null,null,null,null,null,"選択してください"]
["NPCRM承認ID枝番",null,null,null,null,null,null,null,null,null,null,null,null,null,null,null,null,null,null,null,null,null,null,null,null,null,null,null,null,null,null,null,null,"半角15桁"]
["サブプロジェクトID",null,null,null,null,null,null,null,null,null,null,null,null,null,null,null,null,null,null,null,null,null,null,null,null,null,null,null,null,null,null,null,null,"半角15桁以内"]
["回線種別（必須）",null,null,null,null,null,null,null,null,null,null,null,null,"法人",null,null,null,null,null,null,null,null,null,null,null,null,null,null,null,null,null,null,null,"※回線種別は「お客様区分」です。該当の区分を選択してください。"]
["大口情報",null,null,null,null,null,null,null,null,null,null,null,null,null,null,null,null,null,null,null,null,null,null,null,null,null,null,null,null,null,null,null,null,"ハイフン付きで半角14桁"]
["個別案件管理番号",null,null,null,null,null,null,null,null,null,null,null,null,null,null,null,null,null,null,null,null,null,null,null,null,null,null,null,null,null,null,null,null,"半角英数字10桁"]
[]
["お客様対応部門"]
["お客様対応部門",null,null,null,null,null,"販売チャネルコード\n（必須）",null,null,null,null,null,null,"77J00000",null,null,null,null,null,null,null,null,null,null,null,null,null,null,null,null,null,null,null,"半角英数字８桁"]
[null,null,null,null,null,null,"販売チャネル名\n（必須）",null,null,null,null,null,null,"㈱エヌディエステレコム",null,null,null,null,null,null,null,null,null,null,null,null,null,null,null,null,null,null,null,"全角16桁以内"]
[null,null,null,null,null,null,"担当者（必須）",null,null,null,null,null,null,"上田",null,null,null,null,null,null,null,null,null,null,null,null,null,null,null,null,null,null,null,"全角10桁以内"]
[null,null,null,null,null,null,"社員コード ",null,null,null,null,null,null,null,null,null,null,null,null,null,null,null,null,null,null,null,null,null,null,null,null,null,null,"半角英数字8桁以内"]
[null,null,null,null,null,null,"電話番号（必須）",null,null,null,null,null,null,"0120-881-444",null,null,null,null,null,null,null,null,null,null,null,null,null,null,null,null,null,null,null,"ハイフンを含む半角10桁～13桁\n（数字、ハイフンのみ）"]
[null,null,null,null,null,null,"ＦＡＸ番号 ",null,null,null,null,null,null,"0120-788-622",null,null,null,null,null,null,null,null,null,null,null,null,null,null,null,null,null,null,null,"ハイフンを含む半角10桁～13桁\n（数字、ハイフンのみ）"]
[null,null,null,null,null,null,"ｅ-mail（必須）",null,null,null,null,null,null,"order@kotei-ip.com",null,null,null,null,null,null,null,null,null,null,null,null,null,null,null,null,null,null,null,"半角英数64桁以内"]
["お申込受付部門"]
["お申込受付部門",null,null,null,null,null,"担当者（必須）",null,null,null,null,null,null,"上田",null,null,null,null,null,null,null,null,null,null,null,null,null,null,null,null,null,null,null,"全角10桁以内"]
[null,null,null,null,null,null,"組織名（必須）",null,null,null,null,null,null,"㈱エヌディエステレコム",null,null,null,null,null,null,null,null,null,null,null,null,null,null,null,null,null,null,null,"全角16桁以内"]
[null,null,null,null,null,null,"電話番号（必須）",null,null,null,null,null,null,"0120-881-444",null,null,null,null,null,null,null,null,null,null,null,null,null,null,null,null,null,null,null,"ハイフンを含む半角10桁～13桁\n（数字、ハイフンのみ）"]
[null,null,null,null,null,null,"ＦＡＸ番号 ",null,null,null,null,null,null,"0120-788-622",null,null,null,null,null,null,null,null,null,null,null,null,null,null,null,null,null,null,null,"ハイフンを含む半角10桁～13桁\n（数字、ハイフンのみ）"]
[null,null,null,null,null,null,"ｅ-mail（必須）",null,null,null,null,null,null,"order@kotei-ip.com",null,null,null,null,null,null,null,null,null,null,null,null,null,null,null,null,null,null,null,"半角英数64桁以内"]

{"sheet":"IPoE申込情報","index":3,"n_rows":35,"n_cols":59,"rows_kept":35,"cut":false,"hidden":false,"merged":[[2,0,2,51],[31,6,31,12],[33,0,33,51],[26,0,26,12],[27,0,27,12],[24,0,24,12],[20,0,20,12],[21,0,21,12],[21,13,21,32],[21,33,21,51],[25,0,25,12],[22,0,22,12],[23,0,23,12],[25,13,25,32],[25,33,25,51],[22,13,22,32],[34,0,34,12],[34,13,34,34],[34,35,34,51],[28,0,31,5],[28,6,28,12],[29,6,29,12],[29,13,29,41],[29,42,29,51],[30,6,30,12],[30,13,30,32],[30,33,30,51],[31,13,31,32],[31,33,31,51],[28,13,28,32],[28,33,28,51],[22,33,22,51],[23,13,23,32],[23,33,23,51],[24,13,24,32],[19,0,19,51],[24,33,24,51],[20,13,20,32],[20,33,20,51],[13,0,13,12],[13,13,13,32],[13,33,13,41],[13,42,13,51],[14,0,14,12],[14,13,14,32],[14,33,14,41],[14,42,14,51],[15,0,15,51],[16,0,16,12],[16,13,16,32],[16,33,16,51],[18,0,18,51],[11,0,11,12],[11,13,11,32],[11,33,11,41],[11,42,11,51],[12,0,12,12],[12,13,12,32],[12,33,12,41],[12,42,12,51],[9,0,9,12],[9,13,9,32],[9,33,9,41],[9,42,9,51],[10,0,10,12],[10,13,10,32],[10,33,10,41],[10,42,10,51],[7,0,7,12],[7,13,7,32],[7,33,7,41],[7,42,7,51],[8,0,8,12],[8,13,8,32],[8,33,8,41],[8,42,8,51],[4,0,4,51],[5,0,5,51],[6,0,6,12],[6,13,6,32],[6,33,6,41],[6,42,6,51],[26,13,26,32],[26,33,26,51],[27,13,27,20],[27,21,27,24],[27,25,27,32],[27,33,27,51]]}
[null,null,null,null,null,null,null,null,null,null,null,null,null,null,null,null,null,null,null,null,null,null,null,null,null,null,null,null,null,null,null,null,null,null,null,null,null,null,null,null,null,null,null,null,null,null,null,null,null,null,null,{"$f":"基本情報!$AZ$1","v":"Ver.1.02B(2020/11/30)"},null,null,null,null,"IPoEメニュー","アクセスタイプ：\n光コラボ"]
[null,null,null,null,null,null,null,null,null,null,null,null,null,null,null,null,null,null,null,null,null,null,null,null,null,null,null,null,null,null,null,null,null,null,null,null,null,null,null,null,null,null,null,null,null,null,null,null,null,null,null,null,null,null,null,null,{"$f":"基本情報!$BH$7","v":true},{"$f":"基本情報!$BD$7","v":false}]
[{"$f":"基本情報!$A$5","v":"第６種オープンコンピュータ通信網サービス　IP1/forVPN/動的IP　契約申込書（新規）"}]
[]
["フレッツ回線情報　　※フレッツ別契約型の場合のみご記入ください。"]
["■ご注意\n※ご利用中のフレッツ回線の情報をご記入ください。（NTT東西へフレッツ回線を申込みされた時にフレッツ申込書に記載した内容をお書きください。）\n※本サービスのお申し込みには、ご利用になるフレッツ契約IDおよびアクセスキー（又は、フレッツ契約IDおよびその名義等の情報）を記入いただく必要があります。\nフレッツ契約IDが未記入の場合は、お客さまからお預かりしたフレッツ名義等の情報を元にNTT東西から開示されるフレッツ契約IDを利用し開通工事を実施します。",null,null,null,null,null,null,null,null,null,null,null,null,null,null,null,null,null,null,null,null,null,null,null,null,null,null,null,null,null,null,null,null,null,null,null,null,null,null,null,null,null,null,null,null,null,null,null,null,null,null,null,null,null,null,null,"フレッツ回線情報\n入力要否\n※TRUEの時活性\n\n【条件付き書式】",{"$f":"IF(基本情報!$N$32=\"\",TRUE,IF(AND($BE$2<>FALSE,$BF$2<>TRUE),TRUE,FALSE))","v":true},"フレッツ別契かつIPoEの場合TRUE"]
["▼ご記入ください",null,null,null,null,null,null,null,null,null,null,null,null,"▼ご記入ください",null,null,null,null,null,null,null,null,null,null,null,null,null,null,null,null,null,null,null,"留意事項",null,null,null,null,null,null,null,null,"弊社記入欄（記入不要）"]
["フレッツ契約ID\n（必須）",null,null,null,null,null,null,null,null,null,null,null,null,null,null,null,null,null,null,null,null,null,null,null,null,null,null,null,null,null,null,null,null,"半角英数11桁 または 13桁\n※ご利用中（またはお申込み中）のフレッツ契約IDをご記入ください。\n※東日本：CAFまたはCOPから始まる番号\n※西日本：CAFから始まる番号"]
["アクセスキー",null,null,null,null,null,null,null,null,null,null,null,null,null,null,null,null,null,null,null,null,null,null,null,null,null,null,null,null,null,null,null,null,"半角英数8桁まで"]
["フレッツご契約者名フリガナ",null,null,null,null,null,null,null,null,null,null,null,null,null,null,null,null,null,null,null,null,null,null,null,null,null,null,null,null,null,null,null,null,"半角ｶﾅ256文字まで"]
["フレッツご契約者名",null,null,null,null,null,null,null,null,null,null,null,null,null,null,null,null,null,null,null,null,null,null,null,null,null,null,null,null,null,null,null,null,"全角64文字まで"]
["フレッツご契約者住所郵便番号",null,null,null,null,null,null,null,null,null,null,null,null,null,null,null,null,null,null,null,null,null,null,null,null,null,null,null,null,null,null,null,null,"ハイフンを含む半角8桁まで\n（数字、ハイフンのみ）"]
["フレッツご利用場所郵便番号",null,null,null,null,null,null,null,null,null,null,null,null,null,null,null,null,null,null,null,null,null,null,null,null,null,null,null,null,null,null,null,null,"ハイフンを含む半角8桁まで\n（数字、ハイフンのみ）"]
["フレッツご契約者連絡先電話番号",null,null,null,null,null,null,null,null,null,null,null,null,null,null,null,null,null,null,null,null,null,null,null,null,null,null,null,null,null,null,null,null,"ハイフンを含む半角10桁～13桁まで\n（数字、ハイフンのみ）"]
["フレッツご利用場所電話番号",null,null,null,null,null,null,null,null,null,null,null,null,null,null,null,null,null,null,null,null,null,null,null,null,null,null,null,null,null,null,null,null,"ハイフンを含む半角10桁～13桁まで\n（数字、ハイフンのみ）"]
["◆IPoE接続方式でご利用される場合、NTT東日本・NTT西日本が提供する「フレッツ・v6オプション」のご契約が必要です。\n　 フレッツ別契約型をお申込みされるお客さまで、「フレッツ・v6オプション」が未契約の場合には、弊社による代行申込み登録を承諾いただきます。\n\n　※西日本のお客さまには、西日本からフレッツv6オプションの開通案内が直接お客さまに発送されます。予めご了承ください。\n　※OCN光IPoEプランをお申込みの場合は、コムにてIPoE工事に合わせてフレッツv6オプション工事を実施いたします。"]
["フレッツ・v6オプション代行申込みについて\n（必須）",null,null,null,null,null,null,null,null,null,null,null,null,"OCNによる代行申込み登録を承諾する",null,null,null,null,null,null,null,null,null,null,null,null,null,null,null,null,null,null,null,"選択してください\n※代行申込みを承諾いただけない場合、本サービスのお申込み受付はできかねます。"]
[null,null,null,null,null,null,"　"]
["IPoE端末情報"]
["【IPoE対応ルータについて】\n・6種IPoEプランでは、v4 over v6 接続に対応したIPoE対応ルーターをレンタル提供します。\n・IPoE対応ルータ01（NEC Aterm）は6種IPoEプランのいずれのプランでも継続してご利用いただけます（動的/固定、標準/ワイド共通）\n・IPoE対応ルータ02（YAMAHA RTX830)は6種IPoEプランの固定IPプランでご利用いただけます。\n・端末ご利用形態で、「自営端末」をご選択される場合には、お客様ご自身にて端末をご用意ください。端末の設定サポートや保守については、当社ではお受けできません。\n\n【機器設置に関する留意事項】\n・お客様設置の場合、到着の時間指定はできません。平日（9:00～17:00）時間帯の送付となります。\n・お客様設置の場合、機器到着後すぐに開封し、同梱物に不備がないか確認してください。\n・お客様設置の場合、機器に同梱されている「お客様設置ガイド」の注意事項等をお読みいただき、手順に沿って設置し、通信ができることの確認を行ってください。\n・契約種別を跨る移行（2種→6種、7種→6種)でIPoE対応ルータ02を選択される場合、原則として工事区分を『お客様設置』にてお申込みのうえ、6種開通希望日以降に端末設置願います。\n  尚、オンサイト設置についてお客様の強い要望がある場合や、やむを得ない場合は、工事日程やWebエントリの申請方法に関する注意事項がございますので、必ずエスカレーションのうえ事前相談願います。",null,null,null,null,null,null,null,null,null,null,null,null,null,null,null,null,null,null,null,null,null,null,null,null,null,null,null,null,null,null,null,null,null,null,null,null,null,null,null,null,null,null,null,null,null,null,null,null,null,null,null,null,null,null,null,"IPoE端末情報\n入力要否\n※TRUEの時活性\n\n【条件付き書式】",{"$f":"IF(基本情報!$N$32=\"\",TRUE,IF(BE2=TRUE,TRUE,FALSE))","v":true}]
["端末ご利用形態\n（必須）",null,null,null,null,null,null,null,null,null,null,null,null,null,null,null,null,null,null,null,null,null,null,null,null,null,null,null,null,null,null,null,null,"選択してください",null,null,null,null,null,null,null,null,null,null,null,null,null,null,null,null,null,null,null,null,"端末ご利用形態\n【リスト】",{"$f":"IF(__\\osApptypeIpTypeCd=\"動的IP(ex)\",\"list_TerminalUsageForm_2\",\"list_TerminalUsageForm_1\")","v":"list_TerminalUsageForm_1"},"端末種別以下の\n書式設定用\n【条件付き書式】",{"$f":"OR(IPoE申込情報!$N$21=\"レンタル端末利用\",IPoE申込情報!$N$21=\"\")","v":true}]
["レンタル端末種別\n（必須）",null,null,null,null,null,null,null,null,null,null,null,null,null,null,null,null,null,null,null,null,null,null,null,null,null,null,null,null,null,null,null,null,"選択してください\n※ご利用される端末により、以下の選択肢をご選択ください。\n　　・NEC Aterm　 　　　 ⇒  IPoE対応ルータ01\n　　・YAMAHA RTX830 ⇒  IPoE対応ルータ02\n※IPoE対応ルータ02をお申込される場合は、別途設定調書の提出をお願いいたします。",null,null,null,null,null,null,null,null,null,null,null,null,null,null,null,null,null,null,null,null,"レンタル端末種別\n【リスト】",{"$f":"IF(__\\osApptypeIpTypeCd=\"forVPN/動的IP\",\"list_TerminalType_d\",\"list_TerminalType\")","v":"list_TerminalType_d"}]
["保守タイプ\n（必須）",null,null,null,null,null,null,null,null,null,null,null,null,null,null,null,null,null,null,null,null,null,null,null,null,null,null,null,null,null,null,null,null,"選択してください\n※IPoE対応ルータ02の場合は「オンサイト保守（24時間365日）」を選択してください",null,null,null,null,null,null,null,null,null,null,null,null,null,null,null,null,null,null,null,null,"保守タイプ\n【リスト】",{"$f":"IF(IPoE申込情報!$N$22=\"IPoE対応ルータ01\",\"list_maintenanceType_A\",IF(IPoE申込情報!$N$22=\"IPoE対応ルータ02\",\"list_maintenanceType_R\",\"null\"))","v":"null"}]
["コールドスタンバイ\n（必須）",null,null,null,null,null,null,null,null,null,null,null,null,null,null,null,null,null,null,null,null,null,null,null,null,null,null,null,null,null,null,null,null,"IPoE対応ルータ02の場合、選択してください",null,null,null,null,null,null,null,null,null,null,null,null,null,null,null,null,null,null,null,null,null,null,"コールドスタンバイ\n【条件付き書式】",{"$f":"OR(IPoE申込情報!$N$22=\"\",IPoE申込情報!$N$22=\"IPoE対応ルータ02\")","v":true}]
["工事区分\n（必須）",null,null,null,null,null,null,null,null,null,null,null,null,null,null,null,null,null,null,null,null,null,null,null,null,null,null,null,null,null,null,null,null,"※IPoE対応ルータ01の場合は「お客様設置」を選択してください\n※IPoE対応ルータ02の場合は「お客様設置」「オンサイト設置」のいずれかを選択してください\n    尚、契約種別を跨る移行の場合は、原則 「お客様設置」にてお申込みください。",null,null,null,null,null,null,null,null,null,null,null,null,null,null,null,null,null,null,null,null,"工事区分\n【リスト】",{"$f":"IF(IPoE申込情報!$N$22=\"IPoE対応ルータ01\",\"list_Construction1\",IF(IPoE申込情報!$N$22=\"IPoE対応ルータ02\",\"list_Construction2\",\"null\"))","v":"null"}]
["機器設置希望年月日\n（必須）",null,null,null,null,null,null,null,null,null,null,null,null,null,null,null,null,null,null,null,null,null,null,null,null,null,null,null,null,null,null,null,null,"IPoE対応ルータ02の場合、記入してください\n※「開通希望年月日」の前営業日が機器設置希望年月日（予定）となります。",null,null,null,null,null,null,null,null,null,null,null,null,null,null,null,null,null,null,null,null,null,null,"機器設置希望年月\n【条件付き書式】",{"$f":"OR(IPoE申込情報!$N$25=\"オンサイト設置\",IPoE申込情報!$N$25=\"\")","v":true}]
["機器設置希望工事時間帯\n（必須）",null,null,null,null,null,null,null,null,null,null,null,null,null,null,null,null,null,null,null,null,null,null,null,null,null,null,null,null,null,null,null,null,"工事区分が「オンサイト設置」の場合選択してください",null,null,null,null,null,null,null,null,null,null,null,null,null,null,null,null,null,null,null,null,null,null,"機器設置\n希望工事時間帯\n【条件付き書式】",{"$f":"OR(IPoE申込情報!$N$25=\"オンサイト設置\",IPoE申込情報!$N$25=\"\")","v":true}]
["機器設置希望工事時間\n（必須）",null,null,null,null,null,null,null,null,null,null,null,null,null,null,null,null,null,null,null,null,"～",null,null,null,null,null,null,null,null,null,null,null,"機器設置希望工事時間帯が「その他」の場合、選択してください\n※借用時間は、約2時間です。\n　 但し、コールドスタンバイを同時にお申し込みの場合は約3時間となります。",null,null,null,null,null,null,null,null,null,null,null,null,null,null,null,null,null,null,null,null,null,null,"機器設置\n希望工事時間\n【条件付き書式】",{"$f":"AND(OR(IPoE申込情報!$N$25=\"\",IPoE申込情報!$N$25=\"オンサイト設置\"),OR(IPoE申込情報!$N$27=\"\",IPoE申込情報!$N$27=\"その他\"))","v":true}]
["端末配送先",null,null,null,null,null,"配送先郵便番号\n（必須）",null,null,null,null,null,null,null,null,null,null,null,null,null,null,null,null,null,null,null,null,null,null,null,null,null,null,"半角数字７桁\n※ハイフンを除く数字7桁をご記入ください。",null,null,null,null,null,null,null,null,null,null,null,null,null,null,null,null,null,null,null,null,null,null,"機器配送先\n【条件付き書式】",{"$f":"IF(AND(IPoE申込情報!$N$21<>\"自営端末\",IPoE申込情報!$N$25<>\"オンサイト設置\"),TRUE,FALSE)","v":true}]
[null,null,null,null,null,null,"配送先ご住所\n（必須）",null,null,null,null,null,null,null,null,null,null,null,null,null,null,null,null,null,null,null,null,null,null,null,null,null,null,null,null,null,null,null,null,null,null,null,"全角66文字まで"]
[null,null,null,null,null,null,"配送先お名前\n（必須）",null,null,null,null,null,null,null,null,null,null,null,null,null,null,null,null,null,null,null,null,null,null,null,null,null,null,"全角50文字まで"]
[null,null,null,null,null,null,"連絡先電話番号\n（必須）",null,null,null,null,null,null,null,null,null,null,null,null,null,null,null,null,null,null,null,null,null,null,null,null,null,null,"ハイフンを含む半角10桁～13桁まで（数字、ハイフンのみ）"]
[]
["IPoEプラン専用オプション"]
["企画型輻輳抑制機能\n（必須）",null,null,null,null,null,null,null,null,null,null,null,null,{"$f":"BF35","v":"利用する"},null,null,null,null,null,null,null,null,null,null,null,null,null,null,null,null,null,null,null,null,null,null,null,null,null,null,null,null,null,null,null,null,null,null,null,null,null,null,null,null,null,null,"企画型輻輳抑制機能",{"$f":"IF(COUNTIF(基本情報!$N$32,\"*IPoE 標準プラン*\")>0,\"利用しない\",IF(COUNTIF(基本情報!$N$32,\"*IPoE ワイドプラン*\")>0,\"利用する\",\"\"))","v":"利用する"},"※標準プラン：利用しない、ワイドプラン：利用する を固定値 とする\n(Entryでは項目表示あり）"]

{"sheet":"付加サービス情報","index":4,"n_rows":16,"n_cols":60,"rows_kept":16,"cut":false,"hidden":false,"merged":[[11,0,11,12],[11,33,11,51],[11,23,11,26],[11,27,11,32],[7,33,7,51],[7,13,7,32],[10,27,10,32],[10,23,10,26],[10,13,10,22],[15,13,15,32],[15,33,15,51],[12,0,12,12],[15,0,15,12],[14,0,14,12],[14,13,14,32],[14,33,14,51],[12,13,12,32],[12,33,12,51],[13,0,13,12],[4,0,4,51],[2,0,2,51],[5,0,5,51],[13,13,13,32],[13,33,13,51],[6,0,6,51],[10,0,10,12],[10,33,10,51],[11,13,11,22],[7,0,7,12],[8,0,8,12],[8,13,8,32],[8,33,8,51],[9,0,9,12],[9,13,9,32],[9,33,9,51]]}
[null,null,null,null,null,null,null,null,null,null,null,null,null,null,null,null,null,null,null,null,null,null,null,null,null,null,null,null,null,null,null,null,null,null,null,null,null,null,null,null,null,null,null,null,null,null,null,null,null,null,null,{"$f":"基本情報!$AZ$1","v":"Ver.1.02B(2020/11/30)"},null,null,"アクセスタイプ：(F)","アクセスタイプ：\n光コラボ","回線が光ネクスト","フレッツ・ISDN","forVPN/動的IP\nかつ光コラボ","IPoEメニュー"]
[null,null,null,null,null,null,null,null,null,null,null,null,null,null,null,null,null,null,null,null,null,null,null,null,null,null,null,null,null,null,null,null,null,null,null,null,null,null,null,null,null,null,null,null,null,null,null,null,null,null,null,null,null,null,{"$f":"基本情報!$BC$7","v":false},{"$f":"基本情報!$BD$7","v":false},{"$f":"基本情報!$BE$7","v":true},{"$f":"基本情報!$BF$7","v":false},{"$f":"基本情報!$BG$7","v":false},{"$f":"基本情報!$BH$7","v":true}]
[{"$f":"基本情報!A5","v":"第６種オープンコンピュータ通信網サービス　IP1/forVPN/動的IP　契約申込書（新規）"}]
[]
["付加サービス情報"]
["■ご注意\n※「ビジネスパックＶＰＮ」・「一元故障受付サービス」については、必ず営業担当者経由でお申込ください。\n※OCNビジネスパックＶＰＮは、Ｂフレッツビジネスタイプ「ひかり電話ビジネスタイプ対応、及び同ベーシックタイプ「ひかり電話ビジネスタイプ」対応とあわせてのご利用はできません。"]
[]
["OCN セキュリティゲートウェイ\n（ISDN除く）（必須）",null,null,null,null,null,null,null,null,null,null,null,null,null,null,null,null,null,null,null,null,null,null,null,null,null,null,null,null,null,null,null,null,"選択してください\n※利用する場合は、「OCNセキュリティゲートウェイ申込書」を合わせてお申込みください。\n・ルータタイプを利用する場合、OCNビジネスパックVPNとの併用はできません。\n・ブリッジタイプを利用する場合、OCNビジネスパックVPNとの併用が可能です。",null,null,null,null,null,null,null,null,null,null,null,null,null,null,null,null,null,null,null,null,"SGW\n【リスト】",{"$f":"IF(OR($N$9=\"利用する\",$BH$2=TRUE),\"list_SGW_2\",\"list_SGW_1\")","v":"list_SGW_2"},"SGW\n【条件付き書式】",{"$f":"IF($BF$2=TRUE,FALSE,TRUE)","v":true}]
["OCNビジネスパックVPN\n（必須）",null,null,null,null,null,null,null,null,null,null,null,null,null,null,null,null,null,null,null,null,null,null,null,null,null,null,null,null,null,null,null,null,"選択してください。\n※サービスの利用形態をご確認の上、お申込みください。\n※サービスの詳細に関しましては、下記URLをご参照ください。\n  http://www.ntt.com/business/services/network/internet-connect/ocn-business/vpn/biz.html\n※利用する場合は、「OCNビジネスパックVPN申込書」をあわせてお申込ください。\n※OCN　セキュリティゲートウェイ（ルータタイプ）との併用はできません。",null,null,null,null,null,null,null,null,null,null,null,null,null,null,null,null,null,null,null,null,"ビジパク\n【リスト】",{"$f":"IF(OR($BF$2=TRUE,$BH$2=TRUE,$N$8=\"利用する(ルータタイプ)\"),\"list_option_2\",\"list_option_1\")","v":"list_option_2"}]
["一元故障受付サービス\n（（Ｆ）・OCN光【光一括提供型】除く）（必須）",null,null,null,null,null,null,null,null,null,null,null,null,null,null,null,null,null,null,null,null,null,null,null,null,null,null,null,null,null,null,null,null,"選択してください。\n※利用する場合は、「一元故障受付用申込書」を合わせてお申込ください。",null,null,null,null,null,null,null,null,null,null,null,null,null,null,null,null,null,null,null,null,null,null,"一元故障受付\nサービス\n【条件付き書式】",{"$f":"IF(OR($BC$2=TRUE,$BD$2=TRUE),FALSE,TRUE)","v":true}]
["ウイルスバスタービジネスセキュリティ\n（必須）",null,null,null,null,null,null,null,null,null,null,null,null,null,null,null,null,null,null,null,null,null,null,null,null,null,null,"　ライセンス",null,null,null,null,null,"選択してください。\n※「利用する」を選択した場合は、ご利用ライセンス数をご記入下さい。\n※5ライセンス以上、最大99999ライセンスまでお申込みいただけます。\n※ウイルスバスタービジネスセキュリティに関する登録完了通知メールは、ネットワーク技術担当者様のメールアドレス宛に送付致します。",null,null,null,null,null,null,null,null,null,null,null,null,null,null,null,null,null,null,null,null,null,null,"VBBSライセンス数\n【条件付き書式】",{"$f":"OR(付加サービス情報!$N$11=\"\",付加サービス情報!$N$11=\"利用する\")","v":true}]
["OCN TMWSaaSサービス\n（必須）",null,null,null,null,null,null,null,null,null,null,null,null,null,null,null,null,null,null,null,null,null,null,null,null,null,null,"　ライセンス",null,null,null,null,null,"選択してください。\n※「利用する」を選択した場合は、ご利用ライセンス数をご記入下さい。\n※1ライセンス以上、最大99999ライセンスまでお申込みいただけます。\n※OCN TMWSaaSサービスに関する登録完了通知メールは、ネットワーク技術担当者様のメールアドレス宛に送付致します。",null,null,null,null,null,null,null,null,null,null,null,null,null,null,null,null,null,null,null,null,null,null,"OCN TMWSaaS\nライセンス数\n【条件付き書式】",{"$f":"OR(付加サービス情報!$N$12=\"\",付加サービス情報!$N$12=\"利用する\")","v":true}]
["IPv6インターネット接続サービス(PPPoE方式)\n（必須）",null,null,null,null,null,null,null,null,null,null,null,null,null,null,null,null,null,null,null,null,null,null,null,null,null,null,null,null,null,null,null,null,"選択してください。\n※本サービスをお申込いただけるアクセスラインは以下のとおりです。\n　 フレッツ 光ネクスト／OCN 光サービス（F)「光ネクスト」／OCN光【光一括提供型】\n※動的アドレスでIPv6インターネット接続サービス(PPPoE方式)をご利用の場合、お申込は不要です。IPv6動的アドレスは自動的に払い出されます。\n※IP1をご利用でIPv6インターネット接続サービス(PPPoE方式)を固定IPでご利用する場合は、「IPv6インターネット接続申込書」を合わせてお申込ください。",null,null,null,null,null,null,null,null,null,null,null,null,null,null,null,null,null,null,null,null,null,null,"IPv6\nインターネット接続 PPPoE\n【条件付き書式】",{"$f":"IF(基本情報!$N$31=\"\",TRUE,IF(AND($BE$2=TRUE,$BH$2=FALSE,AND(基本情報!$N$31<>\"forVPN/動的IP\",基本情報!$N$31<>\"forVPNライト\")),TRUE,FALSE))","v":false}]
["IPv6インターネット接続サービス(IPoE方式)\n（必須）",null,null,null,null,null,null,null,null,null,null,null,null,null,null,null,null,null,null,null,null,null,null,null,null,null,null,null,null,null,null,null,null,"選択してください。\n※本サービスはOCN光【光一括提供型】を動的アドレスでご利用の場合のみ、お申込みいただけます。",null,null,null,null,null,null,null,null,null,null,null,null,null,null,null,null,null,null,null,null,null,null,"IPv6\nインターネット接続\nIPoE\n【条件付き書式】",{"$f":"OR(基本情報!$N$32=\"\",AND($BG$2=TRUE,$BH$2=FALSE))","v":false}]
["Arcstar IP Voice\n（必須）",null,null,null,null,null,null,null,null,null,null,null,null,null,null,null,null,null,null,null,null,null,null,null,null,null,null,null,null,null,null,null,null,"選択してください。",null,null,null,null,null,null,null,null,null,null,null,null,null,null,null,null,null,null,null,null,"Arcstar IP Voice\n【リスト】 ",{"$f":"IF(BH2=TRUE,\"list_option_2\",\"list_option_1\")","v":"list_option_2"}]
["Arcstar IP Voice\n(ひかり電話タイプ/ひかり電話アドバンスタイプ)\n（必須）",null,null,null,null,null,null,null,null,null,null,null,null,null,null,null,null,null,null,null,null,null,null,null,null,null,null,null,null,null,null,null,null,"選択してください。\n※利用する場合は、「Arcstar IP Voice(ひかり電話タイプ/ひかり電話アドバンスタイプ）申込書」をあわせてお申込みください。",null,null,null,null,null,null,null,null,null,null,null,null,null,null,null,null,null,null,null,null,null,null,"IPVひかり電話\n【条件付き書式】",{"$f":"OR(基本情報!$N$32=\"\",$BD$2=TRUE)","v":false}]

{"sheet":"OCNメールアカウント情報","index":5,"n_rows":37,"n_cols":56,"rows_kept":37,"cut":false,"hidden":false,"merged":[[23,0,24,5],[25,0,26,5],[11,33,13,51],[15,33,17,51],[19,33,21,51],[23,33,25,51],[23,6,23,12],[23,13,23,32],[24,6,24,12],[24,13,24,32],[25,6,25,12],[25,13,25,32],[17,13,17,32],[21,6,21,12],[21,13,21,32],[18,13,18,32],[33,0,34,5],[27,0,27,51],[28,0,28,51],[29,0,30,5],[26,6,26,12],[26,13,26,32],[26,33,26,51],[30,33,30,51],[30,6,30,12],[29,6,29,12],[31,0,32,5],[31,6,31,12],[31,13,31,32],[31,33,31,51],[32,6,32,12],[32,29,32,32],[35,0,36,5],[35,6,35,12],[35,13,35,32],[35,33,35,51],[36,6,36,12],[36,13,36,28],[36,33,36,51],[36,29,36,32],[33,6,33,12],[33,13,33,32],[33,33,33,51],[34,6,34,12],[34,13,34,28],[34,33,34,51],[34,29,34,32],[32,13,32,28],[32,33,32,51],[30,13,30,28],[30,29,30,32],[29,13,29,32],[29,33,29,51],[22,33,22,51],[19,0,20,5],[21,0,22,5],[15,13,15,32],[16,6,16,12],[16,13,16,32],[19,6,19,12],[19,13,19,32],[20,6,20,12],[20,13,20,32],[22,6,22,12],[22,13,22,32],[18,33,18,51],[11,0,12,5],[13,0,14,5],[15,0,16,5],[17,0,18,5],[11,13,11,32],[12,13,12,32],[14,13,14,32],[14,6,14,12],[12,6,12,12],[11,6,11,12],[15,6,15,12],[18,6,18,12],[13,6,13,12],[17,6,17,12],[14,33,14,51],[13,13,13,32],[2,0,2,51],[4,0,4,51],[10,0,10,51],[9,0,9,51],[5,0,5,12],[5,13,5,32],[5,33,5,51],[6,0,6,12],[6,13,6,32],[6,33,6,51],[7,0,7,12],[7,13,7,32],[7,33,7,51],[8,0,8,51]]}
[null,null,null,null,null,null,null,null,null,null,null,null,null,null,null,null,null,null,null,null,null,null,null,null,null,null,null,null,null,null,null,null,null,null,null,null,null,null,null,null,null,null,null,null,null,null,null,null,null,null,null,{"$f":"基本情報!$AZ$1","v":"Ver.1.02B(2020/11/30)"}]
[]
[{"$f":"基本情報!A5","v":"第６種オープンコンピュータ通信網サービス　IP1/forVPN/動的IP　契約申込書（新規）"}]
[]
["OCNメールアカウント情報"]
["メールアカウント希望有無（必須）",null,null,null,null,null,null,null,null,null,null,null,null,null,null,null,null,null,null,null,null,null,null,null,null,null,null,null,null,null,null,null,null,"選択してください"]
["オプション(メールアドレス追加)同時申込\n（希望する）（必須）",null,null,null,null,null,null,null,null,null,null,null,null,null,null,null,null,null,null,null,null,null,null,null,null,null,null,null,null,null,null,null,null,"選択してください\n※有料となります。",null,null,null,null,null,null,null,null,null,null,null,null,null,null,null,null,null,null,null,null,"オプション(メールアドレス追加)同時申込\n【条件付き書式】",{"$f":"$N$6<>\"希望しない\"","v":true}]
["メールアドレス引継ぎ希望有無（必須）",null,null,null,null,null,null,null,null,null,null,null,null,null,null,null,null,null,null,null,null,null,null,null,null,null,null,null,null,null,null,null,null,"選択してください"]
["メールアカウント情報"]
["■ご注意\n※メールアドレス引継ぎを希望されるお客さまは、「OCNメールアドレス引継ぎ情報」に記入いただきます。本項目に引継ぎを希望するメールアカウントをご記入いただく事はできません。\n※本サービスで提供するメールアカウント数は１契約につき最大4アカウントまでとなります。＜基本:１アカウント（無料）追加:３アカウント（有料）＞ "]
["【アカウント使用文字制限等】                                \n　・第3希望まで必ず記入ください                               \n　・アルファベットは小文字で記入いただきます。                                  \n【xxx＠???.ocn.ne.jpの選定】                                \n　・＠マーク以下のメールサーバ名及びメールパスワードについては、OCNが自動選定します。                               \n　・ご利用開始後にアカウント追加、変更をお申込みの場合も同様に＠以下のメールサーバ名をお客さまで指定いただくことはできません。メールアドレス毎に＠以下が異なる場合もありますことを、予めご了承いただきます。                                           "]
["希望メールアカウント",null,null,null,null,null,"第一希望アカウント",null,null,null,null,null,null,null,null,null,null,null,null,null,null,null,null,null,null,null,null,null,null,null,null,null,null,"半角20文字まで\n※必ず3文字以上20文字以内で左詰めでご記入ください。\n※「ocn」等で始まるアカウント、「-ｔ」等で終わるアカウントはご利用いただけません。  ",null,null,null,null,null,null,null,null,null,null,null,null,null,null,null,null,null,null,null,null,"希望メールアカウント\n1\n【条件付き書式】",{"$f":"$N$6<>\"希望しない\"","v":true}]
[null,null,null,null,null,null,"第二希望アカウント"]
[1,null,null,null,null,null,"第三希望アカウント"]
[null,null,null,null,null,null,"ウイルスチェックサービス",null,null,null,null,null,null,null,null,null,null,null,null,null,null,null,null,null,null,null,null,null,null,null,null,null,null,"選択してください\n※１メールアドレス毎に200円（税込220円）/月。"]
["希望メールアカウント",null,null,null,null,null,"第一希望アカウント",null,null,null,null,null,null,null,null,null,null,null,null,null,null,null,null,null,null,null,null,null,null,null,null,null,null,"半角20文字まで\n※必ず3文字以上20文字以内で左詰めでご記入ください。\n※「ocn」等で始まるアカウント、「-ｔ」等で終わるアカウントはご利用いただけません。  ",null,null,null,null,null,null,null,null,null,null,null,null,null,null,null,null,null,null,null,null,"希望メールアカウント\n2～4\n【条件付き書式】",{"$f":"OR(AND($N$6<>\"希望しない\",$N$7=\"\"),$N$7=\"利用する\")","v":true}]
[null,null,null,null,null,null,"第二希望アカウント"]
[2,null,null,null,null,null,"第三希望アカウント"]
[null,null,null,null,null,null,"ウイルスチェックサービス",null,null,null,null,null,null,null,null,null,null,null,null,null,null,null,null,null,null,null,null,null,null,null,null,null,null,"選択してください\n※１メールアドレス毎に200円（税込220円）/月。"]
["希望メールアカウント",null,null,null,null,null,"第一希望アカウント",null,null,null,null,null,null,null,null,null,null,null,null,null,null,null,null,null,null,null,null,null,null,null,null,null,null,"半角20文字まで\n※必ず3文字以上20文字以内で左詰めでご記入ください。\n※「ocn」等で始まるアカウント、「-ｔ」等で終わるアカウントはご利用いただけません。  ",null,null,null,null,null,null,null,null,null,null,null,null,null,null,null,null,null,null,null,null,"希望メールアカウント\n3\n【条件付き書式】",{"$f":"COUNTIF($N$34:$AC$35,\"?*\")=0","v":true}]
[null,null,null,null,null,null,"第二希望アカウント"]
[3,null,null,null,null,null,"第三希望アカウント"]
[null,null,null,null,null,null,"ウイルスチェックサービス",null,null,null,null,null,null,null,null,null,null,null,null,null,null,null,null,null,null,null,null,null,null,null,null,null,null,"選択してください\n※１メールアドレス毎に200円（税込220円）/月。"]
["希望メールアカウント",null,null,null,null,null,"第一希望アカウント",null,null,null,null,null,null,null,null,null,null,null,null,null,null,null,null,null,null,null,null,null,null,null,null,null,null,"半角20文字まで\n※必ず3文字以上20文字以内で左詰めでご記入ください。\n※「ocn」等で始まるアカウント、「-ｔ」等で終わるアカウントはご利用いただけません。  ",null,null,null,null,null,null,null,null,null,null,null,null,null,null,null,null,null,null,null,null,"希望メールアカウント\n4\n【条件付き書式】",{"$f":"$N$8<>\"希望する\"","v":true}]
[null,null,null,null,null,null,"第二希望アカウント"]
[4,null,null,null,null,null,"第三希望アカウント"]
[null,null,null,null,null,null,"ウイルスチェックサービス",null,null,null,null,null,null,null,null,null,null,null,null,null,null,null,null,null,null,null,null,null,null,null,null,null,null,"選択してください\n※１メールアドレス毎に200円（税込220円）/月。"]
["OCNメールアドレス引継ぎ情報"]
["■ご注意\n※他のOCN契約で利用中のOCNメールアドレスを本契約で引き続きご利用いただくことができます。引継ぎをご希望のお客さまは、 以下の「他のOCN契約からメールアドレスの引継ぎを希望する」をチェックのうえ、\n　 引継ぎ元のOCNお客さま番号と引継ぎを希望するメールアカウント・メールサーバ名をご記入ください。\n※ご契約者名義が同一の場合のみ、OCNメールアドレスを引継ぐことができます。第3者からの引継ぎはできません。\n※ウイルスチェックサービス・メールパスワードについては、現在のご契約内容をそのまま引継ぎます。\n\n【第２種OCNからメールアドレス引継ぎされる場合の注意事項】\n※第２種OCN契約を廃止して本サービスに移行される場合、ペイオンについては、継続利用いただくことはできません。\n※本サービスにおいて「迷惑メールブロックサービス」はご利用頂けません。 また、「隔離ボックス」内のメールは閲覧が出来なくなりますので、必要に応じ、事前に保存・転送等のご対応をお願い致します。\n※第２種OCNからの連絡先メールアドレスを本サービスへ引き継ぐ場合、第２種OCN契約で継続利用されるメールアドレスを新たな連絡先メールアドレスとして登録させていただきます。",null,null,null,null,null,null,null,null,null,null,null,null,null,null,null,null,null,null,null,null,null,null,null,null,null,null,null,null,null,null,null,null,null,null,null,null,null,null,null,null,null,null,null,null,null,null,null,null,null,null,null,null,null,"既契約回線からの引継ぎ希望メールアドレス\n1～4\n【条件付き書式】",{"$f":"OR($N$8=\"\",$N$8=\"希望する\")","v":true}]
["既契約回線からの引継ぎ希望メールアドレス１",null,null,null,null,null,"引継ぎ元お客さま番号",null,null,null,null,null,null,null,null,null,null,null,null,null,null,null,null,null,null,null,null,null,null,null,null,null,null,"N＋半角数字9桁\n※メールアドレスの引継ぎを希望する場合、引継ぎ元のOCNお客さま番号を記入ください。",null,null,null,null,null,null,null,null,null,null,null,null,null,null,null,null,null,null,null,null,"既契約回線からの引継ぎ希望メールアドレス\n1\n【条件付き書式】",{"$f":"$N$6<>\"希望する\"","v":true}]
[null,null,null,null,null,null,"引継ぎ希望アドレス",null,null,null,null,null,null,null,null,null,null,null,null,null,null,null,null,null,null,null,null,null,null,".ocn.ne.jp",null,null,null,"半角41桁まで\n※「アカウント＠メールサーバ」の形態でご記入ください。"]
["既契約回線からの引継ぎ希望メールアドレス2",null,null,null,null,null,"引継ぎ元お客さま番号",null,null,null,null,null,null,null,null,null,null,null,null,null,null,null,null,null,null,null,null,null,null,null,null,null,null,"N＋半角数字9桁\n※メールアドレスの引継ぎを希望する場合、引継ぎ元のOCNお客さま番号を記入ください。",null,null,null,null,null,null,null,null,null,null,null,null,null,null,null,null,null,null,null,null,"既契約回線からの引継ぎ希望メールアドレス\n2\n【条件付き書式】",{"$f":"$N$7<>\"利用する\"","v":true}]
[null,null,null,null,null,null,"引継ぎ希望アドレス",null,null,null,null,null,null,null,null,null,null,null,null,null,null,null,null,null,null,null,null,null,null,"\n.ocn.ne.jp",null,null,null,"半角41桁まで\n※「アカウント＠メールサーバ」の形態でご記入ください。"]
["既契約回線からの引継ぎ希望メールアドレス3",null,null,null,null,null,"引継ぎ元お客さま番号",null,null,null,null,null,null,null,null,null,null,null,null,null,null,null,null,null,null,null,null,null,null,null,null,null,null,"N＋半角数字9桁\n※メールアドレスの引継ぎを希望する場合、引継ぎ元のOCNお客さま番号を記入ください。",null,null,null,null,null,null,null,null,null,null,null,null,null,null,null,null,null,null,null,null,"既契約回線からの引継ぎ希望メールアドレス\n3\n【条件付き書式】",{"$f":"COUNTIF($N$20:$AG$22,\"?*\")=0","v":true}]
[null,null,null,null,null,null,"引継ぎ希望アドレス",null,null,null,null,null,null,null,null,null,null,null,null,null,null,null,null,null,null,null,null,null,null,"\n.ocn.ne.jp",null,null,null,"半角41桁まで\n※「アカウント＠メールサーバ」の形態でご記入ください。"]
["既契約回線からの引継ぎ希望メールアドレス4",null,null,null,null,null,"引継ぎ元お客さま番号",null,null,null,null,null,null,null,null,null,null,null,null,null,null,null,null,null,null,null,null,null,null,null,null,null,null,"N＋半角数字9桁\n※メールアドレスの引継ぎを希望する場合、引継ぎ元のOCNお客さま番号を記入ください。"]
[null,null,null,null,null,null,"引継ぎ希望アドレス",null,null,null,null,null,null,null,null,null,null,null,null,null,null,null,null,null,null,null,null,null,null,"\n.ocn.ne.jp",null,null,null,"半角41桁まで\n※「アカウント＠メールサーバ」の形態でご記入ください。"]

{"sheet":"list","index":6,"n_rows":261,"n_cols":6,"rows_kept":261,"cut":false,"hidden":true,"merged":[[5,2,15,2]]}
[]
[null,"項目名","条件等","リスト値","名前定義"]
[null,"IP種別","-","forVPN/動的IP","list_Ipaddress"]
[null,null,null,"動的IP(ex)"]
[null,null,null,"IP1"]
[null,"アクセスタイプ","forVPN/動的IP\nIP1\n","フレッツ 光ネクスト(IPoE 標準プラン)","list_AL_1"]
[null,null,null,"フレッツ 光ネクスト(IPoE ワイドプラン)"]
[null,null,null,"フレッツ 光ネクスト"]
[null,null,null,"フレッツ 光ライト"]
[null,null,null,"フレッツ・ISDN"]
[null,null,null,"フレッツ・ADSL"]
[null,null,null,"OCN 光サービス(F)「光ネクスト」"]
[null,null,null,"OCN ADSLサービス(F)"]
[null,null,null,"OCN光【光一括提供型】(IPoE 標準プラン)"]
[null,null,null,"OCN光【光一括提供型】(IPoE ワイドプラン)"]
[null,null,null,"OCN光【光一括提供型】"]
[null,null,null,"Bフレッツ",null,"2020/11/30削除（サービス終了の為）"]
[null,null,"動的IP(ex)","フレッツ 光ネクスト(IPoE 標準プラン)","list_AL_2"]
[null,null,null,"フレッツ 光ネクスト(IPoE ワイドプラン)"]
[null,null,null,"OCN光【光一括提供型】(IPoE 標準プラン)"]
[null,null,null,"OCN光【光一括提供型】(IPoE ワイドプラン)"]
[null,"契約タイプ","forVPN/動的IP+フレッツ・ADSL","1.5Mタイプ","forVPNadsl"]
[null,null,null,"8Mタイプ"]
[null,null,null,"モア(12M)"]
[null,null,null,"モアⅡ(24Mタイプ)/モア24(24タイプ)"]
[null,null,null,"モアⅡ(40M)/モア40(40Mタイプ)"]
[null,null,null,"モアⅢ(47M)・モアスペシャル(47M)"]
[null,null,null,"モアⅢ(47M)・ビジネスタイプ(NTT東日本)"]
[null,null,null,"モアⅡ(24M)・ビジネスタイプ(NTT東日本)"]
[null,null,"forVPN/動的IP+Bフレッツ","ニューファミリータイプ(NTT東日本)","forVPNB","2020/11/30削除（サービス終了の為）"]
[null,null,null,"ベーシックタイプ(NTT東日本/NTT西日本)",null,"2020/11/30削除（サービス終了の為）"]
[null,null,null,"ビル・マンションタイプ(NTT東日本/NTT西日本)",null,"2020/11/30削除（サービス終了の為）"]
[null,null,"forVPN/動的IP+フレッツ 光ネクスト","ファミリータイプ(NTT東日本/NTT西日本)","forVPNhn"]
[null,null,null,"ファミリー・ハイスピードタイプ(NTT東日本/NTT西日本)"]
[null,null,null,"マンションタイプ(NTT東日本/NTT西日本)"]
[null,null,null,"マンション・ハイスピードタイプ(NTT東日本/NTT西日本)"]
[null,null,null,"ファミリー・スーパーハイスピードタイプ隼(NTT西日本)"]
[null,null,null,"マンション・スーパーハイスピードタイプ隼(NTT西日本)"]
[null,null,null,"プライオ1(NTT東日本)"]
[null,null,null,"ギガファミリー・スマートタイプ(NTT東日本)"]
[null,null,null,"ギガマンション・スマートタイプ(NTT東日本)"]
[null,null,null,"ファミリー・ギガラインタイプ(NTT東日本)"]
[null,null,null,"マンション・ギガラインタイプ(NTT東日本)"]
[null,null,"forVPN/動的IP+フレッツ 光ライト","ファミリータイプ","forVPNhl"]
[null,null,null,"マンションタイプ"]
[null,null,"forVPN/動的IP＋別契IPoE","NTT東日本","forVPNhnIPoE"]
[null,null,null,"NTT西日本"]
[null,null,"forVPN/動的IP+光コラボ（PPPoE/IPoE）","ファミリー 100M(NTT東日本)","forVPNhnc"]
[null,null,null,"マンション 100M(NTT東日本)"]
[null,null,null,"ファミリー 100M(NTT西日本)"]
[null,null,null,"マンション 100M(NTT西日本)"]
[null,null,null,"ファミリー 200M(NTT東日本)"]
[null,null,null,"マンション 200M(NTT東日本)"]
[null,null,null,"ファミリー 200M(NTT西日本)"]
[null,null,null,"マンション 200M(NTT西日本)"]
[null,null,null,"ファミリー 1G(NTT東日本)"]
[null,null,null,"マンション 1G(NTT東日本)"]
[null,null,null,"ファミリー 1G(NTT西日本)"]
[null,null,null,"マンション 1G(NTT西日本)"]
[null,null,"forVPN/動的IP+OCN ADSLサービス(F)","モアⅢ(47M)(NTT東日本)","forVPNadslF"]
[null,null,null,"モアスペシャル(47M)(NTT西日本)"]
[null,null,null,"モアⅡ(40M)(NTT東日本)"]
[null,null,null,"モア40(40M)(NTT西日本)"]
[null,null,null,"モア24(24M)(NTT西日本)"]
[null,null,null,"モア(12M)(NTT東日本)"]
[null,null,null,"モア(12M)(NTT西日本)"]
[null,null,null,"8M(NTT東日本)"]
[null,null,null,"8M(NTT西日本)"]
[null,null,null,"1.5M(NTT東日本)"]
[null,null,null,"1.5M(NTT西日本)"]
[null,null,null,"モアⅢ(47M)・ビジネスタイプ(NTT東日本)"]
[null,null,null,"モアⅡ(40M)・ビジネスタイプ(NTT東日本)"]
[null,null,"forVPN/動的IP+OCN 光サービス(F)「光ネクスト」","ファミリータイプ(NTT東日本)","forVPNhnF"]
[null,null,null,"ファミリータイプ(NTT西日本)"]
[null,null,null,"ファミリー・ハイスピードタイプ(NTT東日本)"]
[null,null,null,"ファミリー・ハイスピードタイプ(NTT西日本)"]
[null,null,null,"ファミリー・スーパーハイスピードタイプ隼(NTT西日本)"]
[null,null,null,"プライオ1(NTT東日本)"]
[null,null,null,"ギガファミリー・スマートタイプ(NTT東日本)"]
[null,null,null,"ファミリー・ギガラインタイプ(NTT東日本)"]
[null,null,"動的IP(ex)+別契IPoE","NTT東日本","dexhnIPoE"]
[null,null,null,"NTT西日本"]
[null,null,"動的IP(ex)+光コラボ（PPPoE/IPoE）","ファミリー 100M(NTT東日本)","dexhnc"]
[null,null,null,"マンション 100M(NTT東日本)"]
[null,null,null,"ファミリー 100M(NTT西日本)"]
[null,null,null,"マンション 100M(NTT西日本)"]
[null,null,null,"ファミリー 200M(NTT東日本)"]
[null,null,null,"マンション 200M(NTT東日本)"]
[null,null,null,"ファミリー 200M(NTT西日本)"]
[null,null,null,"マンション 200M(NTT西日本)"]
[null,null,null,"ファミリー 1G(NTT東日本)"]
[null,null,null,"マンション 1G(NTT東日本)"]
[null,null,null,"ファミリー 1G(NTT西日本)"]
[null,null,null,"マンション 1G(NTT西日本)"]
[null,null,"IP1+フレッツ・ADSL","1.5Mタイプ","IP1adsl"]
[null,null,null,"8Mタイプ"]
[null,null,null,"モア(12M)"]
[null,null,null,"モアⅡ(24Mタイプ)/モア24(24タイプ)"]
[null,null,null,"モアⅡ(40M)/モア40(40Mタイプ)"]
[null,null,null,"モアⅢ(47M)・モアスペシャル(47M)"]
[null,null,null,"モアⅢ(47M)・ビジネスタイプ(NTT東日本)"]
[null,null,null,"モアⅡ(24M)・ビジネスタイプ(NTT東日本)"]
[null,null,"IP1+Bフレッツ","ニューファミリータイプ(NTT東日本)","IP1B","2020/11/30削除（サービス終了の為）"]
[null,null,null,"ベーシックタイプ(NTT東日本/NTT西日本)",null,"2020/11/30削除（サービス終了の為）"]
[null,null,null,"ビジネスタイプ(NTT東日本/NTT西日本)",null,"2020/11/30削除（サービス終了の為）"]
[null,null,null,"ビル・マンションタイプ(NTT東日本/NTT西日本)",null,"2020/11/30削除（サービス終了の為）"]
[null,null,"IP1+フレッツ 光ネクスト","ファミリータイプ(NTT東日本/NTT西日本)","IP1hn"]
[null,null,null,"ファミリー・ハイスピードタイプ(NTT東日本/NTT西日本)"]
[null,null,null,"マンションタイプ(NTT東日本/NTT西日本)"]
[null,null,null,"マンション・ハイスピードタイプ(NTT東日本/NTT西日本)"]
[null,null,null,"ファミリー・スーパーハイスピードタイプ隼(NTT西日本)"]
[null,null,null,"マンション・スーパーハイスピードタイプ隼(NTT西日本)"]
[null,null,null,"ビジネスタイプ(NTT東日本/NTT西日本)"]
[null,null,null,"プライオ1(NTT東日本)"]
[null,null,null,"プライオ10(NTT東日本)"]
[null,null,null,"ギガファミリー・スマートタイプ(NTT東日本)"]
[null,null,null,"ギガマンション・スマートタイプ(NTT東日本)"]
[null,null,null,"ファミリー・ギガラインタイプ(NTT東日本)"]
[null,null,null,"マンション・ギガラインタイプ(NTT東日本)"]
[null,null,"IP1+フレッツ 光ライト","ファミリータイプ","IP1hl"]
[null,null,null,"マンションタイプ"]
[null,null,"IP1+別契IPoE","NTT東日本","IP1hnIPoE"]
[null,null,null,"NTT西日本"]
[null,null,"IP1+光コラボ（PPPoE/IPoE）","ファミリー 100M(NTT東日本)","IP1hnc"]
[null,null,null,"マンション 100M(NTT東日本)"]
[null,null,null,"ファミリー 100M(NTT西日本)"]
[null,null,null,"マンション 100M(NTT西日本)"]
[null,null,null,"ファミリー 200M(NTT東日本)"]
[null,null,null,"マンション 200M(NTT東日本)"]
[null,null,null,"ファミリー 200M(NTT西日本)"]
[null,null,null,"マンション 200M(NTT西日本)"]
[null,null,null,"ファミリー 1G(NTT東日本)"]
[null,null,null,"マンション 1G(NTT東日本)"]
[null,null,null,"ファミリー 1G(NTT西日本)"]
[null,null,null,"マンション 1G(NTT西日本)"]
[null,null,"IP1+OCN ADSLサービス(F)","モアⅢ(47M)(NTT東日本)","IP1adslF"]
[null,null,null,"モアスペシャル(47M)(NTT西日本)"]
[null,null,null,"モアⅡ(40M)(NTT東日本)"]
[null,null,null,"モア40(40M)(NTT西日本)"]
[null,null,null,"モア24(24M)(NTT西日本)"]
[null,null,null,"モア(12M)(NTT東日本)"]
[null,null,null,"モア(12M)(NTT西日本)"]
[null,null,null,"8M(NTT東日本)"]
[null,null,null,"8M(NTT西日本)"]
[null,null,null,"1.5M(NTT東日本)"]
[null,null,null,"1.5M(NTT西日本)"]
[null,null,null,"モアⅢ(47M)・ビジネスタイプ(NTT東日本)"]
[null,null,null,"モアⅡ(40M)・ビジネスタイプ(NTT東日本)"]
[null,null,"IP1+OCN 光サービス(F)「光ネクスト」","ファミリータイプ(NTT東日本)","IP1hnF"]
[null,null,null,"ファミリータイプ(NTT西日本)"]
[null,null,null,"ファミリー・ハイスピードタイプ(NTT東日本)"]
[null,null,null,"ファミリー・ハイスピードタイプ(NTT西日本)"]
[null,null,null,"ファミリー・スーパーハイスピードタイプ隼(NTT西日本)"]
[null,null,null,"ビジネスタイプ(NTT東日本)"]
[null,null,null,"ビジネスタイプ(NTT西日本)"]
[null,null,null,"プライオ1(NTT東日本)"]
[null,null,null,"プライオ10(NTT東日本)"]
[null,null,null,"ギガファミリー・スマートタイプ(NTT東日本)"]
[null,null,null,"ファミリー・ギガラインタイプ(NTT東日本)"]
[null,"お申込みパターン",null,"新規申込み","list_applicationPattern"]
[null,null,null,"第2種OCN契約からの移行申込み"]
[null,"申込み状況",null,"開通済み","list_FletsApply"]
[null,null,null,"申込済み"]
[null,"ご利用場所",null,"ご契約者住所と同じ","list_locationAddress"]
[null,null,null,"次のとおり"]
[null,"ご利用場所に関する連絡先",null,"お申込みに関する連絡先に同じ","list_locationLiaison"]
[null,null,null,"次のとおり"]
[null,"技術担当者情報",null,"お申込みに関する連絡先と同じ","list_nwTechnology_1"]
[null,null,null,"ご利用場所に関する連絡先と同じ"]
[null,null,null,"次のとおり"]
[null,null,null,"お申込みに関する連絡先と同じ","list_nwTechnology_2"]
[null,null,null,"次のとおり"]
[null,"支払方法",null,"請求書によるお支払","list_paymentOption"]
[null,null,null,"既契約のお支払情報と同一にする"]
[null,"毎月の利用料の請求先",null,"ご契約者住所と同じ","list_billMailingCopylist_1"]
[null,null,null,"ご利用場所住所と同じ"]
[null,null,null,"次のとおり"]
[null,null,null,"ご契約者住所と同じ","list_billMailingCopylist_2"]
[null,null,null,"次のとおり"]
[null,"ご利用案内の送付先",null,"ご契約者住所と同じ","list_kaianMailingAdd_1"]
[null,null,null,"ご利用場所住所と同じ"]
[null,null,null,"毎月の利用料の請求先と同じ"]
[null,null,null,"次のとおり"]
[null,null,null,"ご契約者住所と同じ","list_kaianMailingAdd_2"]
[null,null,null,"毎月の利用料の請求先と同じ"]
[null,null,null,"次のとおり"]
[null,null,null,"ご契約者住所と同じ","list_kaianMailingAdd_3"]
[null,null,null,"ご利用場所住所と同じ"]
[null,null,null,"次のとおり"]
[null,null,null,"ご契約者住所と同じ","list_kaianMailingAdd_4"]
[null,null,null,"次のとおり"]
[null,"回線種別",null,"個人","list_customerDivision"]
[null,null,null,"法人"]
[null,null,null,"外国公館等"]
[null,null,null,"在日米軍"]
[null,null,null,"国・地方自治体"]
[null,null,null,"業務用"]
[null,"料金に関する留意事項",null,"相対申込有","list_individuallyChargeType"]
[null,null,null,"型紙申込有"]
[null,null,null,"無"]
[null,"お客様ご要望記事欄",null,"選択してください","list_demandSectionFlag"]
[null,null,null,"お客様ご要望記事欄を記入する"]
[null,"希望有無",null,"希望する","list_Wish"]
[null,null,null,"希望しない"]
[null,"利用有無",null,"利用する","list_option_1"]
[null,null,null,"利用しない"]
[null,null,null,"利用しない","list_option_2"]
[null,"セキュリティGW",null,"利用する(ルータタイプ)","list_SGW_1"]
[null,null,null,"利用する(ブリッジタイプ)"]
[null,null,null,"利用しない"]
[null,null,null,"利用する(ブリッジタイプ)","list_SGW_2"]
[null,null,null,"利用しない"]
[null,"保守タイプ",null,"センドバック保守","list_maintenanceType_A"]
[null,null,null,"オンサイト保守(平日9:00-17:00)"]
[null,null,null,"オンサイト保守(24時間365日)"]
[null,null,null,"オンサイト保守(24時間365日)","list_maintenanceType_R"]
[null,"フレッツ・v6オプション代行申込みについて",null,"OCNによる代行申込み登録を承諾する","list_flets_v6op"]
[null,"端末ご利用形態","端末開放フラグ：1のとき","レンタル端末利用","list_TerminalUsageForm_1"]
[null,null,null,"自営端末"]
[null,null,"端末開放フラグ：2のとき","レンタル端末利用","list_TerminalUsageForm_2"]
[null,"レンタル端末種別",null,"IPoE対応ルータ01","list_TerminalType"]
[null,null,null,"IPoE対応ルータ02"]
[null,null,null,"IPoE対応ルータ01","list_TerminalType_d"]
[null,"工事区分",null,"お客様設置","list_Construction1"]
[null,null,null,"お客様設置","list_Construction2"]
[null,null,null,"オンサイト設置"]
[null,null,null,"利用する","list_CS"]
[null,null,null,"利用しない"]
[null,"機器設置希望工事時間帯",null,"午前フリー(9:00～12:00)","list_TimeZone"]
[null,null,null,"午後フリー(13:00～17:00)"]
[null,null,null,"終日フリー(9:00～17:00)"]
[null,null,null,"その他"]
[null,"機器設置希望工事時間",null,"00:00","list_preferredTime"]
[null,null,null,"01:00"]
[null,null,null,"02:00"]
[null,null,null,"03:00"]
[null,null,null,"04:00"]
[null,null,null,"05:00"]
[null,null,null,"06:00"]
[null,null,null,"07:00"]
[null,null,null,"08:00"]
[null,null,null,"09:00"]
[null,null,null,"10:00"]
[null,null,null,"11:00"]
[null,null,null,"12:00"]
[null,null,null,"13:00"]
[null,null,null,"14:00"]
[null,null,null,"15:00"]
[null,null,null,"16:00"]
[null,null,null,"17:00"]
[null,null,null,"18:00"]
[null,null,null,"19:00"]
[null,null,null,"20:00"]
[null,null,null,"21:00"]
[null,null,null,"22:00"]
[null,null,null,"23:00"]
[null,"保守受付言語",null,"日本語","list_maintenanceWindow"]
[null,null,null,"英語"]
[null,"有/無",null,"有","list_Presence"]
[null,null,null,"無"]
[null,"null","-",null,"null"]

{"sheet":"変換","index":7,"n_rows":77,"n_cols":11,"rows_kept":77,"cut":false,"hidden":true,"merged":[]}
[null,"▼契約タイプ制御用",null,null,null,"▼管理者連絡窓口情報、技術連絡担当者情報（英文：部署/所属）",null,null,null,"▼管理者連絡窓口情報、技術連絡担当者情報（英文：肩書）"]
[null,"IP種別＋アクセスタイプ","変換用",null,null,"部署和文","部署英文",null,null,"肩書和文","肩書英文"]
[null,"forVPN/動的IPフレッツ 光ネクスト(IPoE 標準プラン)","forVPNhnIPoE",null,null,"総務部","General affairs department",null,null,"代表取締役会長","Chairperson & C.E.O"]
[null,"forVPN/動的IPフレッツ 光ネクスト(IPoE ワイドプラン)","forVPNhnIPoE",null,null,"企画部","Planning department",null,null,"会長","Chairperson"]
[null,"forVPN/動的IPフレッツ 光ネクスト","forVPNhn",null,null,"営業部","The sales department",null,null,"代表取締役社長","C.E.O"]
[null,"forVPN/動的IPフレッツ 光ライト","forVPNhl",null,null,"開発部","The development department",null,null,"社長","President"]
[null,"forVPN/動的IPフレッツ・光プレミアム(NTT西日本)","forVPNhp",null,null,"総務課","General affairs department",null,null,"代表取締役","C.E.O"]
[null,"forVPN/動的IPBフレッツ","forVPNB",null,null,"営業課","Business department",null,null,"専務取締役","Executive Vice President"]
[null,"forVPN/動的IPフレッツ・ISDN","null",null,null,"企画課","Plan department",null,null,"常務取締役","Senior Vice President"]
[null,"forVPN/動的IPフレッツ・ADSL","forVPNadsl",null,null,"開発課","Development department",null,null,"監査役","Auditor"]
[null,"forVPN/動的IPOCN 光サービス(F)「光ネクスト」","forVPNhnF",null,null,"その他",null,null,null,"事業部長","Division Director"]
[null,"forVPN/動的IPOCN 光サービス(F)「Bフレッツ」","forVPNbF",null,null,null,null,null,null,"副事業部長","Deputy Director"]
[null,"forVPN/動的IPOCN ADSLサービス(F)","forVPNadslF",null,null,null,null,null,null,"本部長","General Manager"]
[null,"forVPN/動的IPOCN光【光一括提供型】(IPoE 標準プラン)","forVPNhnc",null,null,null,null,null,null,"副本部長","Deputy Director"]
[null,"forVPN/動的IPOCN光【光一括提供型】(IPoE ワイドプラン)","forVPNhnc",null,null,null,null,null,null,"推進部長","Executive Manager"]
[null,"forVPN/動的IPOCN光【光一括提供型】","forVPNhnc",null,null,null,null,null,null,"統括部長","Executive Manager"]
[null,"IP1フレッツ 光ネクスト(IPoE 標準プラン)","IP1hnIPoE",null,null,null,null,null,null,"部長","Director"]
[null,"IP1フレッツ 光ネクスト(IPoE ワイドプラン)","IP1hnIPoE",null,null,null,null,null,null,"副部長","Deputy Director"]
[null,"IP1フレッツ 光ネクスト","IP1hn",null,null,null,null,null,null,"担当部長","Director"]
[null,"IP1フレッツ 光ライト","IP1hl",null,null,null,null,null,null,"営業部長","Sales Director"]
[null,"IP1フレッツ・光プレミアム(NTT西日本)","IP1hp",null,null,null,null,null,null,"技術部長","Technical Director"]
[null,"IP1Bフレッツ","IP1B",null,null,null,null,null,null,"所長","Executive Manager"]
[null,"IP1フレッツ・ISDN","null",null,null,null,null,null,null,"次長","Deputy Director"]
[null,"IP1フレッツ・ADSL","IP1adsl",null,null,null,null,null,null,"課長","Manager"]
[null,"IP1OCN 光サービス(F)「光ネクスト」","IP1hnF",null,null,null,null,null,null,"課長代理","Assistant Manager"]
[null,"IP1OCN 光サービス(F)「Bフレッツ」","IP1bF",null,null,null,null,null,null,"担当課長","Associate Manager"]
[null,"IP1OCN ADSLサービス(F)","IP1adslF",null,null,null,null,null,null,"係長","Chief"]
[null,"IP1OCN光【光一括提供型】(IPoE 標準プラン)","IP1hnc",null,null,null,null,null,null,"主査","Chief"]
[null,"IP1OCN光【光一括提供型】(IPoE ワイドプラン)","IP1hnc",null,null,null,null,null,null,"主任","Chief"]
[null,"IP1OCN光【光一括提供型】","IP1hnc",null,null,null,null,null,null,"室長","Executive Manager"]
[null,"IP8フレッツ 光ネクスト(IPoE 標準プラン)","IP8hnIPoE",null,null,null,null,null,null,"技師","Engineer"]
[null,"IP8フレッツ 光ネクスト(IPoE ワイドプラン)","IP8hnIPoE",null,null,null,null,null,null,"その他"]
[null,"IP8フレッツ 光ネクスト","IP8hn"]
[null,"IP8フレッツ 光ライト","IP8hl"]
[null,"IP8フレッツ・光プレミアム(NTT西日本)","IP8hp"]
[null,"IP8Bフレッツ","IP8B"]
[null,"IP8フレッツ・ISDN","null"]
[null,"IP8フレッツ・ADSL","IP8adsl"]
[null,"IP8OCN 光サービス(F)「光ネクスト」","IP8hnF"]
[null,"IP8OCN 光サービス(F)「Bフレッツ」","IP8bF"]
[null,"IP8OCN ADSLサービス(F)","IP8adslF"]
[null,"IP8OCN光【光一括提供型】(IPoE 標準プラン)","IP8hnc"]
[null,"IP8OCN光【光一括提供型】(IPoE ワイドプラン)","IP8hnc"]
[null,"IP8OCN光【光一括提供型】","IP8hnc"]
[null,"IP16フレッツ 光ネクスト(IPoE 標準プラン)","IP16hnIPoE"]
[null,"IP16フレッツ 光ネクスト(IPoE ワイドプラン)","IP16hnIPoE"]
[null,"IP16フレッツ 光ネクスト","IP16hn"]
[null,"IP16フレッツ 光ライト","IP16hl"]
[null,"IP16フレッツ・光プレミアム(NTT西日本)","IP16hp"]
[null,"IP16Bフレッツ","IP16B"]
[null,"IP16フレッツ・ISDN","null"]
[null,"IP16フレッツ・ADSL","IP16adsl"]
[null,"IP16OCN 光サービス(F)「光ネクスト」","IP16hnF"]
[null,"IP16OCN 光サービス(F)「Bフレッツ」","IP16bF"]
[null,"IP16OCN ADSLサービス(F)","IP16adslF"]
[null,"IP16OCN光【光一括提供型】(IPoE 標準プラン)","IP16hnc"]
[null,"IP16OCN光【光一括提供型】(IPoE ワイドプラン)","IP16hnc"]
[null,"IP16OCN光【光一括提供型】","IP16hnc"]
[null,"動的IP(ex)フレッツ 光ネクスト(IPoE 標準プラン)","dexhnIPoE"]
[null,"動的IP(ex)フレッツ 光ネクスト(IPoE ワイドプラン)","dexhnIPoE"]
[null,"動的IP(ex)OCN光【光一括提供型】(IPoE 標準プラン)","dexhnc"]
[null,"動的IP(ex)OCN光【光一括提供型】(IPoE ワイドプラン)","dexhnc"]
[null,"IP32フレッツ 光ネクスト","IP3264_hn"]
[null,"IP32Bフレッツ","IP3264_B"]
[null,"IP32OCN 光サービス(F)「光ネクスト」","IP3264_hnF"]
[null,"IP32OCN 光サービス(F)「Bフレッツ」","IP3264_bF"]
[null,"IP64フレッツ 光ネクスト","IP3264_hn"]
[null,"IP64Bフレッツ","IP3264_B"]
[null,"IP64OCN 光サービス(F)「光ネクスト」","IP3264_hnF"]
[null,"IP64OCN 光サービス(F)「Bフレッツ」","IP3264_bF"]
[null,"forVPNライトフレッツ 光ネクスト","litehn"]
[null,"forVPNライトフレッツ 光ライト","litehl"]
[null,"forVPNライトフレッツ・光プレミアム(NTT西日本)","litehp"]
[null,"forVPNライトBフレッツ","liteB"]
[null,"forVPNライトフレッツ・ISDN","null"]
[null,"forVPNライトフレッツ・ADSL","liteadsl"]
[null,"forVPNライトOCN光【光一括提供型】","litehnc"]

{"sheet":"OCNメニュー","index":8,"n_rows":408,"n_cols":7,"rows_kept":408,"cut":false,"hidden":true,"merged":[]}
["■OCN提供メニュー/OCN認証ドメイン"]
[null,"IP種別","アクセスタイプ","契約タイプ","IP種別＋アクセスタイプ＋契約タイプの合体名（検索値）","OCN提供メニュー","OCN認証ドメイン"]
[null,"forVPN/動的IP","フレッツ・ADSL","1.5Mタイプ",{"$f":"B3&C3&D3","v":"forVPN/動的IPフレッツ・ADSL1.5Mタイプ"},"OCN ADSLアクセス 「フレッツ」プラン forVPN 1M/1.5M/8M/12M/24M/40M/47Mタイプ","xxx@dfa.ocn.ne.jp"]
[null,"forVPN/動的IP","フレッツ・ADSL","8Mタイプ",{"$f":"B4&C4&D4","v":"forVPN/動的IPフレッツ・ADSL8Mタイプ"},"OCN ADSLアクセス 「フレッツ」プラン forVPN 1M/1.5M/8M/12M/24M/40M/47Mタイプ","xxx@dfa.ocn.ne.jp"]
[null,"forVPN/動的IP","フレッツ・ADSL","モア(12M)","forVPN/動的IPフレッツ・ADSLモア(12M)","OCN ADSLアクセス 「フレッツ」プラン forVPN 1M/1.5M/8M/12M/24M/40M/47Mタイプ","xxx@dfa.ocn.ne.jp"]
[null,"forVPN/動的IP","フレッツ・ADSL","モアⅡ(24Mタイプ)/モア24(24タイプ)","forVPN/動的IPフレッツ・ADSLモアⅡ(24Mタイプ)/モア24(24タイプ)","OCN ADSLアクセス 「フレッツ」プラン forVPN 1M/1.5M/8M/12M/24M/40M/47Mタイプ","xxx@dfa.ocn.ne.jp"]
[null,"forVPN/動的IP","フレッツ・ADSL","モアⅡ(40M)/モア40(40Mタイプ)","forVPN/動的IPフレッツ・ADSLモアⅡ(40M)/モア40(40Mタイプ)","OCN ADSLアクセス 「フレッツ」プラン forVPN 1M/1.5M/8M/12M/24M/40M/47Mタイプ","xxx@dfa.ocn.ne.jp"]
[null,"forVPN/動的IP","フレッツ・ADSL","モアⅢ(47M)・モアスペシャル(47M)","forVPN/動的IPフレッツ・ADSLモアⅢ(47M)・モアスペシャル(47M)","OCN ADSLアクセス 「フレッツ」プラン forVPN 1M/1.5M/8M/12M/24M/40M/47Mタイプ","xxx@dfa.ocn.ne.jp"]
[null,"forVPN/動的IP","フレッツ・ADSL","モアⅢ(47M)・ビジネスタイプ(NTT東日本)","forVPN/動的IPフレッツ・ADSLモアⅢ(47M)・ビジネスタイプ(NTT東日本)","OCN ADSLアクセス 「フレッツ」プラン forVPN ビジネスタイプ","xxx@dfab.ocn.ne.jp"]
[null,"forVPN/動的IP","フレッツ・ADSL","モアⅡ(24M)・ビジネスタイプ(NTT東日本)","forVPN/動的IPフレッツ・ADSLモアⅡ(24M)・ビジネスタイプ(NTT東日本)","OCN ADSLアクセス 「フレッツ」プラン forVPN ビジネスタイプ","xxx@dfab.ocn.ne.jp"]
[null,"forVPN/動的IP","フレッツ・ISDN",null,"forVPN/動的IPフレッツ・ISDN","OCN ISDNアクセス forVPN 「フレッツ」プラン","xxx@dfi.ocn.ne.jp"]
[null,"forVPN/動的IP","Bフレッツ","ニューファミリータイプ(NTT東日本)","forVPN/動的IPBフレッツニューファミリータイプ(NTT東日本)","OCN 光「フレッツ」 forVPN ファミリータイプ","xxx@dbnf.ocn.ne.jp"]
[null,"forVPN/動的IP","Bフレッツ","ベーシックタイプ(NTT東日本/NTT西日本)","forVPN/動的IPBフレッツベーシックタイプ(NTT東日本/NTT西日本)","OCN 光「フレッツ」 forVPN ベーシックタイプ","xxx@dbfb.ocn.ne.jp"]
[null,"forVPN/動的IP","Bフレッツ","ビル・マンションタイプ(NTT東日本/NTT西日本)","forVPN/動的IPBフレッツビル・マンションタイプ(NTT東日本/NTT西日本)","OCN 光「フレッツ」 forVPN マンションタイプ","xxx@dbfm.ocn.ne.jp"]
[null,"forVPN/動的IP","フレッツ・光プレミアム(NTT西日本)","ファミリータイプ","forVPN/動的IPフレッツ・光プレミアム(NTT西日本)ファミリータイプ","OCN 光「フレッツ」 forVPN ファミリータイプ","xxx@dbnf.ocn.ne.jp"]
[null,"forVPN/動的IP","フレッツ・光プレミアム(NTT西日本)","マンションタイプ","forVPN/動的IPフレッツ・光プレミアム(NTT西日本)マンションタイプ","OCN 光「フレッツ」 forVPN マンションタイプ","xxx@dbfm.ocn.ne.jp"]
[null,"forVPN/動的IP","フレッツ 光ネクスト","ファミリータイプ(NTT東日本/NTT西日本)","forVPN/動的IPフレッツ 光ネクストファミリータイプ(NTT東日本/NTT西日本)","OCN 光「フレッツ」 forVPN ファミリータイプ","xxx@bizd.ocn.ne.jp"]
[null,"forVPN/動的IP","フレッツ 光ネクスト","ファミリー・ハイスピードタイプ(NTT東日本/NTT西日本)","forVPN/動的IPフレッツ 光ネクストファミリー・ハイスピードタイプ(NTT東日本/NTT西日本)","OCN 光「フレッツ」 forVPN ファミリータイプ","xxx@bizd.ocn.ne.jp"]
[null,"forVPN/動的IP","フレッツ 光ネクスト","マンションタイプ(NTT東日本/NTT西日本)","forVPN/動的IPフレッツ 光ネクストマンションタイプ(NTT東日本/NTT西日本)","OCN 光「フレッツ」 forVPN マンションタイプ","xxx@bizd.ocn.ne.jp"]
[null,"forVPN/動的IP","フレッツ 光ネクスト","マンション・ハイスピードタイプ(NTT東日本/NTT西日本)","forVPN/動的IPフレッツ 光ネクストマンション・ハイスピードタイプ(NTT東日本/NTT西日本)","OCN 光「フレッツ」 forVPN マンションタイプ","xxx@bizd.ocn.ne.jp"]
[null,"forVPN/動的IP","フレッツ 光ネクスト","ファミリー・スーパーハイスピードタイプ隼(NTT西日本)","forVPN/動的IPフレッツ 光ネクストファミリー・スーパーハイスピードタイプ隼(NTT西日本)","OCN 光「フレッツ」 forVPN ファミリータイプ","xxx@bizd.ocn.ne.jp"]
[null,"forVPN/動的IP","フレッツ 光ネクスト","マンション・スーパーハイスピードタイプ隼(NTT西日本)","forVPN/動的IPフレッツ 光ネクストマンション・スーパーハイスピードタイプ隼(NTT西日本)","OCN 光「フレッツ」 forVPN マンションタイプ","xxx@bizd.ocn.ne.jp"]
[null,"forVPN/動的IP","フレッツ 光ネクスト","プライオ1(NTT東日本)","forVPN/動的IPフレッツ 光ネクストプライオ1(NTT東日本)","OCN 光「フレッツ」 forVPN プライオ1","xxx@bizd.ocn.ne.jp"]
[null,"forVPN/動的IP","フレッツ 光ネクスト","ギガファミリー・スマートタイプ(NTT東日本)","forVPN/動的IPフレッツ 光ネクストギガファミリー・スマートタイプ(NTT東日本)","OCN 光「フレッツ」 forVPN ギガファミリー","xxx@bizd.ocn.ne.jp"]
[null,"forVPN/動的IP","フレッツ 光ネクスト","ギガマンション・スマートタイプ(NTT東日本)","forVPN/動的IPフレッツ 光ネクストギガマンション・スマートタイプ(NTT東日本)","OCN 光「フレッツ」 forVPN ギガファミリー","xxx@bizd.ocn.ne.jp"]
[null,"forVPN/動的IP","フレッツ 光ネクスト","ファミリー・ギガラインタイプ(NTT東日本)","forVPN/動的IPフレッツ 光ネクストファミリー・ギガラインタイプ(NTT東日本)","OCN 光「フレッツ」 forVPN ギガファミリー","xxx@bizd.ocn.ne.jp"]
[null,"forVPN/動的IP","フレッツ 光ネクスト","マンション・ギガラインタイプ(NTT東日本)","forVPN/動的IPフレッツ 光ネクストマンション・ギガラインタイプ(NTT東日本)","OCN 光「フレッツ」 forVPN ギガファミリー","xxx@bizd.ocn.ne.jp"]
[null,"forVPN/動的IP","フレッツ 光ライト","ファミリータイプ","forVPN/動的IPフレッツ 光ライトファミリータイプ","OCN 光「フレッツ」 forVPN ファミリータイプ","xxx@bizd.ocn.ne.jp"]
[null,"forVPN/動的IP","フレッツ 光ライト","マンションタイプ","forVPN/動的IPフレッツ 光ライトマンションタイプ","OCN 光「フレッツ」 forVPN マンションタイプ","xxx@bizd.ocn.ne.jp"]
[null,"forVPN/動的IP","OCN光【光一括提供型】","ファミリー 100M(NTT東日本)","forVPN/動的IPOCN光【光一括提供型】ファミリー 100M(NTT東日本)","OCN 光 ファミリー 100M forVPN","xxx@bizd.ocn.ne.jp"]
[null,"forVPN/動的IP","OCN光【光一括提供型】","マンション 100M(NTT東日本)","forVPN/動的IPOCN光【光一括提供型】マンション 100M(NTT東日本)","OCN 光 マンション 100M forVPN","xxx@bizd.ocn.ne.jp"]
[null,"forVPN/動的IP","OCN光【光一括提供型】","ファミリー 100M(NTT西日本)","forVPN/動的IPOCN光【光一括提供型】ファミリー 100M(NTT西日本)","OCN 光 ファミリー 100M forVPN","xxx@bizd.ocn.ne.jp"]
[null,"forVPN/動的IP","OCN光【光一括提供型】","マンション 100M(NTT西日本)","forVPN/動的IPOCN光【光一括提供型】マンション 100M(NTT西日本)","OCN 光 マンション 100M forVPN","xxx@bizd.ocn.ne.jp"]
[null,"forVPN/動的IP","OCN光【光一括提供型】","ファミリー 200M(NTT東日本)","forVPN/動的IPOCN光【光一括提供型】ファミリー 200M(NTT東日本)","OCN 光 ファミリー 200M forVPN","xxx@bizd.ocn.ne.jp"]
[null,"forVPN/動的IP","OCN光【光一括提供型】","マンション 200M(NTT東日本)","forVPN/動的IPOCN光【光一括提供型】マンション 200M(NTT東日本)","OCN 光 マンション 200M forVPN","xxx@bizd.ocn.ne.jp"]
[null,"forVPN/動的IP","OCN光【光一括提供型】","ファミリー 200M(NTT西日本)","forVPN/動的IPOCN光【光一括提供型】ファミリー 200M(NTT西日本)","OCN 光 ファミリー 200M forVPN","xxx@bizd.ocn.ne.jp"]
[null,"forVPN/動的IP","OCN光【光一括提供型】","マンション 200M(NTT西日本)","forVPN/動的IPOCN光【光一括提供型】マンション 200M(NTT西日本)","OCN 光 マンション 200M forVPN","xxx@bizd.ocn.ne.jp"]
[null,"forVPN/動的IP","OCN光【光一括提供型】","ファミリー 1G(NTT東日本)","forVPN/動的IPOCN光【光一括提供型】ファミリー 1G(NTT東日本)","OCN 光 ファミリー 1G forVPN","xxx@bizd.ocn.ne.jp"]
[null,"forVPN/動的IP","OCN光【光一括提供型】","マンション 1G(NTT東日本)","forVPN/動的IPOCN光【光一括提供型】マンション 1G(NTT東日本)","OCN 光 マンション 1G forVPN","xxx@bizd.ocn.ne.jp"]
[null,"forVPN/動的IP","OCN光【光一括提供型】","ファミリー 1G(NTT西日本)","forVPN/動的IPOCN光【光一括提供型】ファミリー 1G(NTT西日本)","OCN 光 ファミリー 1G forVPN","xxx@bizd.ocn.ne.jp"]
[null,"forVPN/動的IP","OCN光【光一括提供型】","マンション 1G(NTT西日本)","forVPN/動的IPOCN光【光一括提供型】マンション 1G(NTT西日本)","OCN 光 マンション 1G forVPN","xxx@bizd.ocn.ne.jp"]
[null,"forVPN/動的IP","フレッツ 光ネクスト(IPoE 標準プラン)","NTT東日本","forVPN/動的IPフレッツ 光ネクスト(IPoE 標準プラン)NTT東日本","OCN 光「フレッツ」 IPoE 標準プラン 動的IP","-"]
[null,"forVPN/動的IP","フレッツ 光ネクスト(IPoE 標準プラン)","NTT西日本","forVPN/動的IPフレッツ 光ネクスト(IPoE 標準プラン)NTT西日本","OCN 光「フレッツ」 IPoE 標準プラン 動的IP","-"]
[null,"forVPN/動的IP","フレッツ 光ネクスト(IPoE ワイドプラン)","NTT東日本","forVPN/動的IPフレッツ 光ネクスト(IPoE ワイドプラン)NTT東日本","OCN 光「フレッツ」 IPoE ワイドプラン 動的IP","-"]
[null,"forVPN/動的IP","フレッツ 光ネクスト(IPoE ワイドプラン)","NTT西日本","forVPN/動的IPフレッツ 光ネクスト(IPoE ワイドプラン)NTT西日本","OCN 光「フレッツ」 IPoE ワイドプラン 動的IP","-"]
[null,"forVPN/動的IP","OCN光【光一括提供型】(IPoE 標準プラン)","ファミリー 100M(NTT東日本)","forVPN/動的IPOCN光【光一括提供型】(IPoE 標準プラン)ファミリー 100M(NTT東日本)","OCN 光 IPoE 標準プラン ファミリー 100M 動的IP","-"]
[null,"forVPN/動的IP","OCN光【光一括提供型】(IPoE 標準プラン)","マンション 100M(NTT東日本)","forVPN/動的IPOCN光【光一括提供型】(IPoE 標準プラン)マンション 100M(NTT東日本)","OCN 光 IPoE 標準プラン マンション 100M 動的IP","-"]
[null,"forVPN/動的IP","OCN光【光一括提供型】(IPoE 標準プラン)","ファミリー 100M(NTT西日本)","forVPN/動的IPOCN光【光一括提供型】(IPoE 標準プラン)ファミリー 100M(NTT西日本)","OCN 光 IPoE 標準プラン ファミリー 100M 動的IP","-"]
[null,"forVPN/動的IP","OCN光【光一括提供型】(IPoE 標準プラン)","マンション 100M(NTT西日本)","forVPN/動的IPOCN光【光一括提供型】(IPoE 標準プラン)マンション 100M(NTT西日本)","OCN 光 IPoE 標準プラン マンション 100M 動的IP","-"]
[null,"forVPN/動的IP","OCN光【光一括提供型】(IPoE 標準プラン)","ファミリー 200M(NTT東日本)","forVPN/動的IPOCN光【光一括提供型】(IPoE 標準プラン)ファミリー 200M(NTT東日本)","OCN 光 IPoE 標準プラン ファミリー 200M 動的IP","-"]
[null,"forVPN/動的IP","OCN光【光一括提供型】(IPoE 標準プラン)","マンション 200M(NTT東日本)","forVPN/動的IPOCN光【光一括提供型】(IPoE 標準プラン)マンション 200M(NTT東日本)","OCN 光 IPoE 標準プラン マンション 200M 動的IP","-"]
[null,"forVPN/動的IP","OCN光【光一括提供型】(IPoE 標準プラン)","ファミリー 200M(NTT西日本)","forVPN/動的IPOCN光【光一括提供型】(IPoE 標準プラン)ファミリー 200M(NTT西日本)","OCN 光 IPoE 標準プラン ファミリー 200M 動的IP","-"]
[null,"forVPN/動的IP","OCN光【光一括提供型】(IPoE 標準プラン)","マンション 200M(NTT西日本)","forVPN/動的IPOCN光【光一括提供型】(IPoE 標準プラン)マンション 200M(NTT西日本)","OCN 光 IPoE 標準プラン マンション 200M 動的IP","-"]
[null,"forVPN/動的IP","OCN光【光一括提供型】(IPoE 標準プラン)","ファミリー 1G(NTT東日本)","forVPN/動的IPOCN光【光一括提供型】(IPoE 標準プラン)ファミリー 1G(NTT東日本)","OCN 光 IPoE 標準プラン ファミリー 1G 動的IP","-"]
[null,"forVPN/動的IP","OCN光【光一括提供型】(IPoE 標準プラン)","マンション 1G(NTT東日本)","forVPN/動的IPOCN光【光一括提供型】(IPoE 標準プラン)マンション 1G(NTT東日本)","OCN 光 IPoE 標準プラン マンション 1G 動的IP","-"]
[null,"forVPN/動的IP","OCN光【光一括提供型】(IPoE 標準プラン)","ファミリー 1G(NTT西日本)","forVPN/動的IPOCN光【光一括提供型】(IPoE 標準プラン)ファミリー 1G(NTT西日本)","OCN 光 IPoE 標準プラン ファミリー 1G 動的IP","-"]
[null,"forVPN/動的IP","OCN光【光一括提供型】(IPoE 標準プラン)","マンション 1G(NTT西日本)","forVPN/動的IPOCN光【光一括提供型】(IPoE 標準プラン)マンション 1G(NTT西日本)","OCN 光 IPoE 標準プラン マンション 1G 動的IP","-"]
[null,"forVPN/動的IP","OCN光【光一括提供型】(IPoE ワイドプラン)","ファミリー 100M(NTT東日本)","forVPN/動的IPOCN光【光一括提供型】(IPoE ワイドプラン)ファミリー 100M(NTT東日本)","OCN 光 IPoE ワイドプラン ファミリー 100M 動的IP","-"]
[null,"forVPN/動的IP","OCN光【光一括提供型】(IPoE ワイドプラン)","マンション 100M(NTT東日本)","forVPN/動的IPOCN光【光一括提供型】(IPoE ワイドプラン)マンション 100M(NTT東日本)","OCN 光 IPoE ワイドプラン マンション 100M 動的IP","-"]
[null,"forVPN/動的IP","OCN光【光一括提供型】(IPoE ワイドプラン)","ファミリー 100M(NTT西日本)","forVPN/動的IPOCN光【光一括提供型】(IPoE ワイドプラン)ファミリー 100M(NTT西日本)","OCN 光 IPoE ワイドプラン ファミリー 100M 動的IP","-"]
[null,"forVPN/動的IP","OCN光【光一括提供型】(IPoE ワイドプラン)","マンション 100M(NTT西日本)","forVPN/動的IPOCN光【光一括提供型】(IPoE ワイドプラン)マンション 100M(NTT西日本)","OCN 光 IPoE ワイドプラン マンション 100M 動的IP","-"]
[null,"forVPN/動的IP","OCN光【光一括提供型】(IPoE ワイドプラン)","ファミリー 200M(NTT東日本)","forVPN/動的IPOCN光【光一括提供型】(IPoE ワイドプラン)ファミリー 200M(NTT東日本)","OCN 光 IPoE ワイドプラン ファミリー 200M 動的IP","-"]
[null,"forVPN/動的IP","OCN光【光一括提供型】(IPoE ワイドプラン)","マンション 200M(NTT東日本)","forVPN/動的IPOCN光【光一括提供型】(IPoE ワイドプラン)マンション 200M(NTT東日本)","OCN 光 IPoE ワイドプラン マンション 200M 動的IP","-"]
[null,"forVPN/動的IP","OCN光【光一括提供型】(IPoE ワイドプラン)","ファミリー 200M(NTT西日本)","forVPN/動的IPOCN光【光一括提供型】(IPoE ワイドプラン)ファミリー 200M(NTT西日本)","OCN 光 IPoE ワイドプラン ファミリー 200M 動的IP","-"]
[null,"forVPN/動的IP","OCN光【光一括提供型】(IPoE ワイドプラン)","マンション 200M(NTT西日本)","forVPN/動的IPOCN光【光一括提供型】(IPoE ワイドプラン)マンション 200M(NTT西日本)","OCN 光 IPoE ワイドプラン マンション 200M 動的IP","-"]
[null,"forVPN/動的IP","OCN光【光一括提供型】(IPoE ワイドプラン)","ファミリー 1G(NTT東日本)","forVPN/動的IPOCN光【光一括提供型】(IPoE ワイドプラン)ファミリー 1G(NTT東日本)","OCN 光 IPoE ワイドプラン ファミリー 1G 動的IP","-"]
[null,"forVPN/動的IP","OCN光【光一括提供型】(IPoE ワイドプラン)","マンション 1G(NTT東日本)","forVPN/動的IPOCN光【光一括提供型】(IPoE ワイドプラン)マンション 1G(NTT東日本)","OCN 光 IPoE ワイドプラン マンション 1G 動的IP","-"]
[null,"forVPN/動的IP","OCN光【光一括提供型】(IPoE ワイドプラン)","ファミリー 1G(NTT西日本)",{"$f":"B68&C68&D68","v":"forVPN/動的IPOCN光【光一括提供型】(IPoE ワイドプラン)ファミリー 1G(NTT西日本)"},"OCN 光 IPoE ワイドプラン ファミリー 1G 動的IP","-"]
[null,"forVPN/動的IP","OCN光【光一括提供型】(IPoE ワイドプラン)","マンション 1G(NTT西日本)","forVPN/動的IPOCN光【光一括提供型】(IPoE ワイドプラン)マンション 1G(NTT西日本)","OCN 光 IPoE ワイドプラン マンション 1G 動的IP","-"]
[null,"forVPN/動的IP","OCN ADSLサービス(F)","モアⅢ(47M)(NTT東日本)","forVPN/動的IPOCN ADSLサービス(F)モアⅢ(47M)(NTT東日本)","OCN ADSLサービス forVPN(F)47M 東タイプ","xxx@dfa.ocn.ne.jp"]
[null,"forVPN/動的IP","OCN ADSLサービス(F)","モアスペシャル(47M)(NTT西日本)","forVPN/動的IPOCN ADSLサービス(F)モアスペシャル(47M)(NTT西日本)","OCN ADSLサービス forVPN(F)47M 西タイプ","xxx@dfa.ocn.ne.jp"]
[null,"forVPN/動的IP","OCN ADSLサービス(F)","モアⅡ(40M)(NTT東日本)","forVPN/動的IPOCN ADSLサービス(F)モアⅡ(40M)(NTT東日本)","OCN ADSLサービス forVPN(F)40M 東タイプ","xxx@dfa.ocn.ne.jp"]
[null,"forVPN/動的IP","OCN ADSLサービス(F)","モア40(40M)(NTT西日本)","forVPN/動的IPOCN ADSLサービス(F)モア40(40M)(NTT西日本)","OCN ADSLサービス forVPN(F)40M 西タイプ","xxx@dfa.ocn.ne.jp"]
[null,"forVPN/動的IP","OCN ADSLサービス(F)","モア24(24M)(NTT西日本)","forVPN/動的IPOCN ADSLサービス(F)モア24(24M)(NTT西日本)","OCN ADSLサービス forVPN(F)24M 西タイプ","xxx@dfa.ocn.ne.jp"]
[null,"forVPN/動的IP","OCN ADSLサービス(F)","モア(12M)(NTT東日本)","forVPN/動的IPOCN ADSLサービス(F)モア(12M)(NTT東日本)","OCN ADSLサービス forVPN(F)12M 東タイプ","xxx@dfa.ocn.ne.jp"]
[null,"forVPN/動的IP","OCN ADSLサービス(F)","モア(12M)(NTT西日本)","forVPN/動的IPOCN ADSLサービス(F)モア(12M)(NTT西日本)","OCN ADSLサービス forVPN(F)12M 西タイプ","xxx@dfa.ocn.ne.jp"]
[null,"forVPN/動的IP","OCN ADSLサービス(F)","8M(NTT東日本)","forVPN/動的IPOCN ADSLサービス(F)8M(NTT東日本)","OCN ADSLサービス forVPN(F)8M 東タイプ","xxx@dfa.ocn.ne.jp"]
[null,"forVPN/動的IP","OCN ADSLサービス(F)","8M(NTT西日本)","forVPN/動的IPOCN ADSLサービス(F)8M(NTT西日本)","OCN ADSLサービス forVPN(F)8M 西タイプ","xxx@dfa.ocn.ne.jp"]
[null,"forVPN/動的IP","OCN ADSLサービス(F)","1.5M(NTT東日本)","forVPN/動的IPOCN ADSLサービス(F)1.5M(NTT東日本)","OCN ADSLサービス forVPN(F)1.5M 東タイプ","xxx@dfa.ocn.ne.jp"]
[null,"forVPN/動的IP","OCN ADSLサービス(F)","1.5M(NTT西日本)","forVPN/動的IPOCN ADSLサービス(F)1.5M(NTT西日本)","OCN ADSLサービス forVPN(F)1.5M 西タイプ","xxx@dfa.ocn.ne.jp"]
[null,"forVPN/動的IP","OCN ADSLサービス(F)","モアⅢ(47M)・ビジネスタイプ(NTT東日本)","forVPN/動的IPOCN ADSLサービス(F)モアⅢ(47M)・ビジネスタイプ(NTT東日本)","OCN ADSLサービス forVPN(F)ビジネス47M 東タイプ","xxx@dfab.ocn.ne.jp"]
[null,"forVPN/動的IP","OCN ADSLサービス(F)","モアⅡ(40M)・ビジネスタイプ(NTT東日本)","forVPN/動的IPOCN ADSLサービス(F)モアⅡ(40M)・ビジネスタイプ(NTT東日本)","OCN ADSLサービス forVPN(F)ビジネス40M 東タイプ","xxx@dfab.ocn.ne.jp"]
[null,"forVPN/動的IP","OCN 光サービス(F)「光ネクスト」","ファミリータイプ(NTT東日本)","forVPN/動的IPOCN 光サービス(F)「光ネクスト」ファミリータイプ(NTT東日本)","OCN 光サービス forVPN(F) 「光ネクスト」ファミリータイプ 東タイプ","xxx@bizd.ocn.ne.jp"]
[null,"forVPN/動的IP","OCN 光サービス(F)「光ネクスト」","ファミリータイプ(NTT西日本)","forVPN/動的IPOCN 光サービス(F)「光ネクスト」ファミリータイプ(NTT西日本)","OCN 光サービス forVPN(F) 「光ネクスト」ファミリータイプ 西タイプ","xxx@bizd.ocn.ne.jp"]
[null,"forVPN/動的IP","OCN 光サービス(F)「光ネクスト」","ファミリー・ハイスピードタイプ(NTT東日本)","forVPN/動的IPOCN 光サービス(F)「光ネクスト」ファミリー・ハイスピードタイプ(NTT東日本)","OCN 光サービス forVPN(F) 「光ネクスト」ファミリー･ハイスピードタイプ","xxx@bizd.ocn.ne.jp"]
[null,"forVPN/動的IP","OCN 光サービス(F)「光ネクスト」","ファミリー・ハイスピードタイプ(NTT西日本)","forVPN/動的IPOCN 光サービス(F)「光ネクスト」ファミリー・ハイスピードタイプ(NTT西日本)","OCN 光サービス forVPN(F) 「光ネクスト」ファミリー･ハイスピードタイプ 西タイプ","xxx@bizd.ocn.ne.jp"]
[null,"forVPN/動的IP","OCN 光サービス(F)「光ネクスト」","ファミリー・スーパーハイスピードタイプ隼(NTT西日本)","forVPN/動的IPOCN 光サービス(F)「光ネクスト」ファミリー・スーパーハイスピードタイプ隼(NTT西日本)","OCN 光サービス forVPN(F) 「光ネクスト」ファミリー･スーパーハイスピード隼 西タイプ","xxx@bizd.ocn.ne.jp"]
[null,"forVPN/動的IP","OCN 光サービス(F)「光ネクスト」","プライオ1(NTT東日本)","forVPN/動的IPOCN 光サービス(F)「光ネクスト」プライオ1(NTT東日本)","OCN 光サービス forVPN(F) 「光ネクスト」プライオ1 東タイプ","xxx@bizd.ocn.ne.jp"]
[null,"forVPN/動的IP","OCN 光サービス(F)「光ネクスト」","ギガファミリー・スマートタイプ(NTT東日本)","forVPN/動的IPOCN 光サービス(F)「光ネクスト」ギガファミリー・スマートタイプ(NTT東日本)","OCN 光サービス forVPN(F) 「光ネクスト」ギガファミリー 東タイプ","xxx@bizd.ocn.ne.jp"]
[null,"forVPN/動的IP","OCN 光サービス(F)「光ネクスト」","ファミリー・ギガラインタイプ(NTT東日本)","forVPN/動的IPOCN 光サービス(F)「光ネクスト」ファミリー・ギガラインタイプ(NTT東日本)","OCN 光サービス forVPN(F) 「光ネクスト」ファミリー･ギガライン 東タイプ","xxx@bizd.ocn.ne.jp"]
[null,"動的IP(ex)","フレッツ 光ネクスト(IPoE 標準プラン)","NTT東日本","動的IP(ex)フレッツ 光ネクスト(IPoE 標準プラン)NTT東日本","OCN 光「フレッツ」 IPoE 標準プラン 動的IP(ex)","-"]
[null,"動的IP(ex)","フレッツ 光ネクスト(IPoE 標準プラン)","NTT西日本","動的IP(ex)フレッツ 光ネクスト(IPoE 標準プラン)NTT西日本","OCN 光「フレッツ」 IPoE 標準プラン 動的IP(ex)","-"]
[null,"動的IP(ex)","フレッツ 光ネクスト(IPoE ワイドプラン)","NTT東日本","動的IP(ex)フレッツ 光ネクスト(IPoE ワイドプラン)NTT東日本","OCN 光「フレッツ」 IPoE ワイドプラン 動的IP(ex)","-"]
[null,"動的IP(ex)","フレッツ 光ネクスト(IPoE ワイドプラン)","NTT西日本","動的IP(ex)フレッツ 光ネクスト(IPoE ワイドプラン)NTT西日本","OCN 光「フレッツ」 IPoE ワイドプラン 動的IP(ex)","-"]
[null,"動的IP(ex)","OCN光【光一括提供型】(IPoE 標準プラン)","ファミリー 100M(NTT東日本)","動的IP(ex)OCN光【光一括提供型】(IPoE 標準プラン)ファミリー 100M(NTT東日本)","OCN 光 IPoE 標準プラン ファミリー 100M 動的IP(ex)","-"]
[null,"動的IP(ex)","OCN光【光一括提供型】(IPoE 標準プラン)","マンション 100M(NTT東日本)","動的IP(ex)OCN光【光一括提供型】(IPoE 標準プラン)マンション 100M(NTT東日本)","OCN 光 IPoE 標準プラン マンション 100M 動的IP(ex)","-"]
[null,"動的IP(ex)","OCN光【光一括提供型】(IPoE 標準プラン)","ファミリー 100M(NTT西日本)","動的IP(ex)OCN光【光一括提供型】(IPoE 標準プラン)ファミリー 100M(NTT西日本)","OCN 光 IPoE 標準プラン ファミリー 100M 動的IP(ex)","-"]
[null,"動的IP(ex)","OCN光【光一括提供型】(IPoE 標準プラン)","マンション 100M(NTT西日本)","動的IP(ex)OCN光【光一括提供型】(IPoE 標準プラン)マンション 100M(NTT西日本)","OCN 光 IPoE 標準プラン マンション 100M 動的IP(ex)","-"]
[null,"動的IP(ex)","OCN光【光一括提供型】(IPoE 標準プラン)","ファミリー 200M(NTT東日本)","動的IP(ex)OCN光【光一括提供型】(IPoE 標準プラン)ファミリー 200M(NTT東日本)","OCN 光 IPoE 標準プラン ファミリー 200M 動的IP(ex)","-"]
[null,"動的IP(ex)","OCN光【光一括提供型】(IPoE 標準プラン)","マンション 200M(NTT東日本)","動的IP(ex)OCN光【光一括提供型】(IPoE 標準プラン)マンション 200M(NTT東日本)","OCN 光 IPoE 標準プラン マンション 200M 動的IP(ex)","-"]
[null,"動的IP(ex)","OCN光【光一括提供型】(IPoE 標準プラン)","ファミリー 200M(NTT西日本)","動的IP(ex)OCN光【光一括提供型】(IPoE 標準プラン)ファミリー 200M(NTT西日本)","OCN 光 IPoE 標準プラン ファミリー 200M 動的IP(ex)","-"]
[null,"動的IP(ex)","OCN光【光一括提供型】(IPoE 標準プラン)","マンション 200M(NTT西日本)","動的IP(ex)OCN光【光一括提供型】(IPoE 標準プラン)マンション 200M(NTT西日本)","OCN 光 IPoE 標準プラン マンション 200M 動的IP(ex)","-"]
[null,"動的IP(ex)","OCN光【光一括提供型】(IPoE 標準プラン)","ファミリー 1G(NTT東日本)","動的IP(ex)OCN光【光一括提供型】(IPoE 標準プラン)ファミリー 1G(NTT東日本)","OCN 光 IPoE 標準プラン ファミリー 1G 動的IP(ex)","-"]
[null,"動的IP(ex)","OCN光【光一括提供型】(IPoE 標準プラン)","マンション 1G(NTT東日本)","動的IP(ex)OCN光【光一括提供型】(IPoE 標準プラン)マンション 1G(NTT東日本)","OCN 光 IPoE 標準プラン マンション 1G 動的IP(ex)","-"]
[null,"動的IP(ex)","OCN光【光一括提供型】(IPoE 標準プラン)","ファミリー 1G(NTT西日本)","動的IP(ex)OCN光【光一括提供型】(IPoE 標準プラン)ファミリー 1G(NTT西日本)","OCN 光 IPoE 標準プラン ファミリー 1G 動的IP(ex)","-"]
[null,"動的IP(ex)","OCN光【光一括提供型】(IPoE 標準プラン)","マンション 1G(NTT西日本)","動的IP(ex)OCN光【光一括提供型】(IPoE 標準プラン)マンション 1G(NTT西日本)","OCN 光 IPoE 標準プラン マンション 1G 動的IP(ex)","-"]
[null,"動的IP(ex)","OCN光【光一括提供型】(IPoE ワイドプラン)","ファミリー 100M(NTT東日本)","動的IP(ex)OCN光【光一括提供型】(IPoE ワイドプラン)ファミリー 100M(NTT東日本)","OCN 光 IPoE ワイドプラン ファミリー 100M 動的IP(ex)","-"]
[null,"動的IP(ex)","OCN光【光一括提供型】(IPoE ワイドプラン)","マンション 100M(NTT東日本)","動的IP(ex)OCN光【光一括提供型】(IPoE ワイドプラン)マンション 100M(NTT東日本)","OCN 光 IPoE ワイドプラン マンション 100M 動的IP(ex)","-"]
[null,"動的IP(ex)","OCN光【光一括提供型】(IPoE ワイドプラン)","ファミリー 100M(NTT西日本)","動的IP(ex)OCN光【光一括提供型】(IPoE ワイドプラン)ファミリー 100M(NTT西日本)","OCN 光 IPoE ワイドプラン ファミリー 100M 動的IP(ex)","-"]
[null,"動的IP(ex)","OCN光【光一括提供型】(IPoE ワイドプラン)","マンション 100M(NTT西日本)","動的IP(ex)OCN光【光一括提供型】(IPoE ワイドプラン)マンション 100M(NTT西日本)","OCN 光 IPoE ワイドプラン マンション 100M 動的IP(ex)","-"]
[null,"動的IP(ex)","OCN光【光一括提供型】(IPoE ワイドプラン)","ファミリー 200M(NTT東日本)","動的IP(ex)OCN光【光一括提供型】(IPoE ワイドプラン)ファミリー 200M(NTT東日本)","OCN 光 IPoE ワイドプラン ファミリー 200M 動的IP(ex)","-"]
[null,"動的IP(ex)","OCN光【光一括提供型】(IPoE ワイドプラン)","マンション 200M(NTT東日本)","動的IP(ex)OCN光【光一括提供型】(IPoE ワイドプラン)マンション 200M(NTT東日本)","OCN 光 IPoE ワイドプラン マンション 200M 動的IP(ex)","-"]
[null,"動的IP(ex)","OCN光【光一括提供型】(IPoE ワイドプラン)","ファミリー 200M(NTT西日本)","動的IP(ex)OCN光【光一括提供型】(IPoE ワイドプラン)ファミリー 200M(NTT西日本)","OCN 光 IPoE ワイドプラン ファミリー 200M 動的IP(ex)","-"]
[null,"動的IP(ex)","OCN光【光一括提供型】(IPoE ワイドプラン)","マンション 200M(NTT西日本)","動的IP(ex)OCN光【光一括提供型】(IPoE ワイドプラン)マンション 200M(NTT西日本)","OCN 光 IPoE ワイドプラン マンション 200M 動的IP(ex)","-"]
[null,"動的IP(ex)","OCN光【光一括提供型】(IPoE ワイドプラン)","ファミリー 1G(NTT東日本)","動的IP(ex)OCN光【光一括提供型】(IPoE ワイドプラン)ファミリー 1G(NTT東日本)","OCN 光 IPoE ワイドプラン ファミリー 1G 動的IP(ex)","-"]
[null,"動的IP(ex)","OCN光【光一括提供型】(IPoE ワイドプラン)","マンション 1G(NTT東日本)","動的IP(ex)OCN光【光一括提供型】(IPoE ワイドプラン)マンション 1G(NTT東日本)","OCN 光 IPoE ワイドプラン マンション 1G 動的IP(ex)","-"]
[null,"動的IP(ex)","OCN光【光一括提供型】(IPoE ワイドプラン)","ファミリー 1G(NTT西日本)","動的IP(ex)OCN光【光一括提供型】(IPoE ワイドプラン)ファミリー 1G(NTT西日本)","OCN 光 IPoE ワイドプラン ファミリー 1G 動的IP(ex)","-"]
[null,"動的IP(ex)","OCN光【光一括提供型】(IPoE ワイドプラン)","マンション 1G(NTT西日本)","動的IP(ex)OCN光【光一括提供型】(IPoE ワイドプラン)マンション 1G(NTT西日本)","OCN 光 IPoE ワイドプラン マンション 1G 動的IP(ex)","-"]
[null,"IP1","フレッツ・ADSL","1.5Mタイプ","IP1フレッツ・ADSL1.5Mタイプ","OCN ADSLアクセス IP1 「フレッツ」プラン 1M/1.5M/8M/12M/24M/40M/47Mタイプ","xxx@ffa.ocn.ne.jp"]
[null,"IP1","フレッツ・ADSL","8Mタイプ","IP1フレッツ・ADSL8Mタイプ","OCN ADSLアクセス IP1 「フレッツ」プラン 1M/1.5M/8M/12M/24M/40M/47Mタイプ","xxx@ffa.ocn.ne.jp"]
[null,"IP1","フレッツ・ADSL","モア(12M)","IP1フレッツ・ADSLモア(12M)","OCN ADSLアクセス IP1 「フレッツ」プラン 1M/1.5M/8M/12M/24M/40M/47Mタイプ","xxx@ffa.ocn.ne.jp"]
[null,"IP1","フレッツ・ADSL","モアⅡ(24Mタイプ)/モア24(24タイプ)","IP1フレッツ・ADSLモアⅡ(24Mタイプ)/モア24(24タイプ)","OCN ADSLアクセス IP1 「フレッツ」プラン 1M/1.5M/8M/12M/24M/40M/47Mタイプ","xxx@ffa.ocn.ne.jp"]
[null,"IP1","フレッツ・ADSL","モアⅡ(40M)/モア40(40Mタイプ)","IP1フレッツ・ADSLモアⅡ(40M)/モア40(40Mタイプ)","OCN ADSLアクセス IP1 「フレッツ」プラン 1M/1.5M/8M/12M/24M/40M/47Mタイプ","xxx@ffa.ocn.ne.jp"]
[null,"IP1","フレッツ・ADSL","モアⅢ(47M)・モアスペシャル(47M)","IP1フレッツ・ADSLモアⅢ(47M)・モアスペシャル(47M)","OCN ADSLアクセス IP1 「フレッツ」プラン 1M/1.5M/8M/12M/24M/40M/47Mタイプ","xxx@ffa.ocn.ne.jp"]
[null,"IP1","フレッツ・ADSL","モアⅢ(47M)・ビジネスタイプ(NTT東日本)","IP1フレッツ・ADSLモアⅢ(47M)・ビジネスタイプ(NTT東日本)","OCN ADSLアクセス IP1 「フレッツ」プラン ビジネスタイプ","xxx@ffab.ocn.ne.jp"]
[null,"IP1","フレッツ・ADSL","モアⅡ(24M)・ビジネスタイプ(NTT東日本)","IP1フレッツ・ADSLモアⅡ(24M)・ビジネスタイプ(NTT東日本)","OCN ADSLアクセス IP1 「フレッツ」プラン ビジネスタイプ","xxx@ffab.ocn.ne.jp"]
[null,"IP1","フレッツ・ISDN",null,"IP1フレッツ・ISDN","OCN ISDNアクセス IP1 「フレッツ」プラン","xxx@ffi.ocn.ne.jp"]
[null,"IP1","Bフレッツ","ニューファミリータイプ(NTT東日本)","IP1Bフレッツニューファミリータイプ(NTT東日本)","OCN 光「フレッツ」 IP1 ファミリータイプ","xxx@fbnf2.ocn.ne.jp"]
[null,"IP1","Bフレッツ","ベーシックタイプ(NTT東日本/NTT西日本)","IP1Bフレッツベーシックタイプ(NTT東日本/NTT西日本)","OCN 光「フレッツ」 IP1 ベーシックタイプ","xxx@fbfb2.ocn.ne.jp"]
[null,"IP1","Bフレッツ","ビジネスタイプ(NTT東日本/NTT西日本)","IP1Bフレッツビジネスタイプ(NTT東日本/NTT西日本)","OCN 光「フレッツ」 IP1 ビジネスタイプ","xxx@fbfh2.ocn.ne.jp"]
[null,"IP1","Bフレッツ","ビル・マンションタイプ(NTT東日本/NTT西日本)","IP1Bフレッツビル・マンションタイプ(NTT東日本/NTT西日本)","OCN 光「フレッツ」 IP1 マンションタイプ","xxx@fbfm2.ocn.ne.jp"]
[null,"IP1","フレッツ 光ネクスト","ファミリータイプ(NTT東日本/NTT西日本)",{"$f":"B132&C132&D132","v":"IP1フレッツ 光ネクストファミリータイプ(NTT東日本/NTT西日本)"},"OCN 光「フレッツ」 IP1 ファミリータイプ","xxx@bizf.ocn.ne.jp"]
[null,"IP1","フレッツ 光ネクスト","ファミリー・ハイスピードタイプ(NTT東日本/NTT西日本)","IP1フレッツ 光ネクストファミリー・ハイスピードタイプ(NTT東日本/NTT西日本)","OCN 光「フレッツ」 IP1 ファミリータイプ","xxx@bizf.ocn.ne.jp"]
[null,"IP1","フレッツ 光ネクスト","マンションタイプ(NTT東日本/NTT西日本)","IP1フレッツ 光ネクストマンションタイプ(NTT東日本/NTT西日本)","OCN 光「フレッツ」 IP1 マンションタイプ","xxx@bizf.ocn.ne.jp"]
[null,"IP1","フレッツ 光ネクスト","マンション・ハイスピードタイプ(NTT東日本/NTT西日本)","IP1フレッツ 光ネクストマンション・ハイスピードタイプ(NTT東日本/NTT西日本)","OCN 光「フレッツ」 IP1 マンションタイプ","xxx@bizf.ocn.ne.jp"]
[null,"IP1","フレッツ 光ネクスト","ファミリー・スーパーハイスピードタイプ隼(NTT西日本)","IP1フレッツ 光ネクストファミリー・スーパーハイスピードタイプ隼(NTT西日本)","OCN 光「フレッツ」 IP1 ファミリータイプ","xxx@bizf.ocn.ne.jp"]
[null,"IP1","フレッツ 光ネクスト","マンション・スーパーハイスピードタイプ隼(NTT西日本)","IP1フレッツ 光ネクストマンション・スーパーハイスピードタイプ隼(NTT西日本)","OCN 光「フレッツ」 IP1 マンションタイプ","xxx@bizf.ocn.ne.jp"]
[null,"IP1","フレッツ 光ネクスト","ビジネスタイプ(NTT東日本/NTT西日本)","IP1フレッツ 光ネクストビジネスタイプ(NTT東日本/NTT西日本)","OCN 光「フレッツ」 IP1 ビジネスタイプ","xxx@bizf.ocn.ne.jp"]
[null,"IP1","フレッツ 光ネクスト","プライオ1(NTT東日本)","IP1フレッツ 光ネクストプライオ1(NTT東日本)","OCN 光「フレッツ」 IP1 プライオ1","xxx@bizf.ocn.ne.jp"]
[null,"IP1","フレッツ 光ネクスト","プライオ10(NTT東日本)","IP1フレッツ 光ネクストプライオ10(NTT東日本)","OCN 光「フレッツ」 IP1 プライオ10","xxx@bizf.ocn.ne.jp"]
[null,"IP1","フレッツ 光ネクスト","ギガファミリー・スマートタイプ(NTT東日本)","IP1フレッツ 光ネクストギガファミリー・スマートタイプ(NTT東日本)","OCN 光「フレッツ」 IP1 ギガファミリー","xxx@bizf.ocn.ne.jp"]
[null,"IP1","フレッツ 光ネクスト","ギガマンション・スマートタイプ(NTT東日本)","IP1フレッツ 光ネクストギガマンション・スマートタイプ(NTT東日本)","OCN 光「フレッツ」 IP1 ギガファミリー","xxx@bizf.ocn.ne.jp"]
[null,"IP1","フレッツ 光ネクスト","ファミリー・ギガラインタイプ(NTT東日本)","IP1フレッツ 光ネクストファミリー・ギガラインタイプ(NTT東日本)","OCN 光「フレッツ」 IP1 ギガファミリー","xxx@bizf.ocn.ne.jp"]
[null,"IP1","フレッツ 光ネクスト","マンション・ギガラインタイプ(NTT東日本)","IP1フレッツ 光ネクストマンション・ギガラインタイプ(NTT東日本)","OCN 光「フレッツ」 IP1 ギガファミリー","xxx@bizf.ocn.ne.jp"]
[null,"IP1","フレッツ 光ライト","ファミリータイプ","IP1フレッツ 光ライトファミリータイプ","OCN 光「フレッツ」 IP1 ファミリータイプ","xxx@bizf.ocn.ne.jp"]
[null,"IP1","フレッツ 光ライト","マンションタイプ","IP1フレッツ 光ライトマンションタイプ","OCN 光「フレッツ」 IP1 マンションタイプ","xxx@bizf.ocn.ne.jp"]
[null,"IP1","OCN光【光一括提供型】","ファミリー 100M(NTT東日本)","IP1OCN光【光一括提供型】ファミリー 100M(NTT東日本)","OCN 光 ファミリー 100M IP1","xxx@bizf.ocn.ne.jp"]
[null,"IP1","OCN光【光一括提供型】","マンション 100M(NTT東日本)","IP1OCN光【光一括提供型】マンション 100M(NTT東日本)","OCN 光 マンション 100M IP1","xxx@bizf.ocn.ne.jp"]
[null,"IP1","OCN光【光一括提供型】","ファミリー 100M(NTT西日本)","IP1OCN光【光一括提供型】ファミリー 100M(NTT西日本)","OCN 光 ファミリー 100M IP1","xxx@bizf.ocn.ne.jp"]
[null,"IP1","OCN光【光一括提供型】","マンション 100M(NTT西日本)","IP1OCN光【光一括提供型】マンション 100M(NTT西日本)","OCN 光 マンション 100M IP1","xxx@bizf.ocn.ne.jp"]
[null,"IP1","OCN光【光一括提供型】","ファミリー 200M(NTT東日本)","IP1OCN光【光一括提供型】ファミリー 200M(NTT東日本)","OCN 光 ファミリー 200M IP1","xxx@bizf.ocn.ne.jp"]
[null,"IP1","OCN光【光一括提供型】","マンション 200M(NTT東日本)","IP1OCN光【光一括提供型】マンション 200M(NTT東日本)","OCN 光 マンション 200M IP1","xxx@bizf.ocn.ne.jp"]
[null,"IP1","OCN光【光一括提供型】","ファミリー 200M(NTT西日本)","IP1OCN光【光一括提供型】ファミリー 200M(NTT西日本)","OCN 光 ファミリー 200M IP1","xxx@bizf.ocn.ne.jp"]
[null,"IP1","OCN光【光一括提供型】","マンション 200M(NTT西日本)","IP1OCN光【光一括提供型】マンション 200M(NTT西日本)","OCN 光 マンション 200M IP1","xxx@bizf.ocn.ne.jp"]
[null,"IP1","OCN光【光一括提供型】","ファミリー 1G(NTT東日本)","IP1OCN光【光一括提供型】ファミリー 1G(NTT東日本)","OCN 光 ファミリー 1G IP1","xxx@bizf.ocn.ne.jp"]
[null,"IP1","OCN光【光一括提供型】","マンション 1G(NTT東日本)","IP1OCN光【光一括提供型】マンション 1G(NTT東日本)","OCN 光 マンション 1G IP1","xxx@bizf.ocn.ne.jp"]
[null,"IP1","OCN光【光一括提供型】","ファミリー 1G(NTT西日本)","IP1OCN光【光一括提供型】ファミリー 1G(NTT西日本)","OCN 光 ファミリー 1G IP1","xxx@bizf.ocn.ne.jp"]
[null,"IP1","OCN光【光一括提供型】","マンション 1G(NTT西日本)","IP1OCN光【光一括提供型】マンション 1G(NTT西日本)","OCN 光 マンション 1G IP1","xxx@bizf.ocn.ne.jp"]
[null,"IP1","フレッツ 光ネクスト(IPoE 標準プラン)","NTT東日本","IP1フレッツ 光ネクスト(IPoE 標準プラン)NTT東日本","OCN 光「フレッツ」 IPoE 標準プラン IP1","-"]
[null,"IP1","フレッツ 光ネクスト(IPoE 標準プラン)","NTT西日本","IP1フレッツ 光ネクスト(IPoE 標準プラン)NTT西日本","OCN 光「フレッツ」 IPoE 標準プラン IP1","-"]
[null,"IP1","フレッツ 光ネクスト(IPoE ワイドプラン)","NTT東日本","IP1フレッツ 光ネクスト(IPoE ワイドプラン)NTT東日本","OCN 光「フレッツ」 IPoE ワイドプラン IP1","-"]
[null,"IP1","フレッツ 光ネクスト(IPoE ワイドプラン)","NTT西日本","IP1フレッツ 光ネクスト(IPoE ワイドプラン)NTT西日本","OCN 光「フレッツ」 IPoE ワイドプラン IP1","-"]
[null,"IP1","OCN光【光一括提供型】(IPoE 標準プラン)","ファミリー 100M(NTT東日本)","IP1OCN光【光一括提供型】(IPoE 標準プラン)ファミリー 100M(NTT東日本)","OCN 光 IPoE 標準プラン ファミリー 100M IP1","-"]
[null,"IP1","OCN光【光一括提供型】(IPoE 標準プラン)","マンション 100M(NTT東日本)","IP1OCN光【光一括提供型】(IPoE 標準プラン)マンション 100M(NTT東日本)","OCN 光 IPoE 標準プラン マンション 100M IP1","-"]
[null,"IP1","OCN光【光一括提供型】(IPoE 標準プラン)","ファミリー 100M(NTT西日本)","IP1OCN光【光一括提供型】(IPoE 標準プラン)ファミリー 100M(NTT西日本)","OCN 光 IPoE 標準プラン ファミリー 100M IP1","-"]
[null,"IP1","OCN光【光一括提供型】(IPoE 標準プラン)","マンション 100M(NTT西日本)","IP1OCN光【光一括提供型】(IPoE 標準プラン)マンション 100M(NTT西日本)","OCN 光 IPoE 標準プラン マンション 100M IP1","-"]
[null,"IP1","OCN光【光一括提供型】(IPoE 標準プラン)","ファミリー 200M(NTT東日本)","IP1OCN光【光一括提供型】(IPoE 標準プラン)ファミリー 200M(NTT東日本)","OCN 光 IPoE 標準プラン ファミリー 200M IP1","-"]
[null,"IP1","OCN光【光一括提供型】(IPoE 標準プラン)","マンション 200M(NTT東日本)","IP1OCN光【光一括提供型】(IPoE 標準プラン)マンション 200M(NTT東日本)","OCN 光 IPoE 標準プラン マンション 200M IP1","-"]
[null,"IP1","OCN光【光一括提供型】(IPoE 標準プラン)","ファミリー 200M(NTT西日本)","IP1OCN光【光一括提供型】(IPoE 標準プラン)ファミリー 200M(NTT西日本)","OCN 光 IPoE 標準プラン ファミリー 200M IP1","-"]
[null,"IP1","OCN光【光一括提供型】(IPoE 標準プラン)","マンション 200M(NTT西日本)","IP1OCN光【光一括提供型】(IPoE 標準プラン)マンション 200M(NTT西日本)","OCN 光 IPoE 標準プラン マンション 200M IP1","-"]
[null,"IP1","OCN光【光一括提供型】(IPoE 標準プラン)","ファミリー 1G(NTT東日本)","IP1OCN光【光一括提供型】(IPoE 標準プラン)ファミリー 1G(NTT東日本)","OCN 光 IPoE 標準プラン ファミリー 1G IP1","-"]
[null,"IP1","OCN光【光一括提供型】(IPoE 標準プラン)","マンション 1G(NTT東日本)","IP1OCN光【光一括提供型】(IPoE 標準プラン)マンション 1G(NTT東日本)","OCN 光 IPoE 標準プラン マンション 1G IP1","-"]
[null,"IP1","OCN光【光一括提供型】(IPoE 標準プラン)","ファミリー 1G(NTT西日本)","IP1OCN光【光一括提供型】(IPoE 標準プラン)ファミリー 1G(NTT西日本)","OCN 光 IPoE 標準プラン ファミリー 1G IP1","-"]
[null,"IP1","OCN光【光一括提供型】(IPoE 標準プラン)","マンション 1G(NTT西日本)","IP1OCN光【光一括提供型】(IPoE 標準プラン)マンション 1G(NTT西日本)","OCN 光 IPoE 標準プラン マンション 1G IP1","-"]
[null,"IP1","OCN光【光一括提供型】(IPoE ワイドプラン)","ファミリー 100M(NTT東日本)","IP1OCN光【光一括提供型】(IPoE ワイドプラン)ファミリー 100M(NTT東日本)","OCN 光 IPoE ワイドプラン ファミリー 100M IP1","-"]
[null,"IP1","OCN光【光一括提供型】(IPoE ワイドプラン)","マンション 100M(NTT東日本)","IP1OCN光【光一括提供型】(IPoE ワイドプラン)マンション 100M(NTT東日本)","OCN 光 IPoE ワイドプラン マンション 100M IP1","-"]
[null,"IP1","OCN光【光一括提供型】(IPoE ワイドプラン)","ファミリー 100M(NTT西日本)","IP1OCN光【光一括提供型】(IPoE ワイドプラン)ファミリー 100M(NTT西日本)","OCN 光 IPoE ワイドプラン ファミリー 100M IP1","-"]
[null,"IP1","OCN光【光一括提供型】(IPoE ワイドプラン)","マンション 100M(NTT西日本)","IP1OCN光【光一括提供型】(IPoE ワイドプラン)マンション 100M(NTT西日本)","OCN 光 IPoE ワイドプラン マンション 100M IP1","-"]
[null,"IP1","OCN光【光一括提供型】(IPoE ワイドプラン)","ファミリー 200M(NTT東日本)","IP1OCN光【光一括提供型】(IPoE ワイドプラン)ファミリー 200M(NTT東日本)","OCN 光 IPoE ワイドプラン ファミリー 200M IP1","-"]
[null,"IP1","OCN光【光一括提供型】(IPoE ワイドプラン)","マンション 200M(NTT東日本)","IP1OCN光【光一括提供型】(IPoE ワイドプラン)マンション 200M(NTT東日本)","OCN 光 IPoE ワイドプラン マンション 200M IP1","-"]
[null,"IP1","OCN光【光一括提供型】(IPoE ワイドプラン)","ファミリー 200M(NTT西日本)","IP1OCN光【光一括提供型】(IPoE ワイドプラン)ファミリー 200M(NTT西日本)","OCN 光 IPoE ワイドプラン ファミリー 200M IP1","-"]
[null,"IP1","OCN光【光一括提供型】(IPoE ワイドプラン)","マンション 200M(NTT西日本)","IP1OCN光【光一括提供型】(IPoE ワイドプラン)マンション 200M(NTT西日本)","OCN 光 IPoE ワイドプラン マンション 200M IP1","-"]
[null,"IP1","OCN光【光一括提供型】(IPoE ワイドプラン)","ファミリー 1G(NTT東日本)","IP1OCN光【光一括提供型】(IPoE ワイドプラン)ファミリー 1G(NTT東日本)","OCN 光 IPoE ワイドプラン ファミリー 1G IP1","-"]
[null,"IP1","OCN光【光一括提供型】(IPoE ワイドプラン)","マンション 1G(NTT東日本)","IP1OCN光【光一括提供型】(IPoE ワイドプラン)マンション 1G(NTT東日本)","OCN 光 IPoE ワイドプラン マンション 1G IP1","-"]
[null,"IP1","OCN光【光一括提供型】(IPoE ワイドプラン)","ファミリー 1G(NTT西日本)","IP1OCN光【光一括提供型】(IPoE ワイドプラン)ファミリー 1G(NTT西日本)","OCN 光 IPoE ワイドプラン ファミリー 1G IP1","-"]
[null,"IP1","OCN光【光一括提供型】(IPoE ワイドプラン)","マンション 1G(NTT西日本)","IP1OCN光【光一括提供型】(IPoE ワイドプラン)マンション 1G(NTT西日本)","OCN 光 IPoE ワイドプラン マンション 1G IP1","-"]
[null,"IP1","OCN ADSLサービス(F)","モアⅢ(47M)(NTT東日本)","IP1OCN ADSLサービス(F)モアⅢ(47M)(NTT東日本)","OCN ADSLサービス IP1(F)47M 東タイプ","xxx@ffa.ocn.ne.jp"]
[null,"IP1","OCN ADSLサービス(F)","モアスペシャル(47M)(NTT西日本)","IP1OCN ADSLサービス(F)モアスペシャル(47M)(NTT西日本)","OCN ADSLサービス IP1(F)47M 西タイプ","xxx@ffa.ocn.ne.jp"]
[null,"IP1","OCN ADSLサービス(F)","モアⅡ(40M)(NTT東日本)","IP1OCN ADSLサービス(F)モアⅡ(40M)(NTT東日本)","OCN ADSLサービス IP1(F)40M 東タイプ","xxx@ffa.ocn.ne.jp"]
[null,"IP1","OCN ADSLサービス(F)","モア40(40M)(NTT西日本)","IP1OCN ADSLサービス(F)モア40(40M)(NTT西日本)","OCN ADSLサービス IP1(F)40M 西タイプ","xxx@ffa.ocn.ne.jp"]
[null,"IP1","OCN ADSLサービス(F)","モア24(24M)(NTT西日本)","IP1OCN ADSLサービス(F)モア24(24M)(NTT西日本)","OCN ADSLサービス IP1(F)24M 西タイプ","xxx@ffa.ocn.ne.jp"]
[null,"IP1","OCN ADSLサービス(F)","モア(12M)(NTT東日本)","IP1OCN ADSLサービス(F)モア(12M)(NTT東日本)","OCN ADSLサービス IP1(F)12M 東タイプ","xxx@ffa.ocn.ne.jp"]
[null,"IP1","OCN ADSLサービス(F)","モア(12M)(NTT西日本)","IP1OCN ADSLサービス(F)モア(12M)(NTT西日本)","OCN ADSLサービス IP1(F)12M 西タイプ","xxx@ffa.ocn.ne.jp"]
[null,"IP1","OCN ADSLサービス(F)","8M(NTT東日本)","IP1OCN ADSLサービス(F)8M(NTT東日本)","OCN ADSLサービス IP1(F)8M 東タイプ","xxx@ffa.ocn.ne.jp"]
[null,"IP1","OCN ADSLサービス(F)","8M(NTT西日本)","IP1OCN ADSLサービス(F)8M(NTT西日本)","OCN ADSLサービス IP1(F)8M 西タイプ","xxx@ffa.ocn.ne.jp"]
[null,"IP1","OCN ADSLサービス(F)","1.5M(NTT東日本)",{"$f":"B196&C196&D196","v":"IP1OCN ADSLサービス(F)1.5M(NTT東日本)"},"OCN ADSLサービス IP1(F)1.5M 東タイプ","xxx@ffa.ocn.ne.jp"]
[null,"IP1","OCN ADSLサービス(F)","1.5M(NTT西日本)","IP1OCN ADSLサービス(F)1.5M(NTT西日本)","OCN ADSLサービス IP1(F)1.5M 西タイプ","xxx@ffa.ocn.ne.jp"]
[null,"IP1","OCN ADSLサービス(F)","モアⅢ(47M)・ビジネスタイプ(NTT東日本)","IP1OCN ADSLサービス(F)モアⅢ(47M)・ビジネスタイプ(NTT東日本)","OCN ADSLサービス IP1(F)ビジネス47M 東タイプ","xxx@ffab.ocn.ne.jp"]
[null,"IP1","OCN ADSLサービス(F)","モアⅡ(40M)・ビジネスタイプ(NTT東日本)","IP1OCN ADSLサービス(F)モアⅡ(40M)・ビジネスタイプ(NTT東日本)","OCN ADSLサービス IP1(F)ビジネス40M 東タイプ","xxx@ffab.ocn.ne.jp"]
[null,"IP1","OCN 光サービス(F)「光ネクスト」","ファミリータイプ(NTT東日本)","IP1OCN 光サービス(F)「光ネクスト」ファミリータイプ(NTT東日本)","OCN 光サービス IP1(F) 「光ネクスト」ファミリータイプ 東タイプ","xxx@bizf.ocn.ne.jp"]
[null,"IP1","OCN 光サービス(F)「光ネクスト」","ファミリータイプ(NTT西日本)","IP1OCN 光サービス(F)「光ネクスト」ファミリータイプ(NTT西日本)","OCN 光サービス IP1(F) 「光ネクスト」ファミリータイプ 西タイプ","xxx@bizf.ocn.ne.jp"]
[null,"IP1","OCN 光サービス(F)「光ネクスト」","ファミリー・ハイスピードタイプ(NTT東日本)","IP1OCN 光サービス(F)「光ネクスト」ファミリー・ハイスピードタイプ(NTT東日本)","OCN 光サービス IP1(F) 「光ネクスト」ファミリー･ハイスピードタイプ 東タイプ","xxx@bizf.ocn.ne.jp"]
[null,"IP1","OCN 光サービス(F)「光ネクスト」","ファミリー・ハイスピードタイプ(NTT西日本)","IP1OCN 光サービス(F)「光ネクスト」ファミリー・ハイスピードタイプ(NTT西日本)","OCN 光サービス IP1(F) 「光ネクスト」ファミリー･ハイスピードタイプ 西タイプ","xxx@bizf.ocn.ne.jp"]
[null,"IP1","OCN 光サービス(F)「光ネクスト」","ファミリー・スーパーハイスピードタイプ隼(NTT西日本)","IP1OCN 光サービス(F)「光ネクスト」ファミリー・スーパーハイスピードタイプ隼(NTT西日本)","OCN 光サービス IP1(F) 「光ネクスト」ファミリー･スーパーハイスピード隼 西タイプ","xxx@bizf.ocn.ne.jp"]
[null,"IP1","OCN 光サービス(F)「光ネクスト」","ビジネスタイプ(NTT東日本)","IP1OCN 光サービス(F)「光ネクスト」ビジネスタイプ(NTT東日本)","OCN 光サービス IP1(F) 「光ネクスト」ビジネスタイプ 東タイプ","xxx@bizf.ocn.ne.jp"]
[null,"IP1","OCN 光サービス(F)「光ネクスト」","ビジネスタイプ(NTT西日本)","IP1OCN 光サービス(F)「光ネクスト」ビジネスタイプ(NTT西日本)","OCN 光サービス IP1(F) 「光ネクスト」ビジネスタイプ 西タイプ","xxx@bizf.ocn.ne.jp"]
[null,"IP1","OCN 光サービス(F)「光ネクスト」","プライオ1(NTT東日本)","IP1OCN 光サービス(F)「光ネクスト」プライオ1(NTT東日本)","OCN 光サービス IP1(F) 「光ネクスト」プライオ1 東タイプ","xxx@bizf.ocn.ne.jp"]
[null,"IP1","OCN 光サービス(F)「光ネクスト」","プライオ10(NTT東日本)","IP1OCN 光サービス(F)「光ネクスト」プライオ10(NTT東日本)","OCN 光サービス IP1(F) 「光ネクスト」プライオ10 東タイプ","xxx@bizf.ocn.ne.jp"]
[null,"IP1","OCN 光サービス(F)「光ネクスト」","ギガファミリー・スマートタイプ(NTT東日本)","IP1OCN 光サービス(F)「光ネクスト」ギガファミリー・スマートタイプ(NTT東日本)","OCN 光サービス IP1(F) 「光ネクスト」ギガファミリー 東タイプ","xxx@bizf.ocn.ne.jp"]
[null,"IP1","OCN 光サービス(F)「光ネクスト」","ファミリー・ギガラインタイプ(NTT東日本)","IP1OCN 光サービス(F)「光ネクスト」ファミリー・ギガラインタイプ(NTT東日本)","OCN 光サービス IP1(F) 「光ネクスト」ファミリー･ギガライン 東タイプ","xxx@bizf.ocn.ne.jp"]
[null,"IP8","フレッツ・ADSL","1.5Mタイプ","IP8フレッツ・ADSL1.5Mタイプ","OCN ADSLアクセス IP8 「フレッツ」プラン 1M/1.5M/8M/12M/24M/40M/47Mタイプ","xxx@ffa.ocn.ne.jp"]
[null,"IP8","フレッツ・ADSL","8Mタイプ","IP8フレッツ・ADSL8Mタイプ","OCN ADSLアクセス IP8 「フレッツ」プラン 1M/1.5M/8M/12M/24M/40M/47Mタイプ","xxx@ffa.ocn.ne.jp"]
[null,"IP8","フレッツ・ADSL","モア(12M)","IP8フレッツ・ADSLモア(12M)","OCN ADSLアクセス IP8 「フレッツ」プラン 1M/1.5M/8M/12M/24M/40M/47Mタイプ","xxx@ffa.ocn.ne.jp"]
[null,"IP8","フレッツ・ADSL","モアⅡ(24Mタイプ)/モア24(24タイプ)","IP8フレッツ・ADSLモアⅡ(24Mタイプ)/モア24(24タイプ)","OCN ADSLアクセス IP8 「フレッツ」プラン 1M/1.5M/8M/12M/24M/40M/47Mタイプ","xxx@ffa.ocn.ne.jp"]
[null,"IP8","フレッツ・ADSL","モアⅡ(40M)/モア40(40Mタイプ)","IP8フレッツ・ADSLモアⅡ(40M)/モア40(40Mタイプ)","OCN ADSLアクセス IP8 「フレッツ」プラン 1M/1.5M/8M/12M/24M/40M/47Mタイプ","xxx@ffa.ocn.ne.jp"]
[null,"IP8","フレッツ・ADSL","モアⅢ(47M)・モアスペシャル(47M)","IP8フレッツ・ADSLモアⅢ(47M)・モアスペシャル(47M)","OCN ADSLアクセス IP8 「フレッツ」プラン 1M/1.5M/8M/12M/24M/40M/47Mタイプ","xxx@ffa.ocn.ne.jp"]
[null,"IP8","フレッツ・ADSL","モアⅢ(47M)・ビジネスタイプ(NTT東日本)","IP8フレッツ・ADSLモアⅢ(47M)・ビジネスタイプ(NTT東日本)","OCN ADSLアクセス IP8 「フレッツ」プラン ビジネスタイプ","xxx@ffab.ocn.ne.jp"]
[null,"IP8","フレッツ・ADSL","モアⅡ(24M)・ビジネスタイプ(NTT東日本)","IP8フレッツ・ADSLモアⅡ(24M)・ビジネスタイプ(NTT東日本)","OCN ADSLアクセス IP8 「フレッツ」プラン ビジネスタイプ","xxx@ffab.ocn.ne.jp"]
[null,"IP8","フレッツ・ISDN",null,"IP8フレッツ・ISDN","OCN ISDNアクセス IP8 「フレッツ」プラン","xxx@ffi.ocn.ne.jp"]
[null,"IP8","Bフレッツ","ニューファミリータイプ(NTT東日本)","IP8Bフレッツニューファミリータイプ(NTT東日本)","OCN 光「フレッツ」 IP8 ファミリータイプ","xxx@fbnf2.ocn.ne.jp"]
[null,"IP8","Bフレッツ","ベーシックタイプ(NTT東日本/NTT西日本)","IP8Bフレッツベーシックタイプ(NTT東日本/NTT西日本)","OCN 光「フレッツ」 IP8 ベーシックタイプ","xxx@fbfb2.ocn.ne.jp"]
[null,"IP8","Bフレッツ","ビジネスタイプ(NTT東日本/NTT西日本)","IP8Bフレッツビジネスタイプ(NTT東日本/NTT西日本)","OCN 光「フレッツ」 IP8 ビジネスタイプ","xxx@fbfh2.ocn.ne.jp"]
[null,"IP8","Bフレッツ","ビル・マンションタイプ(NTT東日本/NTT西日本)","IP8Bフレッツビル・マンションタイプ(NTT東日本/NTT西日本)","OCN 光「フレッツ」 IP8 マンションタイプ","xxx@fbfm2.ocn.ne.jp"]
[null,"IP8","フレッツ 光ネクスト","ファミリータイプ(NTT東日本/NTT西日本)","IP8フレッツ 光ネクストファミリータイプ(NTT東日本/NTT西日本)","OCN 光「フレッツ」 IP8 ファミリータイプ","xxx@bizf.ocn.ne.jp"]
[null,"IP8","フレッツ 光ネクスト","ファミリー・ハイスピードタイプ(NTT東日本/NTT西日本)","IP8フレッツ 光ネクストファミリー・ハイスピードタイプ(NTT東日本/NTT西日本)","OCN 光「フレッツ」 IP8 ファミリータイプ","xxx@bizf.ocn.ne.jp"]
[null,"IP8","フレッツ 光ネクスト","マンションタイプ(NTT東日本/NTT西日本)","IP8フレッツ 光ネクストマンションタイプ(NTT東日本/NTT西日本)","OCN 光「フレッツ」 IP8 マンションタイプ","xxx@bizf.ocn.ne.jp"]
[null,"IP8","フレッツ 光ネクスト","マンション・ハイスピードタイプ(NTT東日本/NTT西日本)","IP8フレッツ 光ネクストマンション・ハイスピードタイプ(NTT東日本/NTT西日本)","OCN 光「フレッツ」 IP8 マンションタイプ","xxx@bizf.ocn.ne.jp"]
[null,"IP8","フレッツ 光ネクスト","ファミリー・スーパーハイスピードタイプ隼(NTT西日本)","IP8フレッツ 光ネクストファミリー・スーパーハイスピードタイプ隼(NTT西日本)","OCN 光「フレッツ」 IP8 ファミリータイプ","xxx@bizf.ocn.ne.jp"]
[null,"IP8","フレッツ 光ネクスト","マンション・スーパーハイスピードタイプ隼(NTT西日本)","IP8フレッツ 光ネクストマンション・スーパーハイスピードタイプ隼(NTT西日本)","OCN 光「フレッツ」 IP8 マンションタイプ","xxx@bizf.ocn.ne.jp"]
[null,"IP8","フレッツ 光ネクスト","ビジネスタイプ(NTT東日本/NTT西日本)","IP8フレッツ 光ネクストビジネスタイプ(NTT東日本/NTT西日本)","OCN 光「フレッツ」 IP8 ビジネスタイプ","xxx@bizf.ocn.ne.jp"]
[null,"IP8","フレッツ 光ネクスト","プライオ1(NTT東日本)","IP8フレッツ 光ネクストプライオ1(NTT東日本)","OCN 光「フレッツ」 IP8 プライオ1","xxx@bizf.ocn.ne.jp"]
[null,"IP8","フレッツ 光ネクスト","プライオ10(NTT東日本)","IP8フレッツ 光ネクストプライオ10(NTT東日本)","OCN 光「フレッツ」 IP8 プライオ10","xxx@bizf.ocn.ne.jp"]
[null,"IP8","フレッツ 光ネクスト","ギガファミリー・スマートタイプ(NTT東日本)","IP8フレッツ 光ネクストギガファミリー・スマートタイプ(NTT東日本)","OCN 光「フレッツ」 IP8 ギガファミリー","xxx@bizf.ocn.ne.jp"]
[null,"IP8","フレッツ 光ネクスト","ギガマンション・スマートタイプ(NTT東日本)","IP8フレッツ 光ネクストギガマンション・スマートタイプ(NTT東日本)","OCN 光「フレッツ」 IP8 ギガファミリー","xxx@bizf.ocn.ne.jp"]
[null,"IP8","フレッツ 光ネクスト","ファミリー・ギガラインタイプ(NTT東日本)","IP8フレッツ 光ネクストファミリー・ギガラインタイプ(NTT東日本)","OCN 光「フレッツ」 IP8 ギガファミリー","xxx@bizf.ocn.ne.jp"]
[null,"IP8","フレッツ 光ネクスト","マンション・ギガラインタイプ(NTT東日本)","IP8フレッツ 光ネクストマンション・ギガラインタイプ(NTT東日本)","OCN 光「フレッツ」 IP8 ギガファミリー","xxx@bizf.ocn.ne.jp"]
[null,"IP8","フレッツ 光ライト","ファミリータイプ(NTT東日本/NTT西日本)","IP8フレッツ 光ライトファミリータイプ(NTT東日本/NTT西日本)","OCN 光「フレッツ」 IP8 ファミリータイプ","xxx@bizf.ocn.ne.jp"]
[null,"IP8","フレッツ 光ライト","マンションタイプ(NTT東日本/NTT西日本)","IP8フレッツ 光ライトマンションタイプ(NTT東日本/NTT西日本)","OCN 光「フレッツ」 IP8 マンションタイプ","xxx@bizf.ocn.ne.jp"]
[null,"IP8","OCN光【光一括提供型】","ファミリー 100M(NTT東日本)","IP8OCN光【光一括提供型】ファミリー 100M(NTT東日本)","OCN 光 ファミリー 100M IP8","xxx@bizf.ocn.ne.jp"]
[null,"IP8","OCN光【光一括提供型】","マンション 100M(NTT東日本)","IP8OCN光【光一括提供型】マンション 100M(NTT東日本)","OCN 光 マンション 100M IP8","xxx@bizf.ocn.ne.jp"]
[null,"IP8","OCN光【光一括提供型】","ファミリー 100M(NTT西日本)","IP8OCN光【光一括提供型】ファミリー 100M(NTT西日本)","OCN 光 ファミリー 100M IP8","xxx@bizf.ocn.ne.jp"]
[null,"IP8","OCN光【光一括提供型】","マンション 100M(NTT西日本)","IP8OCN光【光一括提供型】マンション 100M(NTT西日本)","OCN 光 マンション 100M IP8","xxx@bizf.ocn.ne.jp"]
[null,"IP8","OCN光【光一括提供型】","ファミリー 200M(NTT東日本)","IP8OCN光【光一括提供型】ファミリー 200M(NTT東日本)","OCN 光 ファミリー 200M IP8","xxx@bizf.ocn.ne.jp"]
[null,"IP8","OCN光【光一括提供型】","マンション 200M(NTT東日本)","IP8OCN光【光一括提供型】マンション 200M(NTT東日本)","OCN 光 マンション 200M IP8","xxx@bizf.ocn.ne.jp"]
[null,"IP8","OCN光【光一括提供型】","ファミリー 200M(NTT西日本)","IP8OCN光【光一括提供型】ファミリー 200M(NTT西日本)","OCN 光 ファミリー 200M IP8","xxx@bizf.ocn.ne.jp"]
[null,"IP8","OCN光【光一括提供型】","マンション 200M(NTT西日本)","IP8OCN光【光一括提供型】マンション 200M(NTT西日本)","OCN 光 マンション 200M IP8","xxx@bizf.ocn.ne.jp"]
[null,"IP8","OCN光【光一括提供型】","ファミリー 1G(NTT西日本)","IP8OCN光【光一括提供型】ファミリー 1G(NTT西日本)","OCN 光 ファミリー 1G IP8","xxx@bizf.ocn.ne.jp"]
[null,"IP8","OCN光【光一括提供型】","マンション 1G(NTT西日本)","IP8OCN光【光一括提供型】マンション 1G(NTT西日本)","OCN 光 マンション 1G IP8","xxx@bizf.ocn.ne.jp"]
[null,"IP8","OCN光【光一括提供型】","ファミリー 1G(NTT東日本)","IP8OCN光【光一括提供型】ファミリー 1G(NTT東日本)","OCN 光 ファミリー 1G IP8","xxx@bizf.ocn.ne.jp"]
[null,"IP8","OCN光【光一括提供型】","マンション 1G(NTT東日本)","IP8OCN光【光一括提供型】マンション 1G(NTT東日本)","OCN 光 マンション 1G IP8","xxx@bizf.ocn.ne.jp"]
[null,"IP8","フレッツ 光ネクスト(IPoE 標準プラン)","NTT東日本","IP8フレッツ 光ネクスト(IPoE 標準プラン)NTT東日本","OCN 光「フレッツ」 IPoE 標準プラン IP8","-"]
[null,"IP8","フレッツ 光ネクスト(IPoE 標準プラン)","NTT西日本","IP8フレッツ 光ネクスト(IPoE 標準プラン)NTT西日本","OCN 光「フレッツ」 IPoE 標準プラン IP8","-"]
[null,"IP8","フレッツ 光ネクスト(IPoE ワイドプラン)","NTT東日本","IP8フレッツ 光ネクスト(IPoE ワイドプラン)NTT東日本","OCN 光「フレッツ」 IPoE ワイドプラン IP8","-"]
[null,"IP8","フレッツ 光ネクスト(IPoE ワイドプラン)","NTT西日本","IP8フレッツ 光ネクスト(IPoE ワイドプラン)NTT西日本","OCN 光「フレッツ」 IPoE ワイドプラン IP8","-"]
[null,"IP8","OCN光【光一括提供型】(IPoE 標準プラン)","ファミリー 100M(NTT東日本)","IP8OCN光【光一括提供型】(IPoE 標準プラン)ファミリー 100M(NTT東日本)","OCN 光 IPoE 標準プラン ファミリー 100M  IP8","-"]
[null,"IP8","OCN光【光一括提供型】(IPoE 標準プラン)","マンション 100M(NTT東日本)","IP8OCN光【光一括提供型】(IPoE 標準プラン)マンション 100M(NTT東日本)","OCN 光 IPoE 標準プラン マンション 100M  IP8","-"]
[null,"IP8","OCN光【光一括提供型】(IPoE 標準プラン)","ファミリー 100M(NTT西日本)","IP8OCN光【光一括提供型】(IPoE 標準プラン)ファミリー 100M(NTT西日本)","OCN 光 IPoE 標準プラン ファミリー 100M  IP8","-"]
[null,"IP8","OCN光【光一括提供型】(IPoE 標準プラン)","マンション 100M(NTT西日本)","IP8OCN光【光一括提供型】(IPoE 標準プラン)マンション 100M(NTT西日本)","OCN 光 IPoE 標準プラン マンション 100M  IP8","-"]
[null,"IP8","OCN光【光一括提供型】(IPoE 標準プラン)","ファミリー 200M(NTT東日本)","IP8OCN光【光一括提供型】(IPoE 標準プラン)ファミリー 200M(NTT東日本)","OCN 光 IPoE 標準プラン ファミリー 200M  IP8","-"]
[null,"IP8","OCN光【光一括提供型】(IPoE 標準プラン)","マンション 200M(NTT東日本)",{"$f":"B260&C260&D260","v":"IP8OCN光【光一括提供型】(IPoE 標準プラン)マンション 200M(NTT東日本)"},"OCN 光 IPoE 標準プラン マンション 200M  IP8","-"]
[null,"IP8","OCN光【光一括提供型】(IPoE 標準プラン)","ファミリー 200M(NTT西日本)","IP8OCN光【光一括提供型】(IPoE 標準プラン)ファミリー 200M(NTT西日本)","OCN 光 IPoE 標準プラン ファミリー 200M  IP8","-"]
[null,"IP8","OCN光【光一括提供型】(IPoE 標準プラン)","マンション 200M(NTT西日本)","IP8OCN光【光一括提供型】(IPoE 標準プラン)マンション 200M(NTT西日本)","OCN 光 IPoE 標準プラン マンション 200M  IP8","-"]
[null,"IP8","OCN光【光一括提供型】(IPoE 標準プラン)","ファミリー 1G(NTT西日本)","IP8OCN光【光一括提供型】(IPoE 標準プラン)ファミリー 1G(NTT西日本)","OCN 光 IPoE 標準プラン ファミリー 1G  IP8","-"]
[null,"IP8","OCN光【光一括提供型】(IPoE 標準プラン)","マンション 1G(NTT西日本)","IP8OCN光【光一括提供型】(IPoE 標準プラン)マンション 1G(NTT西日本)","OCN 光 IPoE 標準プラン マンション 1G  IP8","-"]
[null,"IP8","OCN光【光一括提供型】(IPoE 標準プラン)","ファミリー 1G(NTT東日本)","IP8OCN光【光一括提供型】(IPoE 標準プラン)ファミリー 1G(NTT東日本)","OCN 光 IPoE 標準プラン ファミリー 1G  IP8","-"]
[null,"IP8","OCN光【光一括提供型】(IPoE 標準プラン)","マンション 1G(NTT東日本)","IP8OCN光【光一括提供型】(IPoE 標準プラン)マンション 1G(NTT東日本)","OCN 光 IPoE 標準プラン マンション 1G  IP8","-"]
[null,"IP8","OCN光【光一括提供型】(IPoE ワイドプラン)","ファミリー 100M(NTT東日本)","IP8OCN光【光一括提供型】(IPoE ワイドプラン)ファミリー 100M(NTT東日本)","OCN 光 IPoE ワイドプラン ファミリー 100M  IP8","-"]
[null,"IP8","OCN光【光一括提供型】(IPoE ワイドプラン)","マンション 100M(NTT東日本)","IP8OCN光【光一括提供型】(IPoE ワイドプラン)マンション 100M(NTT東日本)","OCN 光 IPoE ワイドプラン マンション 100M  IP8","-"]
[null,"IP8","OCN光【光一括提供型】(IPoE ワイドプラン)","ファミリー 100M(NTT西日本)","IP8OCN光【光一括提供型】(IPoE ワイドプラン)ファミリー 100M(NTT西日本)","OCN 光 IPoE ワイドプラン ファミリー 100M  IP8","-"]
[null,"IP8","OCN光【光一括提供型】(IPoE ワイドプラン)","マンション 100M(NTT西日本)","IP8OCN光【光一括提供型】(IPoE ワイドプラン)マンション 100M(NTT西日本)","OCN 光 IPoE ワイドプラン マンション 100M  IP8","-"]
[null,"IP8","OCN光【光一括提供型】(IPoE ワイドプラン)","ファミリー 200M(NTT東日本)","IP8OCN光【光一括提供型】(IPoE ワイドプラン)ファミリー 200M(NTT東日本)","OCN 光 IPoE ワイドプラン ファミリー 200M  IP8","-"]
[null,"IP8","OCN光【光一括提供型】(IPoE ワイドプラン)","マンション 200M(NTT東日本)","IP8OCN光【光一括提供型】(IPoE ワイドプラン)マンション 200M(NTT東日本)","OCN 光 IPoE ワイドプラン マンション 200M  IP8","-"]
[null,"IP8","OCN光【光一括提供型】(IPoE ワイドプラン)","ファミリー 200M(NTT西日本)","IP8OCN光【光一括提供型】(IPoE ワイドプラン)ファミリー 200M(NTT西日本)","OCN 光 IPoE ワイドプラン ファミリー 200M  IP8","-"]
[null,"IP8","OCN光【光一括提供型】(IPoE ワイドプラン)","マンション 200M(NTT西日本)","IP8OCN光【光一括提供型】(IPoE ワイドプラン)マンション 200M(NTT西日本)","OCN 光 IPoE ワイドプラン マンション 200M  IP8","-"]
[null,"IP8","OCN光【光一括提供型】(IPoE ワイドプラン)","ファミリー 1G(NTT西日本)","IP8OCN光【光一括提供型】(IPoE ワイドプラン)ファミリー 1G(NTT西日本)","OCN 光 IPoE ワイドプラン ファミリー 1G  IP8","-"]
[null,"IP8","OCN光【光一括提供型】(IPoE ワイドプラン)","マンション 1G(NTT西日本)","IP8OCN光【光一括提供型】(IPoE ワイドプラン)マンション 1G(NTT西日本)","OCN 光 IPoE ワイドプラン マンション 1G  IP8","-"]
[null,"IP8","OCN光【光一括提供型】(IPoE ワイドプラン)","ファミリー 1G(NTT東日本)","IP8OCN光【光一括提供型】(IPoE ワイドプラン)ファミリー 1G(NTT東日本)","OCN 光 IPoE ワイドプラン ファミリー 1G  IP8","-"]
[null,"IP8","OCN光【光一括提供型】(IPoE ワイドプラン)","マンション 1G(NTT東日本)","IP8OCN光【光一括提供型】(IPoE ワイドプラン)マンション 1G(NTT東日本)","OCN 光 IPoE ワイドプラン マンション 1G  IP8","-"]
[null,"IP8","OCN ADSLサービス(F)","モアⅢ(47M)(NTT東日本)","IP8OCN ADSLサービス(F)モアⅢ(47M)(NTT東日本)","OCN ADSLサービス IP8(F)47M 東タイプ","xxx@ffa.ocn.ne.jp"]
[null,"IP8","OCN ADSLサービス(F)","モアスペシャル(47M)(NTT西日本)","IP8OCN ADSLサービス(F)モアスペシャル(47M)(NTT西日本)","OCN ADSLサービス IP8(F)47M 西タイプ","xxx@ffa.ocn.ne.jp"]
[null,"IP8","OCN ADSLサービス(F)","モアⅡ(40M)(NTT東日本)","IP8OCN ADSLサービス(F)モアⅡ(40M)(NTT東日本)","OCN ADSLサービス IP8(F)40M 東タイプ","xxx@ffa.ocn.ne.jp"]
[null,"IP8","OCN ADSLサービス(F)","モア40(40M)(NTT西日本)","IP8OCN ADSLサービス(F)モア40(40M)(NTT西日本)","OCN ADSLサービス IP8(F)40M 西タイプ","xxx@ffa.ocn.ne.jp"]
[null,"IP8","OCN ADSLサービス(F)","モア24(24M)(NTT西日本)","IP8OCN ADSLサービス(F)モア24(24M)(NTT西日本)","OCN ADSLサービス IP8(F)24M 西タイプ","xxx@ffa.ocn.ne.jp"]
[null,"IP8","OCN ADSLサービス(F)","モア(12M)(NTT東日本)","IP8OCN ADSLサービス(F)モア(12M)(NTT東日本)","OCN ADSLサービス IP8(F)12M 東タイプ","xxx@ffa.ocn.ne.jp"]
[null,"IP8","OCN ADSLサービス(F)","モア(12M)(NTT西日本)","IP8OCN ADSLサービス(F)モア(12M)(NTT西日本)","OCN ADSLサービス IP8(F)12M 西タイプ","xxx@ffa.ocn.ne.jp"]
[null,"IP8","OCN ADSLサービス(F)","8M(NTT東日本)","IP8OCN ADSLサービス(F)8M(NTT東日本)","OCN ADSLサービス IP8(F)8M 東タイプ","xxx@ffa.ocn.ne.jp"]
[null,"IP8","OCN ADSLサービス(F)","8M(NTT西日本)","IP8OCN ADSLサービス(F)8M(NTT西日本)","OCN ADSLサービス IP8(F)8M 西タイプ","xxx@ffa.ocn.ne.jp"]
[null,"IP8","OCN ADSLサービス(F)","1.5M(NTT東日本)","IP8OCN ADSLサービス(F)1.5M(NTT東日本)","OCN ADSLサービス IP8(F)1.5M 東タイプ","xxx@ffa.ocn.ne.jp"]
[null,"IP8","OCN ADSLサービス(F)","1.5M(NTT西日本)","IP8OCN ADSLサービス(F)1.5M(NTT西日本)","OCN ADSLサービス IP8(F)1.5M 西タイプ","xxx@ffa.ocn.ne.jp"]
[null,"IP8","OCN ADSLサービス(F)","モアⅢ(47M)・ビジネスタイプ(NTT東日本)","IP8OCN ADSLサービス(F)モアⅢ(47M)・ビジネスタイプ(NTT東日本)","OCN ADSLサービス IP8(F)ビジネス47M 東タイプ","xxx@ffab.ocn.ne.jp"]
[null,"IP8","OCN ADSLサービス(F)","モアⅡ(40M)・ビジネスタイプ(NTT東日本)","IP8OCN ADSLサービス(F)モアⅡ(40M)・ビジネスタイプ(NTT東日本)","OCN ADSLサービス IP8(F)ビジネス40M 東タイプ","xxx@ffab.ocn.ne.jp"]
[null,"IP8","OCN 光サービス(F)「光ネクスト」","ファミリータイプ(NTT東日本)","IP8OCN 光サービス(F)「光ネクスト」ファミリータイプ(NTT東日本)","OCN 光サービス IP8(F) 「光ネクスト」ファミリータイプ 東タイプ","xxx@bizf.ocn.ne.jp"]
[null,"IP8","OCN 光サービス(F)「光ネクスト」","ファミリータイプ(NTT西日本)","IP8OCN 光サービス(F)「光ネクスト」ファミリータイプ(NTT西日本)","OCN 光サービス IP8(F) 「光ネクスト」ファミリータイプ 西タイプ","xxx@bizf.ocn.ne.jp"]
[null,"IP8","OCN 光サービス(F)「光ネクスト」","ファミリー・ハイスピードタイプ(NTT東日本)","IP8OCN 光サービス(F)「光ネクスト」ファミリー・ハイスピードタイプ(NTT東日本)","OCN 光サービス IP8(F) 「光ネクスト」ファミリー･ハイスピードタイプ","xxx@bizf.ocn.ne.jp"]
[null,"IP8","OCN 光サービス(F)「光ネクスト」","ファミリー・ハイスピードタイプ(NTT西日本)","IP8OCN 光サービス(F)「光ネクスト」ファミリー・ハイスピードタイプ(NTT西日本)","OCN 光サービス IP8(F) 「光ネクスト」ファミリー･ハイスピードタイプ 西タイプ","xxx@bizf.ocn.ne.jp"]
[null,"IP8","OCN 光サービス(F)「光ネクスト」","ファミリー・スーパーハイスピードタイプ隼(NTT西日本)","IP8OCN 光サービス(F)「光ネクスト」ファミリー・スーパーハイスピードタイプ隼(NTT西日本)","OCN 光サービス IP8(F) 「光ネクスト」ファミリー･スーパーハイスピード隼 西タイプ","xxx@bizf.ocn.ne.jp"]
[null,"IP8","OCN 光サービス(F)「光ネクスト」","ビジネスタイプ(NTT東日本)","IP8OCN 光サービス(F)「光ネクスト」ビジネスタイプ(NTT東日本)","OCN 光サービス IP8(F) 「光ネクスト」ビジネスタイプ 東タイプ","xxx@bizf.ocn.ne.jp"]
[null,"IP8","OCN 光サービス(F)「光ネクスト」","ビジネスタイプ(NTT西日本)","IP8OCN 光サービス(F)「光ネクスト」ビジネスタイプ(NTT西日本)","OCN 光サービス IP8(F) 「光ネクスト」ビジネスタイプ 西タイプ","xxx@bizf.ocn.ne.jp"]
[null,"IP8","OCN 光サービス(F)「光ネクスト」","プライオ1(NTT東日本)","IP8OCN 光サービス(F)「光ネクスト」プライオ1(NTT東日本)","OCN 光サービス IP8(F) 「光ネクスト」プライオ1 東タイプ","xxx@bizf.ocn.ne.jp"]
[null,"IP8","OCN 光サービス(F)「光ネクスト」","プライオ10(NTT東日本)","IP8OCN 光サービス(F)「光ネクスト」プライオ10(NTT東日本)","OCN 光サービス IP8(F) 「光ネクスト」プライオ10 東タイプ","xxx@bizf.ocn.ne.jp"]
[null,"IP8","OCN 光サービス(F)「光ネクスト」","ギガファミリー・スマートタイプ(NTT東日本)","IP8OCN 光サービス(F)「光ネクスト」ギガファミリー・スマートタイプ(NTT東日本)","OCN 光サービス IP8(F) 「光ネクスト」ギガファミリー 東タイプ","xxx@bizf.ocn.ne.jp"]
[null,"IP8","OCN 光サービス(F)「光ネクスト」","ファミリー・ギガラインタイプ(NTT東日本)","IP8OCN 光サービス(F)「光ネクスト」ファミリー・ギガラインタイプ(NTT東日本)","OCN 光サービス IP8(F) 「光ネクスト」ファミリー･ギガライン 東タイプ","xxx@bizf.ocn.ne.jp"]
[null,"IP16","フレッツ・ADSL","1.5Mタイプ","IP16フレッツ・ADSL1.5Mタイプ","OCN ADSLアクセス IP16 「フレッツ」プラン 1M/1.5M/8M/12M/24M/40M/47Mタイプ","xxx@ffa.ocn.ne.jp"]
[null,"IP16","フレッツ・ADSL","8Mタイプ","IP16フレッツ・ADSL8Mタイプ","OCN ADSLアクセス IP16 「フレッツ」プラン 1M/1.5M/8M/12M/24M/40M/47Mタイプ","xxx@ffa.ocn.ne.jp"]
[null,"IP16","フレッツ・ADSL","モア(12M)","IP16フレッツ・ADSLモア(12M)","OCN ADSLアクセス IP16 「フレッツ」プラン 1M/1.5M/8M/12M/24M/40M/47Mタイプ","xxx@ffa.ocn.ne.jp"]
[null,"IP16","フレッツ・ADSL","モアⅡ(24Mタイプ)/モア24(24タイプ)","IP16フレッツ・ADSLモアⅡ(24Mタイプ)/モア24(24タイプ)","OCN ADSLアクセス IP16 「フレッツ」プラン 1M/1.5M/8M/12M/24M/40M/47Mタイプ","xxx@ffa.ocn.ne.jp"]
[null,"IP16","フレッツ・ADSL","モアⅡ(40M)/モア40(40Mタイプ)","IP16フレッツ・ADSLモアⅡ(40M)/モア40(40Mタイプ)","OCN ADSLアクセス IP16 「フレッツ」プラン 1M/1.5M/8M/12M/24M/40M/47Mタイプ","xxx@ffa.ocn.ne.jp"]
[null,"IP16","フレッツ・ADSL","モアⅢ(47M)・モアスペシャル(47M)","IP16フレッツ・ADSLモアⅢ(47M)・モアスペシャル(47M)","OCN ADSLアクセス IP16 「フレッツ」プラン 1M/1.5M/8M/12M/24M/40M/47Mタイプ","xxx@ffa.ocn.ne.jp"]
[null,"IP16","フレッツ・ADSL","モアⅢ(47M)・ビジネスタイプ(NTT東日本)","IP16フレッツ・ADSLモアⅢ(47M)・ビジネスタイプ(NTT東日本)","OCN ADSLアクセス IP16 「フレッツ」プラン ビジネスタイプ","xxx@ffab.ocn.ne.jp"]
[null,"IP16","フレッツ・ADSL","モアⅡ(24M)・ビジネスタイプ(NTT東日本)","IP16フレッツ・ADSLモアⅡ(24M)・ビジネスタイプ(NTT東日本)","OCN ADSLアクセス IP16 「フレッツ」プラン ビジネスタイプ","xxx@ffab.ocn.ne.jp"]
[null,"IP16","Bフレッツ","ベーシックタイプ(NTT東日本/NTT西日本)","IP16Bフレッツベーシックタイプ(NTT東日本/NTT西日本)","OCN 光「フレッツ」 IP16 ベーシックタイプ","xxx@fbfb2.ocn.ne.jp"]
[null,"IP16","Bフレッツ","ビジネスタイプ(NTT東日本/NTT西日本)","IP16Bフレッツビジネスタイプ(NTT東日本/NTT西日本)","OCN 光「フレッツ」 IP16 ビジネスタイプ","xxx@fbfh2.ocn.ne.jp"]
[null,"IP16","フレッツ 光ネクスト","ファミリータイプ(NTT東日本/NTT西日本)","IP16フレッツ 光ネクストファミリータイプ(NTT東日本/NTT西日本)","OCN 光「フレッツ」 IP16 ファミリータイプ","xxx@bizf.ocn.ne.jp"]
[null,"IP16","フレッツ 光ネクスト","ファミリー・ハイスピードタイプ(NTT東日本/NTT西日本)","IP16フレッツ 光ネクストファミリー・ハイスピードタイプ(NTT東日本/NTT西日本)","OCN 光「フレッツ」 IP16 ファミリータイプ","xxx@bizf.ocn.ne.jp"]
[null,"IP16","フレッツ 光ネクスト","ファミリー・スーパーハイスピードタイプ隼(NTT西日本)","IP16フレッツ 光ネクストファミリー・スーパーハイスピードタイプ隼(NTT西日本)","OCN 光「フレッツ」 IP16 ファミリータイプ","xxx@bizf.ocn.ne.jp"]
[null,"IP16","フレッツ 光ネクスト","ビジネスタイプ(NTT東日本/NTT西日本)","IP16フレッツ 光ネクストビジネスタイプ(NTT東日本/NTT西日本)","OCN 光「フレッツ」 IP16 ビジネスタイプ","xxx@bizf.ocn.ne.jp"]
[null,"IP16","フレッツ 光ネクスト","プライオ1(NTT東日本)","IP16フレッツ 光ネクストプライオ1(NTT東日本)","OCN 光「フレッツ」 IP16 プライオ1","xxx@bizf.ocn.ne.jp"]
[null,"IP16","フレッツ 光ネクスト","プライオ10(NTT東日本)","IP16フレッツ 光ネクストプライオ10(NTT東日本)","OCN 光「フレッツ」 IP16 プライオ10","xxx@bizf.ocn.ne.jp"]
[null,"IP16","フレッツ 光ネクスト","ギガファミリー・スマートタイプ(NTT東日本)","IP16フレッツ 光ネクストギガファミリー・スマートタイプ(NTT東日本)","OCN 光「フレッツ」 IP16 ギガファミリー","xxx@bizf.ocn.ne.jp"]
[null,"IP16","フレッツ 光ネクスト","ギガマンション・スマートタイプ(NTT東日本)","IP16フレッツ 光ネクストギガマンション・スマートタイプ(NTT東日本)","OCN 光「フレッツ」 IP16 ギガファミリー","xxx@bizf.ocn.ne.jp"]
[null,"IP16","フレッツ 光ネクスト","ファミリー・ギガラインタイプ(NTT東日本)","IP16フレッツ 光ネクストファミリー・ギガラインタイプ(NTT東日本)","OCN 光「フレッツ」 IP16 ギガファミリー","xxx@bizf.ocn.ne.jp"]
[null,"IP16","フレッツ 光ネクスト","マンション・ギガラインタイプ(NTT東日本)","IP16フレッツ 光ネクストマンション・ギガラインタイプ(NTT東日本)","OCN 光「フレッツ」 IP16 ギガファミリー","xxx@bizf.ocn.ne.jp"]
[null,"IP16","フレッツ 光ライト","ファミリータイプ(NTT東日本/NTT西日本)","IP16フレッツ 光ライトファミリータイプ(NTT東日本/NTT西日本)","OCN 光「フレッツ」 IP16 ファミリータイプ","xxx@bizf.ocn.ne.jp"]
[null,"IP16","OCN光【光一括提供型】","ファミリー 100M(NTT東日本)",{"$f":"B324&C324&D324","v":"IP16OCN光【光一括提供型】ファミリー 100M(NTT東日本)"},"OCN 光 ファミリー 100M IP16","xxx@bizf.ocn.ne.jp"]
[null,"IP16","OCN光【光一括提供型】","ファミリー 100M(NTT西日本)","IP16OCN光【光一括提供型】ファミリー 100M(NTT西日本)","OCN 光 ファミリー 100M IP16","xxx@bizf.ocn.ne.jp"]
[null,"IP16","OCN光【光一括提供型】","ファミリー 200M(NTT東日本)","IP16OCN光【光一括提供型】ファミリー 200M(NTT東日本)","OCN 光 ファミリー 200M IP16","xxx@bizf.ocn.ne.jp"]
[null,"IP16","OCN光【光一括提供型】","ファミリー 200M(NTT西日本)","IP16OCN光【光一括提供型】ファミリー 200M(NTT西日本)","OCN 光 ファミリー 200M IP16","xxx@bizf.ocn.ne.jp"]
[null,"IP16","OCN光【光一括提供型】","ファミリー 1G(NTT西日本)","IP16OCN光【光一括提供型】ファミリー 1G(NTT西日本)","OCN 光 ファミリー 1G IP16","xxx@bizf.ocn.ne.jp"]
[null,"IP16","OCN光【光一括提供型】","ファミリー 1G(NTT東日本)","IP16OCN光【光一括提供型】ファミリー 1G(NTT東日本)","OCN 光 ファミリー 1G IP16","xxx@bizf.ocn.ne.jp"]
[null,"IP16","OCN光【光一括提供型】","マンション 1G(NTT東日本)","IP16OCN光【光一括提供型】マンション 1G(NTT東日本)","OCN 光 マンション 1G IP16","xxx@bizf.ocn.ne.jp"]
[null,"IP16","フレッツ 光ネクスト(IPoE 標準プラン)","NTT東日本","IP16フレッツ 光ネクスト(IPoE 標準プラン)NTT東日本","OCN 光「フレッツ」 IPoE 標準プラン IP16","-"]
[null,"IP16","フレッツ 光ネクスト(IPoE 標準プラン)","NTT西日本","IP16フレッツ 光ネクスト(IPoE 標準プラン)NTT西日本","OCN 光「フレッツ」 IPoE 標準プラン IP16","-"]
[null,"IP16","フレッツ 光ネクスト(IPoE ワイドプラン)","NTT東日本","IP16フレッツ 光ネクスト(IPoE ワイドプラン)NTT東日本","OCN 光「フレッツ」 IPoE ワイドプラン IP16","-"]
[null,"IP16","フレッツ 光ネクスト(IPoE ワイドプラン)","NTT西日本","IP16フレッツ 光ネクスト(IPoE ワイドプラン)NTT西日本","OCN 光「フレッツ」 IPoE ワイドプラン IP16","-"]
[null,"IP16","OCN光【光一括提供型】(IPoE 標準プラン)","ファミリー 100M(NTT東日本)","IP16OCN光【光一括提供型】(IPoE 標準プラン)ファミリー 100M(NTT東日本)","OCN 光 IPoE 標準プラン ファミリー 100M  IP16","-"]
[null,"IP16","OCN光【光一括提供型】(IPoE 標準プラン)","ファミリー 100M(NTT西日本)","IP16OCN光【光一括提供型】(IPoE 標準プラン)ファミリー 100M(NTT西日本)","OCN 光 IPoE 標準プラン ファミリー 100M  IP16","-"]
[null,"IP16","OCN光【光一括提供型】(IPoE 標準プラン)","ファミリー 200M(NTT東日本)","IP16OCN光【光一括提供型】(IPoE 標準プラン)ファミリー 200M(NTT東日本)","OCN 光 IPoE 標準プラン ファミリー 200M  IP16","-"]
[null,"IP16","OCN光【光一括提供型】(IPoE 標準プラン)","ファミリー 200M(NTT西日本)","IP16OCN光【光一括提供型】(IPoE 標準プラン)ファミリー 200M(NTT西日本)","OCN 光 IPoE 標準プラン ファミリー 200M  IP16","-"]
[null,"IP16","OCN光【光一括提供型】(IPoE 標準プラン)","ファミリー 1G(NTT西日本)","IP16OCN光【光一括提供型】(IPoE 標準プラン)ファミリー 1G(NTT西日本)","OCN 光 IPoE 標準プラン ファミリー 1G  IP16","-"]
[null,"IP16","OCN光【光一括提供型】(IPoE 標準プラン)","ファミリー 1G(NTT東日本)","IP16OCN光【光一括提供型】(IPoE 標準プラン)ファミリー 1G(NTT東日本)","OCN 光 IPoE 標準プラン ファミリー 1G  IP16","-"]
[null,"IP16","OCN光【光一括提供型】(IPoE 標準プラン)","マンション 1G(NTT東日本)","IP16OCN光【光一括提供型】(IPoE 標準プラン)マンション 1G(NTT東日本)","OCN 光 IPoE 標準プラン マンション 1G  IP16","-"]
[null,"IP16","OCN光【光一括提供型】(IPoE ワイドプラン)","ファミリー 100M(NTT東日本)","IP16OCN光【光一括提供型】(IPoE ワイドプラン)ファミリー 100M(NTT東日本)","OCN 光 IPoE ワイドプラン ファミリー 100M  IP16","-"]
[null,"IP16","OCN光【光一括提供型】(IPoE ワイドプラン)","ファミリー 100M(NTT西日本)","IP16OCN光【光一括提供型】(IPoE ワイドプラン)ファミリー 100M(NTT西日本)","OCN 光 IPoE ワイドプラン ファミリー 100M  IP16","-"]
[null,"IP16","OCN光【光一括提供型】(IPoE ワイドプラン)","ファミリー 200M(NTT東日本)","IP16OCN光【光一括提供型】(IPoE ワイドプラン)ファミリー 200M(NTT東日本)","OCN 光 IPoE ワイドプラン ファミリー 200M  IP16","-"]
[null,"IP16","OCN光【光一括提供型】(IPoE ワイドプラン)","ファミリー 200M(NTT西日本)","IP16OCN光【光一括提供型】(IPoE ワイドプラン)ファミリー 200M(NTT西日本)","OCN 光 IPoE ワイドプラン ファミリー 200M  IP16","-"]
[null,"IP16","OCN光【光一括提供型】(IPoE ワイドプラン)","ファミリー 1G(NTT西日本)","IP16OCN光【光一括提供型】(IPoE ワイドプラン)ファミリー 1G(NTT西日本)","OCN 光 IPoE ワイドプラン ファミリー 1G  IP16","-"]
[null,"IP16","OCN光【光一括提供型】(IPoE ワイドプラン)","ファミリー 1G(NTT東日本)","IP16OCN光【光一括提供型】(IPoE ワイドプラン)ファミリー 1G(NTT東日本)","OCN 光 IPoE ワイドプラン ファミリー 1G  IP16","-"]
[null,"IP16","OCN光【光一括提供型】(IPoE ワイドプラン)","マンション 1G(NTT東日本)","IP16OCN光【光一括提供型】(IPoE ワイドプラン)マンション 1G(NTT東日本)","OCN 光 IPoE ワイドプラン マンション 1G  IP16","-"]
[null,"IP16","OCN ADSLサービス(F)","モアⅢ(47M)(NTT東日本)","IP16OCN ADSLサービス(F)モアⅢ(47M)(NTT東日本)","OCN ADSLサービス IP16(F)47M 東タイプ","xxx@ffa.ocn.ne.jp"]
[null,"IP16","OCN ADSLサービス(F)","モアスペシャル(47M)(NTT西日本)","IP16OCN ADSLサービス(F)モアスペシャル(47M)(NTT西日本)","OCN ADSLサービス IP16(F)47M 西タイプ","xxx@ffa.ocn.ne.jp"]
[null,"IP16","OCN ADSLサービス(F)","モアⅡ(40M)(NTT東日本)","IP16OCN ADSLサービス(F)モアⅡ(40M)(NTT東日本)","OCN ADSLサービス IP16(F)40M 東タイプ","xxx@ffa.ocn.ne.jp"]
[null,"IP16","OCN ADSLサービス(F)","モア40(40M)(NTT西日本)","IP16OCN ADSLサービス(F)モア40(40M)(NTT西日本)","OCN ADSLサービス IP16(F)40M 西タイプ","xxx@ffa.ocn.ne.jp"]
[null,"IP16","OCN ADSLサービス(F)","モア24(24M)(NTT西日本)","IP16OCN ADSLサービス(F)モア24(24M)(NTT西日本)","OCN ADSLサービス IP16(F)24M 西タイプ","xxx@ffa.ocn.ne.jp"]
[null,"IP16","OCN ADSLサービス(F)","モア(12M)(NTT東日本)","IP16OCN ADSLサービス(F)モア(12M)(NTT東日本)","OCN ADSLサービス IP16(F)12M 東タイプ","xxx@ffa.ocn.ne.jp"]
[null,"IP16","OCN ADSLサービス(F)","モア(12M)(NTT西日本)","IP16OCN ADSLサービス(F)モア(12M)(NTT西日本)","OCN ADSLサービス IP16(F)12M 西タイプ","xxx@ffa.ocn.ne.jp"]
[null,"IP16","OCN ADSLサービス(F)","8M(NTT東日本)","IP16OCN ADSLサービス(F)8M(NTT東日本)","OCN ADSLサービス IP16(F)8M 東タイプ","xxx@ffa.ocn.ne.jp"]
[null,"IP16","OCN ADSLサービス(F)","8M(NTT西日本)","IP16OCN ADSLサービス(F)8M(NTT西日本)","OCN ADSLサービス IP16(F)8M 西タイプ","xxx@ffa.ocn.ne.jp"]
[null,"IP16","OCN ADSLサービス(F)","1.5M(NTT東日本)","IP16OCN ADSLサービス(F)1.5M(NTT東日本)","OCN ADSLサービス IP16(F)1.5M 東タイプ","xxx@ffa.ocn.ne.jp"]
[null,"IP16","OCN ADSLサービス(F)","1.5M(NTT西日本)","IP16OCN ADSLサービス(F)1.5M(NTT西日本)","OCN ADSLサービス IP16(F)1.5M 西タイプ","xxx@ffa.ocn.ne.jp"]
[null,"IP16","OCN ADSLサービス(F)","モアⅢ(47M)・ビジネスタイプ(NTT東日本)","IP16OCN ADSLサービス(F)モアⅢ(47M)・ビジネスタイプ(NTT東日本)","OCN ADSLサービス IP16(F)ビジネス47M 東タイプ","xxx@ffab.ocn.ne.jp"]
[null,"IP16","OCN ADSLサービス(F)","モアⅡ(40M)・ビジネスタイプ(NTT東日本)","IP16OCN ADSLサービス(F)モアⅡ(40M)・ビジネスタイプ(NTT東日本)","OCN ADSLサービス IP16(F)ビジネス40M 東タイプ","xxx@ffab.ocn.ne.jp"]
[null,"IP16","OCN 光サービス(F)「光ネクスト」","ファミリータイプ(NTT東日本)","IP16OCN 光サービス(F)「光ネクスト」ファミリータイプ(NTT東日本)","OCN 光サービス IP16(F) 「光ネクスト」ファミリータイプ","xxx@bizf.ocn.ne.jp"]
[null,"IP16","OCN 光サービス(F)「光ネクスト」","ファミリータイプ(NTT西日本)","IP16OCN 光サービス(F)「光ネクスト」ファミリータイプ(NTT西日本)","OCN 光サービス IP16(F) 「光ネクスト」ファミリータイプ","xxx@bizf.ocn.ne.jp"]
[null,"IP16","OCN 光サービス(F)「光ネクスト」","ファミリー・ハイスピードタイプ(NTT東日本)","IP16OCN 光サービス(F)「光ネクスト」ファミリー・ハイスピードタイプ(NTT東日本)","OCN 光サービス IP16(F) 「光ネクスト」ファミリー･ハイスピードタイプ","xxx@bizf.ocn.ne.jp"]
[null,"IP16","OCN 光サービス(F)「光ネクスト」","ファミリー・ハイスピードタイプ(NTT西日本)","IP16OCN 光サービス(F)「光ネクスト」ファミリー・ハイスピードタイプ(NTT西日本)","OCN 光サービス IP16(F) 「光ネクスト」ファミリー･ハイスピードタイプ 西タイプ","xxx@bizf.ocn.ne.jp"]
[null,"IP16","OCN 光サービス(F)「光ネクスト」","ファミリー・スーパーハイスピードタイプ隼(NTT西日本)","IP16OCN 光サービス(F)「光ネクスト」ファミリー・スーパーハイスピードタイプ隼(NTT西日本)","OCN 光サービス IP16(F) 「光ネクスト」ファミリー･スーパーハイスピード隼 西タイプ","xxx@bizf.ocn.ne.jp"]
[null,"IP16","OCN 光サービス(F)「光ネクスト」","ビジネスタイプ(NTT東日本)","IP16OCN 光サービス(F)「光ネクスト」ビジネスタイプ(NTT東日本)","OCN 光サービス IP16(F) 「光ネクスト」ビジネスタイプ 東タイプ","xxx@bizf.ocn.ne.jp"]
[null,"IP16","OCN 光サービス(F)「光ネクスト」","ビジネスタイプ(NTT西日本)","IP16OCN 光サービス(F)「光ネクスト」ビジネスタイプ(NTT西日本)","OCN 光サービス IP16(F) 「光ネクスト」ビジネスタイプ 西タイプ","xxx@bizf.ocn.ne.jp"]
[null,"IP16","OCN 光サービス(F)「光ネクスト」","プライオ1(NTT東日本)","IP16OCN 光サービス(F)「光ネクスト」プライオ1(NTT東日本)","OCN 光サービス IP16(F) 「光ネクスト」プライオ1 東タイプ","xxx@bizf.ocn.ne.jp"]
[null,"IP16","OCN 光サービス(F)「光ネクスト」","プライオ10(NTT東日本)","IP16OCN 光サービス(F)「光ネクスト」プライオ10(NTT東日本)","OCN 光サービス IP16(F) 「光ネクスト」プライオ10 東タイプ","xxx@bizf.ocn.ne.jp"]
[null,"IP16","OCN 光サービス(F)「光ネクスト」","ギガファミリー・スマートタイプ(NTT東日本)","IP16OCN 光サービス(F)「光ネクスト」ギガファミリー・スマートタイプ(NTT東日本)","OCN 光サービス IP16(F) 「光ネクスト」ギガファミリー 東タイプ","xxx@bizf.ocn.ne.jp"]
[null,"IP16","OCN 光サービス(F)「光ネクスト」","ファミリー・ギガラインタイプ(NTT東日本)","IP16OCN 光サービス(F)「光ネクスト」ファミリー・ギガラインタイプ(NTT東日本)","OCN 光サービス IP16(F) 「光ネクスト」ファミリー･ギガライン 東タイプ","xxx@bizf.ocn.ne.jp"]
[null,"IP32","Bフレッツ","ビジネスタイプ(NTT東日本/NTT西日本)","IP32Bフレッツビジネスタイプ(NTT東日本/NTT西日本)","OCN 光「フレッツ」 IP32 ビジネスタイプ","xxx@fbfh2.ocn.ne.jp"]
[null,"IP32","フレッツ 光ネクスト","ビジネスタイプ(NTT東日本/NTT西日本)","IP32フレッツ 光ネクストビジネスタイプ(NTT東日本/NTT西日本)","OCN 光「フレッツ」 IP32 ビジネスタイプ","xxx@bizf.ocn.ne.jp"]
[null,"IP32","フレッツ 光ネクスト","プライオ10(NTT東日本)","IP32フレッツ 光ネクストプライオ10(NTT東日本)","OCN 光「フレッツ」 IP32 プライオ10","xxx@bizf.ocn.ne.jp"]
[null,"IP32","OCN 光サービス(F)「光ネクスト」","ビジネスタイプ(NTT東日本)","IP32OCN 光サービス(F)「光ネクスト」ビジネスタイプ(NTT東日本)","OCN 光サービス IP32(F) 「光ネクスト」ビジネスタイプ 東タイプ","xxx@bizf.ocn.ne.jp"]
[null,"IP32","OCN 光サービス(F)「光ネクスト」","ビジネスタイプ(NTT西日本)","IP32OCN 光サービス(F)「光ネクスト」ビジネスタイプ(NTT西日本)","OCN 光サービス IP32(F) 「光ネクスト」ビジネスタイプ 西タイプ","xxx@bizf.ocn.ne.jp"]
[null,"IP32","OCN 光サービス(F)「光ネクスト」","プライオ10(NTT東日本)","IP32OCN 光サービス(F)「光ネクスト」プライオ10(NTT東日本)","OCN 光サービス IP32(F) 「光ネクスト」プライオ10 東タイプ","xxx@bizf.ocn.ne.jp"]
[null,"IP64","Bフレッツ","ビジネスタイプ(NTT東日本/NTT西日本)","IP64Bフレッツビジネスタイプ(NTT東日本/NTT西日本)","OCN 光「フレッツ」 IP64 ビジネスタイプ","xxx@fbfh2.ocn.ne.jp"]
[null,"IP64","フレッツ 光ネクスト","ビジネスタイプ(NTT東日本/NTT西日本)","IP64フレッツ 光ネクストビジネスタイプ(NTT東日本/NTT西日本)","OCN 光「フレッツ」 IP64 ビジネスタイプ","xxx@bizf.ocn.ne.jp"]
[null,"IP64","フレッツ 光ネクスト","プライオ10(NTT東日本)","IP64フレッツ 光ネクストプライオ10(NTT東日本)","OCN 光「フレッツ」 IP64 プライオ10","xxx@bizf.ocn.ne.jp"]
[null,"IP64","OCN 光サービス(F)「光ネクスト」","ビジネスタイプ(NTT東日本)","IP64OCN 光サービス(F)「光ネクスト」ビジネスタイプ(NTT東日本)","OCN 光サービス IP64(F) 「光ネクスト」ビジネスタイプ 東タイプ","xxx@bizf.ocn.ne.jp"]
[null,"IP64","OCN 光サービス(F)「光ネクスト」","ビジネスタイプ(NTT西日本)","IP64OCN 光サービス(F)「光ネクスト」ビジネスタイプ(NTT西日本)","OCN 光サービス IP64(F) 「光ネクスト」ビジネスタイプ 西タイプ","xxx@bizf.ocn.ne.jp"]
[null,"IP64","OCN 光サービス(F)「光ネクスト」","プライオ10(NTT東日本)","IP64OCN 光サービス(F)「光ネクスト」プライオ10(NTT東日本)","OCN 光サービス IP64(F) 「光ネクスト」プライオ10 東タイプ","xxx@bizf.ocn.ne.jp"]
[null,"forVPNライト","フレッツ・ADSL","1.5Mタイプ","forVPNライトフレッツ・ADSL1.5Mタイプ","OCN ADSLアクセス 「フレッツ」プラン forVPNライト 1M/1.5M/8M/12M/24M/40M/47Mタイプ","xxx@dfa.ocn.ne.jp"]
[null,"forVPNライト","フレッツ・ADSL","8Mタイプ","forVPNライトフレッツ・ADSL8Mタイプ","OCN ADSLアクセス 「フレッツ」プラン forVPNライト 1M/1.5M/8M/12M/24M/40M/47Mタイプ","xxx@dfa.ocn.ne.jp"]
[null,"forVPNライト","フレッツ・ADSL","モア(12M)","forVPNライトフレッツ・ADSLモア(12M)","OCN ADSLアクセス 「フレッツ」プラン forVPNライト 1M/1.5M/8M/12M/24M/40M/47Mタイプ","xxx@dfa.ocn.ne.jp"]
[null,"forVPNライト","フレッツ・ADSL","モアⅡ(24Mタイプ)/モア24(24タイプ)",{"$f":"B388&C388&D388","v":"forVPNライトフレッツ・ADSLモアⅡ(24Mタイプ)/モア24(24タイプ)"},"OCN ADSLアクセス 「フレッツ」プラン forVPNライト 1M/1.5M/8M/12M/24M/40M/47Mタイプ","xxx@dfa.ocn.ne.jp"]
[null,"forVPNライト","フレッツ・ADSL","モアⅡ(40M)/モア40(40Mタイプ)","forVPNライトフレッツ・ADSLモアⅡ(40M)/モア40(40Mタイプ)","OCN ADSLアクセス 「フレッツ」プラン forVPNライト 1M/1.5M/8M/12M/24M/40M/47Mタイプ","xxx@dfa.ocn.ne.jp"]
[null,"forVPNライト","フレッツ・ADSL","モアⅢ(47M)・モアスペシャル(47M)","forVPNライトフレッツ・ADSLモアⅢ(47M)・モアスペシャル(47M)","OCN ADSLアクセス 「フレッツ」プラン forVPNライト 1M/1.5M/8M/12M/24M/40M/47Mタイプ","xxx@dfa.ocn.ne.jp"]
[null,"forVPNライト","フレッツ・ADSL","モアⅢ(47M)・ビジネスタイプ(NTT東日本)","forVPNライトフレッツ・ADSLモアⅢ(47M)・ビジネスタイプ(NTT東日本)","OCN ADSLアクセス 「フレッツ」プラン forVPNライト ビジネスタイプ","xxx@dfab.ocn.ne.jp"]
[null,"forVPNライト","フレッツ・ADSL","モアⅡ(24M)・ビジネスタイプ(NTT東日本)","forVPNライトフレッツ・ADSLモアⅡ(24M)・ビジネスタイプ(NTT東日本)","OCN ADSLアクセス 「フレッツ」プラン forVPNライト ビジネスタイプ","xxx@dfab.ocn.ne.jp"]
[null,"forVPNライト","フレッツ・ISDN",null,"forVPNライトフレッツ・ISDN","OCN ISDNアクセス 「フレッツ」プラン forVPNライト","xxx@dfi.ocn.ne.jp"]
[null,"forVPNライト","Bフレッツ","ニューファミリータイプ(NTT東日本)","forVPNライトBフレッツニューファミリータイプ(NTT東日本)","OCN 光「フレッツ」 forVPNライト ファミリータイプ","xxx@dbnf.ocn.ne.jp"]
[null,"forVPNライト","Bフレッツ","ベーシックタイプ(NTT東日本/NTT西日本)","forVPNライトBフレッツベーシックタイプ(NTT東日本/NTT西日本)","OCN 光「フレッツ」 forVPNライト ベーシックタイプ","xxx@dbfb.ocn.ne.jp"]
[null,"forVPNライト","Bフレッツ","ビル・マンションタイプ(NTT東日本/NTT西日本)","forVPNライトBフレッツビル・マンションタイプ(NTT東日本/NTT西日本)","OCN 光「フレッツ」 forVPNライト マンションタイプ","xxx@dbfm.ocn.ne.jp"]
[null,"forVPNライト","フレッツ 光ネクスト","ファミリータイプ(NTT東日本/NTT西日本)","forVPNライトフレッツ 光ネクストファミリータイプ(NTT東日本/NTT西日本)","OCN 光「フレッツ」 forVPNライト ファミリータイプ","xxx@bizd.ocn.ne.jp"]
[null,"forVPNライト","フレッツ 光ネクスト","ファミリー・ハイスピードタイプ(NTT東日本/NTT西日本)","forVPNライトフレッツ 光ネクストファミリー・ハイスピードタイプ(NTT東日本/NTT西日本)","OCN 光「フレッツ」 forVPNライト ファミリータイプ","xxx@bizd.ocn.ne.jp"]
[null,"forVPNライト","フレッツ 光ネクスト","マンションタイプ(NTT東日本/NTT西日本)","forVPNライトフレッツ 光ネクストマンションタイプ(NTT東日本/NTT西日本)","OCN 光「フレッツ」 forVPNライト マンションタイプ","xxx@bizd.ocn.ne.jp"]
[null,"forVPNライト","フレッツ 光ネクスト","マンション・ハイスピードタイプ(NTT東日本/NTT西日本)","forVPNライトフレッツ 光ネクストマンション・ハイスピードタイプ(NTT東日本/NTT西日本)","OCN 光「フレッツ」 forVPNライト マンションタイプ","xxx@bizd.ocn.ne.jp"]
[null,"forVPNライト","フレッツ 光ネクスト","ファミリー・スーパーハイスピードタイプ隼(NTT西日本)","forVPNライトフレッツ 光ネクストファミリー・スーパーハイスピードタイプ隼(NTT西日本)","OCN 光「フレッツ」 forVPNライト ファミリータイプ","xxx@bizd.ocn.ne.jp"]
[null,"forVPNライト","フレッツ 光ネクスト","マンション・スーパーハイスピードタイプ隼(NTT西日本)","forVPNライトフレッツ 光ネクストマンション・スーパーハイスピードタイプ隼(NTT西日本)","OCN 光「フレッツ」 forVPNライト マンションタイプ","xxx@bizd.ocn.ne.jp"]
[null,"forVPNライト","フレッツ 光ネクスト","ギガファミリー・スマートタイプ(NTT東日本)","forVPNライトフレッツ 光ネクストギガファミリー・スマートタイプ(NTT東日本)","OCN 光「フレッツ」 forVPNライト ギガファミリー","xxx@bizd.ocn.ne.jp"]
[null,"forVPNライト","フレッツ 光ネクスト","ギガマンション・スマートタイプ(NTT東日本)","forVPNライトフレッツ 光ネクストギガマンション・スマートタイプ(NTT東日本)","OCN 光「フレッツ」 forVPNライト ギガファミリー","xxx@bizd.ocn.ne.jp"]
[null,"forVPNライト","フレッツ 光ネクスト","ファミリー・ギガラインタイプ(NTT東日本)","forVPNライトフレッツ 光ネクストファミリー・ギガラインタイプ(NTT東日本)","OCN 光「フレッツ」 forVPNライト ギガファミリー","xxx@bizd.ocn.ne.jp"]
[null,"forVPNライト","フレッツ 光ネクスト","マンション・ギガラインタイプ(NTT東日本)","forVPNライトフレッツ 光ネクストマンション・ギガラインタイプ(NTT東日本)","OCN 光「フレッツ」 forVPNライト ギガファミリー","xxx@bizd.ocn.ne.jp"]
[null,"forVPNライト","フレッツ 光ライト","ファミリータイプ","forVPNライトフレッツ 光ライトファミリータイプ","OCN 光「フレッツ」 forVPNライト ファミリータイプ","xxx@bizd.ocn.ne.jp"]
[null,"forVPNライト","フレッツ 光ライト","マンションタイプ","forVPNライトフレッツ 光ライトマンションタイプ","OCN 光「フレッツ」 forVPNライト マンションタイプ","xxx@bizd.ocn.ne.jp"]

{"sheet":"改版履歴","index":9,"n_rows":32,"n_cols":9,"rows_kept":32,"cut":false,"hidden":true,"merged":[]}
["改版履歴"]
[null,"No.","更新日","更新者","Ver.","シート名","概要","詳細","備考"]
[null,1,"2020-03-18","石田香織","Ver.1.00A","-","初版",null,"Webエントリリリース：2020/3/18"]
[null,2,"2020-04-22","石田香織","Ver.1.00B","留意事項","留意事項シート追加","留意事項を最新化し、シート追加"]
[null,3,"2020-04-22","石田香織","Ver.1.00B","基本情報\n付加サービス情報","\"（必須）\"表記の追加","条件付きにて必須となる項目について、項目名横に\"（必須）\"の表記が漏れている箇所があったため追記"]
[null,4,"2020-05-14","石田香織","Ver.1.00C","付加サービス情報","セキュリティゲートウェイのプルダウン値の制御修正","アクセスタイプがIPoEの時、「利用する(ルータタイプ)」を非表示とするよう条件追加"]
[null,5,"2020-05-20","石田香織","Ver.1.00D","IPoE申込情報","端末開放フラグの値修正","端末開放フラグのプルダウン値を「1」のみへ修正\n※端末開放の標準化に伴う対応","Webエントリリリース：2020/6/12予定\n※SO-infoは6/1より掲載"]
[null,6,"2020-06-15","石田香織","Ver.1.00E","基本情報","「アクセス回線充当有無」の条件付き書式修正","フレッツ別契約型かつIPoEメニューの場合のみ活性となるよう条件付き書式を修正"]
[null,7,"2020-06-15","石田香織","Ver.1.00E","基本情報","「ご利用場所に関する連絡先コピーリストの条件付き書式修正","アクセスタイプが(F)の場合、グレーアウトするよう条件付き書式を修正"]
[null,8,"2020-06-15","石田香織","Ver.1.00E","付加サービス情報","「Arcstar IP Voice」のプルダウン値制御追加","アクセスタイプがIPoEの時、「利用しない」のみ表示とするよう条件追加"]
[null,9,"2020-05-07","石田香織","Ver.1.01A","留意事項","「動的IP(ex)」を追記","【本申込書で対応するＯＣＮ契約タイプ】に「動的IP(ex)」を追記","Webエントリリリース：2020年1Q"]
[null,10,"2020-05-07","石田香織","Ver.1.01A","list","IP種別のリスト値を追加","IP種別のリスト値に「動的IP(ex)」を追加","Webエントリリリース：2020年1Q"]
[null,11,"2020-05-07","石田香織","Ver.1.01A","変換","契約タイプ制御用の変換表を修正","「動的1to1」→「動的IP(ex)」へ文言修正","Webエントリリリース：2020年1Q"]
[null,12,"2020-05-07","石田香織","Ver.1.01A","OCNメニュー","IP種別、OCN提供メニューの文言修正","「動的1to1」→「動的IP(ex)」へ文言修正","Webエントリリリース：2020年1Q"]
[null,13,"2020-05-07","石田香織","Ver.1.01A","基本情報","2年自動更新型割引希望有無の条件付き書式修正","動的IP(ex)かつ光コラボの時グレーアウトするよう修正","Webエントリリリース：2020年1Q"]
[null,14,"2020-05-07","石田香織","Ver.1.01A","IPoE申込情報","端末ご利用形態のプルダウン制御修正","BD21セルの関数の条件について、「動的1to1」→「動的IP(ex)」へ文言修正","Webエントリリリース：2020年1Q"]
[null,15,"2020-09-07","石田香織","Ver.1.02A","IPoE申込情報","端末開放フラグの名前定義削除","Webエントリからの制御削除に伴い、名前定義削除\n⇒これに伴い、端末ご利用形態のプルダウン制御用関数を修正\n　（端末開放フラグを条件から削除）","Webエントリリリース：2020年2Q"]
[null,16,"2020-09-07","石田香織","Ver.1.02A","付加サービス情報","OCN IWSaaSサービスの項目名変更","サービス名称変更に伴い、項目名を以下へ変更\n■変更後項目名：OCN TMWSaaSサービス","Webエントリリリース：2020年2Q"]
[null,17,"2020-11-30","石田香織","Ver.1.02B","list","2020/11/30削除（サービス終了の為）","Bフレッツサービス終了に伴い、アクセスタイプのプルダウン値から以下を削除\n\"Bフレッツ\""]
[null,18]
[null,19]
[null,20]
[null,21]
[null,22]
[null,23]
[null,24]
[null,25]
[null,26]
[null,27]
[null,28]
[null,29]
[null,30]